Body Name,Body,Date,Department,Beneficiary,Summary of Purpose (SeRCOP),Amount,Merchant Code,Transaction Number
Sandwell Metropolitan Borough Council,https://www.sandwell.gov.uk/performance-spending/government-procurement-cards,04-Apr-23,Law & Governance,ROYAL MAIL GROUP LTD,Assistant Chief Executive (Excl SIU),5.2,POSTAL SERVICES-GOVERNMENT ONLY,2023-24Q1_PC0001
Sandwell Metropolitan Borough Council,https://www.sandwell.gov.uk/performance-spending/government-procurement-cards,04-Apr-23,Law & Governance,SP LEISURE BARGAINS,Assistant Chief Executive (Excl SIU),1581.92,COMPUTER SOFTWARE STORES,2023-24Q1_PC0002
Sandwell Metropolitan Borough Council,https://www.sandwell.gov.uk/performance-spending/government-procurement-cards,04-Apr-23,Childrens Services,Drayton Manor,Childrens Services,225,RECREATION SERVICES (NOT ELSEWHERE CLASSIFIED),2023-24Q1_PC0003
Sandwell Metropolitan Borough Council,https://www.sandwell.gov.uk/performance-spending/government-procurement-cards,04-Apr-23,Childrens Services,Drayton Manor,Childrens Services,180,RECREATION SERVICES (NOT ELSEWHERE CLASSIFIED),2023-24Q1_PC0004
Sandwell Metropolitan Borough Council,https://www.sandwell.gov.uk/performance-spending/government-procurement-cards,04-Apr-23,Childrens Services,DRAYTON MANOR RESORT L,Childrens Services,145.2,"AMUSEMENT PARKS,CARNIVALS,CIRCUS,FORTUNE TELLERS",2023-24Q1_PC0005
Sandwell Metropolitan Borough Council,https://www.sandwell.gov.uk/performance-spending/government-procurement-cards,04-Apr-23,Childrens Services,GREETINGS HOUSE LTD,Childrens Services,13.75,"GIFT, CARD, NOVELTY AND SOUVENIR SHOPS",2023-24Q1_PC0006
Sandwell Metropolitan Borough Council,https://www.sandwell.gov.uk/performance-spending/government-procurement-cards,04-Apr-23,Childrens Services,LATIFS,Childrens Services,39.33,DISCOUNT STORES,2023-24Q1_PC0007
Sandwell Metropolitan Borough Council,https://www.sandwell.gov.uk/performance-spending/government-procurement-cards,04-Apr-23,Childrens Services,Rail Seasons,Childrens Services,-38.3,PASSENGER RAILWAYS,2023-24Q1_PC0008
Sandwell Metropolitan Borough Council,https://www.sandwell.gov.uk/performance-spending/government-procurement-cards,04-Apr-23,Individual School Budgets With Inclusion,AMZNMktplace,Individual School Budgets With Inclusion,123.81,MISCELLANEOUS AND SPECIALTY RETAIL STORES,2023-24Q1_PC0009
Sandwell Metropolitan Borough Council,https://www.sandwell.gov.uk/performance-spending/government-procurement-cards,04-Apr-23,Regeneration & Growth,NBS LTD (T/A NBS),Regeneration And The Economy,19762.8,COMPUTER SOFTWARE STORES,2023-24Q1_PC0010
Sandwell Metropolitan Borough Council,https://www.sandwell.gov.uk/performance-spending/government-procurement-cards,04-Apr-23,Regeneration & Growth,shop.bsigroup.com 45/2,Regeneration And The Economy,2864.4,BUSINESS SERVICES-NOT ELSEWHERE CLASSIFIED,2023-24Q1_PC0011
Sandwell Metropolitan Borough Council,https://www.sandwell.gov.uk/performance-spending/government-procurement-cards,04-Apr-23,Regeneration & Growth,WWW.ROBUSTDETAILS.COM,Regeneration And The Economy,450,GENERAL CONTRACTORS/RESIDENTIAL BUILDINGS,2023-24Q1_PC0012
Sandwell Metropolitan Borough Council,https://www.sandwell.gov.uk/performance-spending/government-procurement-cards,04-Apr-23,Total ASCHWB,Amazon.co.uk EX4CB6CQ5,Total Adult Social Care,11.99,DIRECT MARKETING-OTHER DIRECT MARKETERS/NOT ELSEW.,2023-24Q1_PC0013
Sandwell Metropolitan Borough Council,https://www.sandwell.gov.uk/performance-spending/government-procurement-cards,04-Apr-23,Total ASCHWB,JUST GLOVES,Total Adult Social Care,113.4,DENTAL/LAB/MED/OPHTHALMIC HOSP EQUIP & SUPPLIES,2023-24Q1_PC0014
Sandwell Metropolitan Borough Council,https://www.sandwell.gov.uk/performance-spending/government-procurement-cards,04-Apr-23,Total ASCHWB,WILKO.COM,Total Adult Social Care,34,MISCELLANEOUS GENERAL MERCHANDISE,2023-24Q1_PC0015
Sandwell Metropolitan Borough Council,https://www.sandwell.gov.uk/performance-spending/government-procurement-cards,04-Apr-23,Total Borough Economy,ALDI 42 772,Total Adult Social Care,29.95,"GROCERY STORES, SUPERMARKETS",2023-24Q1_PC0016
Sandwell Metropolitan Borough Council,https://www.sandwell.gov.uk/performance-spending/government-procurement-cards,04-Apr-23,Total Borough Economy,ALDI 42 772,Total Adult Social Care,396.49,"GROCERY STORES, SUPERMARKETS",2023-24Q1_PC0017
Sandwell Metropolitan Borough Council,https://www.sandwell.gov.uk/performance-spending/government-procurement-cards,04-Apr-23,Total Borough Economy,AMZNMktplace,Total Adult Social Care,26.9,MISCELLANEOUS AND SPECIALTY RETAIL STORES,2023-24Q1_PC0018
Sandwell Metropolitan Borough Council,https://www.sandwell.gov.uk/performance-spending/government-procurement-cards,04-Apr-23,Total Borough Economy,AMZNMktplace,Total Adult Social Care,37.96,MISCELLANEOUS AND SPECIALTY RETAIL STORES,2023-24Q1_PC0019
Sandwell Metropolitan Borough Council,https://www.sandwell.gov.uk/performance-spending/government-procurement-cards,04-Apr-23,Total Borough Economy,PODBEAN.COM,Total Adult Social Care,32.53,"CONSULTING, MANAGEMENT, AND PUBLIC RELATIONS SVCS",2023-24Q1_PC0020
Sandwell Metropolitan Borough Council,https://www.sandwell.gov.uk/performance-spending/government-procurement-cards,04-Apr-23,Total Borough Economy,ROTACLOUD,Total Adult Social Care,361.2,COMPUTER SOFTWARE STORES,2023-24Q1_PC0021
Sandwell Metropolitan Borough Council,https://www.sandwell.gov.uk/performance-spending/government-procurement-cards,04-Apr-23,Total Borough Economy,SAINSBURYS S/MKTS,Total Adult Social Care,10,"GROCERY STORES, SUPERMARKETS",2023-24Q1_PC0022
Sandwell Metropolitan Borough Council,https://www.sandwell.gov.uk/performance-spending/government-procurement-cards,04-Apr-23,Total Borough Economy,SCREWFIX DIRECT,Total Adult Social Care,-10,"BUILDING MATERIALS, LUMBER STORES",2023-24Q1_PC0023
Sandwell Metropolitan Borough Council,https://www.sandwell.gov.uk/performance-spending/government-procurement-cards,04-Apr-23,Total Borough Economy,Wm Morrisons Store Pic,Total Adult Social Care,160.95,"GROCERY STORES, SUPERMARKETS",2023-24Q1_PC0024
Sandwell Metropolitan Borough Council,https://www.sandwell.gov.uk/performance-spending/government-procurement-cards,04-Apr-23,Total Borough Economy,WWW.PARTYDELIGHTS.CO.U,Total Adult Social Care,32.97,"GIFT, CARD, NOVELTY AND SOUVENIR SHOPS",2023-24Q1_PC0025
Sandwell Metropolitan Borough Council,https://www.sandwell.gov.uk/performance-spending/government-procurement-cards,05-Apr-23,Assistant Chief Executive,Canva  03745-13285957,Assistant Chief Executive (Excl SIU),159.87,"COMMERCIAL ART, GRAPHICS, PHOTOGRAPHY",2023-24Q1_PC0026
Sandwell Metropolitan Borough Council,https://www.sandwell.gov.uk/performance-spending/government-procurement-cards,05-Apr-23,FINANCE (Inc SIU),AMZNMktplace,Assistant Chief Executive (Excl SIU),36.28,MISCELLANEOUS AND SPECIALTY RETAIL STORES,2023-24Q1_PC0027
Sandwell Metropolitan Borough Council,https://www.sandwell.gov.uk/performance-spending/government-procurement-cards,05-Apr-23,FINANCE (Inc SIU),AMZNMktplace,Assistant Chief Executive (Excl SIU),12.89,MISCELLANEOUS AND SPECIALTY RETAIL STORES,2023-24Q1_PC0028
Sandwell Metropolitan Borough Council,https://www.sandwell.gov.uk/performance-spending/government-procurement-cards,05-Apr-23,Law & Governance,AMZNMKTPLACE AMAZON.CO,Assistant Chief Executive (Excl SIU),47.89,MISCELLANEOUS AND SPECIALTY RETAIL STORES,2023-24Q1_PC0029
Sandwell Metropolitan Borough Council,https://www.sandwell.gov.uk/performance-spending/government-procurement-cards,05-Apr-23,Law & Governance,AMZNMKTPLACE AMAZON.CO,Assistant Chief Executive (Excl SIU),56.91,MISCELLANEOUS AND SPECIALTY RETAIL STORES,2023-24Q1_PC0030
Sandwell Metropolitan Borough Council,https://www.sandwell.gov.uk/performance-spending/government-procurement-cards,05-Apr-23,Law & Governance,ROYAL MAIL GROUP LTD,Assistant Chief Executive (Excl SIU),5.2,POSTAL SERVICES-GOVERNMENT ONLY,2023-24Q1_PC0031
Sandwell Metropolitan Borough Council,https://www.sandwell.gov.uk/performance-spending/government-procurement-cards,05-Apr-23,Childrens Services,Amazon Prime 9K0O29OY5,Childrens Services,8.99,DIRECT MARKETING-CONTINUITY/SUBSCRIPTION MERCHANTS,2023-24Q1_PC0032
Sandwell Metropolitan Borough Council,https://www.sandwell.gov.uk/performance-spending/government-procurement-cards,05-Apr-23,Childrens Services,AMZNMktplace,Childrens Services,28.98,MISCELLANEOUS AND SPECIALTY RETAIL STORES,2023-24Q1_PC0033
Sandwell Metropolitan Borough Council,https://www.sandwell.gov.uk/performance-spending/government-procurement-cards,05-Apr-23,Childrens Services,BEEBYS BUBBLES,Childrens Services,217.5,"CLEANING, GARMENT, AND LAUNDRY SERVICES",2023-24Q1_PC0034
Sandwell Metropolitan Borough Council,https://www.sandwell.gov.uk/performance-spending/government-procurement-cards,05-Apr-23,Childrens Services,EB  RESOURCE HUB TRAIN,Childrens Services,-25,BUSINESS SERVICES-NOT ELSEWHERE CLASSIFIED,2023-24Q1_PC0035
Sandwell Metropolitan Borough Council,https://www.sandwell.gov.uk/performance-spending/government-procurement-cards,05-Apr-23,Childrens Services,HIGH SPEED TRAINING LT,Childrens Services,120,"SCHOOLS, BUSINESS AND SECRETARIAL",2023-24Q1_PC0036
Sandwell Metropolitan Borough Council,https://www.sandwell.gov.uk/performance-spending/government-procurement-cards,05-Apr-23,Childrens Services,WM MORRISONS STORE,Childrens Services,9.24,"GROCERY STORES, SUPERMARKETS",2023-24Q1_PC0037
Sandwell Metropolitan Borough Council,https://www.sandwell.gov.uk/performance-spending/government-procurement-cards,05-Apr-23,Housing & Assets Total,AMZNMktplace,Corporate Management,58.7,MISCELLANEOUS AND SPECIALTY RETAIL STORES,2023-24Q1_PC0038
Sandwell Metropolitan Borough Council,https://www.sandwell.gov.uk/performance-spending/government-procurement-cards,05-Apr-23,Housing & Assets Total,Amazon.co.uk 8H7F54B45,Total Adult Social Care,75.96,DIRECT MARKETING-OTHER DIRECT MARKETERS/NOT ELSEW.,2023-24Q1_PC0039
Sandwell Metropolitan Borough Council,https://www.sandwell.gov.uk/performance-spending/government-procurement-cards,05-Apr-23,Housing & Assets Total,SP BOOKS4PEOPLE,Total Adult Social Care,38.97,"BOOKS,PERIODICALS AND NEWSPAPERS",2023-24Q1_PC0040
Sandwell Metropolitan Borough Council,https://www.sandwell.gov.uk/performance-spending/government-procurement-cards,05-Apr-23,Total ASCHWB,Amazon.co.uk XH4JH91N5,Total Adult Social Care,22.48,DIRECT MARKETING-OTHER DIRECT MARKETERS/NOT ELSEW.,2023-24Q1_PC0041
Sandwell Metropolitan Borough Council,https://www.sandwell.gov.uk/performance-spending/government-procurement-cards,05-Apr-23,Total ASCHWB,AMZNMktplace,Total Adult Social Care,69.91,MISCELLANEOUS AND SPECIALTY RETAIL STORES,2023-24Q1_PC0042
Sandwell Metropolitan Borough Council,https://www.sandwell.gov.uk/performance-spending/government-procurement-cards,05-Apr-23,Total ASCHWB,AMZNMktplace,Total Adult Social Care,97.69,MISCELLANEOUS AND SPECIALTY RETAIL STORES,2023-24Q1_PC0043
Sandwell Metropolitan Borough Council,https://www.sandwell.gov.uk/performance-spending/government-procurement-cards,05-Apr-23,Total ASCHWB,HOMEBASE LTD 085,Total Adult Social Care,73.5,HOME SUPPLY WAREHOUSE STORES,2023-24Q1_PC0044
Sandwell Metropolitan Borough Council,https://www.sandwell.gov.uk/performance-spending/government-procurement-cards,05-Apr-23,Total ASCHWB,HOMEBASE LTD 085,Total Adult Social Care,16,HOME SUPPLY WAREHOUSE STORES,2023-24Q1_PC0045
Sandwell Metropolitan Borough Council,https://www.sandwell.gov.uk/performance-spending/government-procurement-cards,05-Apr-23,Total ASCHWB,SAINSBURY'S S/MKT,Total Adult Social Care,32.5,"GROCERY STORES, SUPERMARKETS",2023-24Q1_PC0046
Sandwell Metropolitan Borough Council,https://www.sandwell.gov.uk/performance-spending/government-procurement-cards,05-Apr-23,Total Borough Economy,AMZNMktplace,Total Adult Social Care,49.89,MISCELLANEOUS AND SPECIALTY RETAIL STORES,2023-24Q1_PC0047
Sandwell Metropolitan Borough Council,https://www.sandwell.gov.uk/performance-spending/government-procurement-cards,05-Apr-23,Total Borough Economy,AMZNMKTPLACE AMAZON.CO,Total Adult Social Care,37.58,MISCELLANEOUS AND SPECIALTY RETAIL STORES,2023-24Q1_PC0048
Sandwell Metropolitan Borough Council,https://www.sandwell.gov.uk/performance-spending/government-procurement-cards,05-Apr-23,Total Borough Economy,AMZNMKTPLACE AMAZON.CO,Total Adult Social Care,16.99,MISCELLANEOUS AND SPECIALTY RETAIL STORES,2023-24Q1_PC0049
Sandwell Metropolitan Borough Council,https://www.sandwell.gov.uk/performance-spending/government-procurement-cards,05-Apr-23,Total Borough Economy,LUL TICKET MACHINE,Total Adult Social Care,26.8,PASSENGER RAILWAYS,2023-24Q1_PC0050
Sandwell Metropolitan Borough Council,https://www.sandwell.gov.uk/performance-spending/government-procurement-cards,05-Apr-23,Total Borough Economy,Trainline.COM,Total Adult Social Care,72.64,PASSENGER RAILWAYS,2023-24Q1_PC0051
Sandwell Metropolitan Borough Council,https://www.sandwell.gov.uk/performance-spending/government-procurement-cards,05-Apr-23,Total Borough Economy,WWW.PARTYDELIGHTS.CO.U,Total Adult Social Care,109.45,"GIFT, CARD, NOVELTY AND SOUVENIR SHOPS",2023-24Q1_PC0052
Sandwell Metropolitan Borough Council,https://www.sandwell.gov.uk/performance-spending/government-procurement-cards,06-Apr-23,FINANCE (Inc SIU),AMZNMktplace,Assistant Chief Executive (Excl SIU),8.69,MISCELLANEOUS AND SPECIALTY RETAIL STORES,2023-24Q1_PC0053
Sandwell Metropolitan Borough Council,https://www.sandwell.gov.uk/performance-spending/government-procurement-cards,06-Apr-23,Childrens Services,AMZNMKTPLACE AMAZON.CO,Childrens Services,44.95,MISCELLANEOUS AND SPECIALTY RETAIL STORES,2023-24Q1_PC0054
Sandwell Metropolitan Borough Council,https://www.sandwell.gov.uk/performance-spending/government-procurement-cards,06-Apr-23,Childrens Services,HILTON,Childrens Services,132,HILTON,2023-24Q1_PC0055
Sandwell Metropolitan Borough Council,https://www.sandwell.gov.uk/performance-spending/government-procurement-cards,06-Apr-23,Childrens Services,trainline,Childrens Services,68.98,PASSENGER RAILWAYS,2023-24Q1_PC0056
Sandwell Metropolitan Borough Council,https://www.sandwell.gov.uk/performance-spending/government-procurement-cards,06-Apr-23,Childrens Services,VISITBRITAIN SHOP GB,Childrens Services,33.4,TOURIST ATTRACTIONS AND EXHIBITS,2023-24Q1_PC0057
Sandwell Metropolitan Borough Council,https://www.sandwell.gov.uk/performance-spending/government-procurement-cards,06-Apr-23,Housing & Assets Total,AMZNMktplace,Corporate Management,139.98,MISCELLANEOUS AND SPECIALTY RETAIL STORES,2023-24Q1_PC0058
Sandwell Metropolitan Borough Council,https://www.sandwell.gov.uk/performance-spending/government-procurement-cards,06-Apr-23,Total Public Health,CONFERENCE PARTNERS LT,Public Health,391,BUSINESS SERVICES-NOT ELSEWHERE CLASSIFIED,2023-24Q1_PC0059
Sandwell Metropolitan Borough Council,https://www.sandwell.gov.uk/performance-spending/government-procurement-cards,06-Apr-23,Total Public Health,EB  NATIONAL ALCOHOL A,Public Health,99,BUSINESS SERVICES-NOT ELSEWHERE CLASSIFIED,2023-24Q1_PC0060
Sandwell Metropolitan Borough Council,https://www.sandwell.gov.uk/performance-spending/government-procurement-cards,06-Apr-23,Regeneration & Growth,AMZNMktplace,Regeneration And The Economy,194.85,MISCELLANEOUS AND SPECIALTY RETAIL STORES,2023-24Q1_PC0061
Sandwell Metropolitan Borough Council,https://www.sandwell.gov.uk/performance-spending/government-procurement-cards,06-Apr-23,Regeneration & Growth,AMZNMktplace,Regeneration And The Economy,46.25,MISCELLANEOUS AND SPECIALTY RETAIL STORES,2023-24Q1_PC0062
Sandwell Metropolitan Borough Council,https://www.sandwell.gov.uk/performance-spending/government-procurement-cards,06-Apr-23,Regeneration & Growth,BKG BOOKING.COM HOTEL,Regeneration And The Economy,960,TRAVEL AGENCIES AND TOUR OPERATORS,2023-24Q1_PC0063
Sandwell Metropolitan Borough Council,https://www.sandwell.gov.uk/performance-spending/government-procurement-cards,06-Apr-23,Regeneration & Growth,WWW.THERMO-FLOOR.CO.UK,Regeneration And The Economy,318,PLUMBING AND HEATING EQUIPMENT,2023-24Q1_PC0064
Sandwell Metropolitan Borough Council,https://www.sandwell.gov.uk/performance-spending/government-procurement-cards,06-Apr-23,Regeneration & Growth,OFFICE DEPOT UK,Regeneration And The Economy,-123.32,CREDIT ADJUSTMENT,2023-24Q1_PC0065
Sandwell Metropolitan Borough Council,https://www.sandwell.gov.uk/performance-spending/government-procurement-cards,06-Apr-23,Total ASCHWB,B&M 744 OLDBURY,Total Adult Social Care,64.94,MISCELLANEOUS GENERAL MERCHANDISE,2023-24Q1_PC0066
Sandwell Metropolitan Borough Council,https://www.sandwell.gov.uk/performance-spending/government-procurement-cards,06-Apr-23,Total ASCHWB,TVLICENSING.CO.UK,Total Adult Social Care,159,"CONSULTING, MANAGEMENT, AND PUBLIC RELATIONS SVCS",2023-24Q1_PC0067
Sandwell Metropolitan Borough Council,https://www.sandwell.gov.uk/performance-spending/government-procurement-cards,06-Apr-23,Total ASCHWB,WORKWEAR EXPRESS,Total Adult Social Care,240.62,MEN'S/WOMEN'S/CHILDREN'S UNIFORMS/COMMERCIAL CLOTH,2023-24Q1_PC0068
Sandwell Metropolitan Borough Council,https://www.sandwell.gov.uk/performance-spending/government-procurement-cards,06-Apr-23,Total Borough Economy,Amazon Prime 3V03S7VY5,Total Adult Social Care,0.99,DIRECT MARKETING-CONTINUITY/SUBSCRIPTION MERCHANTS,2023-24Q1_PC0069
Sandwell Metropolitan Borough Council,https://www.sandwell.gov.uk/performance-spending/government-procurement-cards,06-Apr-23,Total Borough Economy,AMZNMktplace,Total Adult Social Care,8.8,MISCELLANEOUS AND SPECIALTY RETAIL STORES,2023-24Q1_PC0070
Sandwell Metropolitan Borough Council,https://www.sandwell.gov.uk/performance-spending/government-procurement-cards,06-Apr-23,Total Borough Economy,AMZNMKTPLACE AMAZON.CO,Total Adult Social Care,219.48,MISCELLANEOUS AND SPECIALTY RETAIL STORES,2023-24Q1_PC0071
Sandwell Metropolitan Borough Council,https://www.sandwell.gov.uk/performance-spending/government-procurement-cards,06-Apr-23,Total Borough Economy,VIRTUAL COLLEGE LIMITE,Total Adult Social Care,57.6,SCHOOLS & EDUCATIONAL SVC-NOT ELSEWHERE CLASSIFIED,2023-24Q1_PC0072
Sandwell Metropolitan Borough Council,https://www.sandwell.gov.uk/performance-spending/government-procurement-cards,06-Apr-23,Total Housing Revenue Account,WWW.AVANTIWESTCOAST.CO,Total Housing Revenue Account,314.7,PASSENGER RAILWAYS,2023-24Q1_PC0073
Sandwell Metropolitan Borough Council,https://www.sandwell.gov.uk/performance-spending/government-procurement-cards,06-Apr-23,Total Housing Revenue Account,WWW.AVANTIWESTCOAST.CO,Total Housing Revenue Account,119.9,PASSENGER RAILWAYS,2023-24Q1_PC0074
Sandwell Metropolitan Borough Council,https://www.sandwell.gov.uk/performance-spending/government-procurement-cards,07-Apr-23,Assistant Chief Executive,AMZNMktplace,Assistant Chief Executive (Excl SIU),129.99,MISCELLANEOUS AND SPECIALTY RETAIL STORES,2023-24Q1_PC0075
Sandwell Metropolitan Borough Council,https://www.sandwell.gov.uk/performance-spending/government-procurement-cards,07-Apr-23,Law & Governance,AMZNMktplace,Assistant Chief Executive (Excl SIU),181.87,MISCELLANEOUS AND SPECIALTY RETAIL STORES,2023-24Q1_PC0076
Sandwell Metropolitan Borough Council,https://www.sandwell.gov.uk/performance-spending/government-procurement-cards,07-Apr-23,Childrens Services,AMZNMKTPLACE AMAZON.CO,Childrens Services,84.49,MISCELLANEOUS AND SPECIALTY RETAIL STORES,2023-24Q1_PC0077
Sandwell Metropolitan Borough Council,https://www.sandwell.gov.uk/performance-spending/government-procurement-cards,07-Apr-23,Corporate Management,Amazon.co.uk JS9OL5P65,Corporate Management,17.83,DIRECT MARKETING-OTHER DIRECT MARKETERS/NOT ELSEW.,2023-24Q1_PC0078
Sandwell Metropolitan Borough Council,https://www.sandwell.gov.uk/performance-spending/government-procurement-cards,07-Apr-23,Housing & Assets Total,NRLA.ORG.UK,Corporate Management,175,"ORGANIZATIONS, MEMBERSHIP-NOT ELSEWHERE CLASSIFIED",2023-24Q1_PC0079
Sandwell Metropolitan Borough Council,https://www.sandwell.gov.uk/performance-spending/government-procurement-cards,07-Apr-23,Total ASCHWB,AMZNMktplace,Total Adult Social Care,59.98,MISCELLANEOUS AND SPECIALTY RETAIL STORES,2023-24Q1_PC0080
Sandwell Metropolitan Borough Council,https://www.sandwell.gov.uk/performance-spending/government-procurement-cards,07-Apr-23,Total ASCHWB,AMZNMktplace,Total Adult Social Care,42.49,MISCELLANEOUS AND SPECIALTY RETAIL STORES,2023-24Q1_PC0081
Sandwell Metropolitan Borough Council,https://www.sandwell.gov.uk/performance-spending/government-procurement-cards,07-Apr-23,Total ASCHWB,AMZNMKTPLACE AMAZON.CO,Total Adult Social Care,136.15,MISCELLANEOUS AND SPECIALTY RETAIL STORES,2023-24Q1_PC0082
Sandwell Metropolitan Borough Council,https://www.sandwell.gov.uk/performance-spending/government-procurement-cards,07-Apr-23,Total ASCHWB,FIXXON,Total Adult Social Care,109.2,NURSING AND PERSONAL CARE FACILITIES,2023-24Q1_PC0083
Sandwell Metropolitan Borough Council,https://www.sandwell.gov.uk/performance-spending/government-procurement-cards,07-Apr-23,Total Borough Economy,Amazon.co.uk 3W6CF1H85,Total Adult Social Care,20,DIRECT MARKETING-OTHER DIRECT MARKETERS/NOT ELSEW.,2023-24Q1_PC0084
Sandwell Metropolitan Borough Council,https://www.sandwell.gov.uk/performance-spending/government-procurement-cards,07-Apr-23,Total Borough Economy,AMZNBusiness 4F02I9P95,Total Adult Social Care,7.95,MISCELLANEOUS AND SPECIALTY RETAIL STORES,2023-24Q1_PC0085
Sandwell Metropolitan Borough Council,https://www.sandwell.gov.uk/performance-spending/government-procurement-cards,07-Apr-23,Total Borough Economy,AMZNMktplace,Total Adult Social Care,29.97,MISCELLANEOUS AND SPECIALTY RETAIL STORES,2023-24Q1_PC0086
Sandwell Metropolitan Borough Council,https://www.sandwell.gov.uk/performance-spending/government-procurement-cards,07-Apr-23,Total Borough Economy,AMZNMktplace,Total Adult Social Care,80.83,MISCELLANEOUS AND SPECIALTY RETAIL STORES,2023-24Q1_PC0087
Sandwell Metropolitan Borough Council,https://www.sandwell.gov.uk/performance-spending/government-procurement-cards,07-Apr-23,Total Borough Economy,AMZNMktplace,Total Adult Social Care,28.32,MISCELLANEOUS AND SPECIALTY RETAIL STORES,2023-24Q1_PC0088
Sandwell Metropolitan Borough Council,https://www.sandwell.gov.uk/performance-spending/government-procurement-cards,07-Apr-23,Total Borough Economy,AMZNMktplace,Total Adult Social Care,169.99,MISCELLANEOUS AND SPECIALTY RETAIL STORES,2023-24Q1_PC0089
Sandwell Metropolitan Borough Council,https://www.sandwell.gov.uk/performance-spending/government-procurement-cards,07-Apr-23,Total Borough Economy,AMZNMktplace,Total Adult Social Care,54.41,MISCELLANEOUS AND SPECIALTY RETAIL STORES,2023-24Q1_PC0090
Sandwell Metropolitan Borough Council,https://www.sandwell.gov.uk/performance-spending/government-procurement-cards,07-Apr-23,Total Borough Economy,AMZNMKTPLACE AMAZON.CO,Total Adult Social Care,5.65,MISCELLANEOUS AND SPECIALTY RETAIL STORES,2023-24Q1_PC0091
Sandwell Metropolitan Borough Council,https://www.sandwell.gov.uk/performance-spending/government-procurement-cards,07-Apr-23,Total Borough Economy,ASDA GROCERIES ONLINE,Total Adult Social Care,32.05,"GROCERY STORES, SUPERMARKETS",2023-24Q1_PC0092
Sandwell Metropolitan Borough Council,https://www.sandwell.gov.uk/performance-spending/government-procurement-cards,07-Apr-23,Total Borough Economy,ASDA GROCERIES ONLINE,Total Adult Social Care,29.2,"GROCERY STORES, SUPERMARKETS",2023-24Q1_PC0093
Sandwell Metropolitan Borough Council,https://www.sandwell.gov.uk/performance-spending/government-procurement-cards,07-Apr-23,Total Borough Economy,ASDA GROCERIES ONLINE,Total Adult Social Care,31.55,"GROCERY STORES, SUPERMARKETS",2023-24Q1_PC0094
Sandwell Metropolitan Borough Council,https://www.sandwell.gov.uk/performance-spending/government-procurement-cards,07-Apr-23,Total Borough Economy,BOOKER LTD - 38593354,Total Adult Social Care,178.18,"GROCERY STORES, SUPERMARKETS",2023-24Q1_PC0095
Sandwell Metropolitan Borough Council,https://www.sandwell.gov.uk/performance-spending/government-procurement-cards,07-Apr-23,Total Borough Economy,BOOKER LTD - 38593354,Total Adult Social Care,236.34,"GROCERY STORES, SUPERMARKETS",2023-24Q1_PC0096
Sandwell Metropolitan Borough Council,https://www.sandwell.gov.uk/performance-spending/government-procurement-cards,07-Apr-23,Total Borough Economy,BOOKER LTD - 38593354,Total Adult Social Care,247.91,"GROCERY STORES, SUPERMARKETS",2023-24Q1_PC0097
Sandwell Metropolitan Borough Council,https://www.sandwell.gov.uk/performance-spending/government-procurement-cards,07-Apr-23,Total Borough Economy,SAINSBURYS S/MKTS,Total Adult Social Care,8,"GROCERY STORES, SUPERMARKETS",2023-24Q1_PC0098
Sandwell Metropolitan Borough Council,https://www.sandwell.gov.uk/performance-spending/government-procurement-cards,07-Apr-23,Total Borough Economy,TESCO STORES 2335,Total Adult Social Care,100.8,"GROCERY STORES, SUPERMARKETS",2023-24Q1_PC0099
Sandwell Metropolitan Borough Council,https://www.sandwell.gov.uk/performance-spending/government-procurement-cards,07-Apr-23,Total Borough Economy,Wm Morrisons Store Pic,Total Adult Social Care,120.96,"GROCERY STORES, SUPERMARKETS",2023-24Q1_PC0100
Sandwell Metropolitan Borough Council,https://www.sandwell.gov.uk/performance-spending/government-procurement-cards,07-Apr-23,Total Housing Revenue Account,Amazon.co.uk Z85299ND5,Total Housing Revenue Account,10.98,DIRECT MARKETING-OTHER DIRECT MARKETERS/NOT ELSEW.,2023-24Q1_PC0101
Sandwell Metropolitan Borough Council,https://www.sandwell.gov.uk/performance-spending/government-procurement-cards,07-Apr-23,Total Housing Revenue Account,WWW.AVANTIWESTCOAST.CO,Total Housing Revenue Account,104.9,PASSENGER RAILWAYS,2023-24Q1_PC0102
Sandwell Metropolitan Borough Council,https://www.sandwell.gov.uk/performance-spending/government-procurement-cards,10-Apr-23,FINANCE (Inc SIU),Amazon Prime UY27G7HH5,Assistant Chief Executive (Excl SIU),8.99,DIRECT MARKETING-CONTINUITY/SUBSCRIPTION MERCHANTS,2023-24Q1_PC0103
Sandwell Metropolitan Borough Council,https://www.sandwell.gov.uk/performance-spending/government-procurement-cards,10-Apr-23,FINANCE (Inc SIU),Canva  03750-15358285,Assistant Chief Executive (Excl SIU),99.99,"COMMERCIAL ART, GRAPHICS, PHOTOGRAPHY",2023-24Q1_PC0104
Sandwell Metropolitan Borough Council,https://www.sandwell.gov.uk/performance-spending/government-procurement-cards,10-Apr-23,Law & Governance,AMZNMKTPLACE AMAZON.CO,Assistant Chief Executive (Excl SIU),-22.9,MISCELLANEOUS AND SPECIALTY RETAIL STORES,2023-24Q1_PC0105
Sandwell Metropolitan Borough Council,https://www.sandwell.gov.uk/performance-spending/government-procurement-cards,10-Apr-23,Law & Governance,FACEBK  2WEFMNBUF2,Assistant Chief Executive (Excl SIU),2,ADVERTISING SERVICES,2023-24Q1_PC0106
Sandwell Metropolitan Borough Council,https://www.sandwell.gov.uk/performance-spending/government-procurement-cards,10-Apr-23,Law & Governance,FACEBK  47W5MQKUF2,Assistant Chief Executive (Excl SIU),2,ADVERTISING SERVICES,2023-24Q1_PC0107
Sandwell Metropolitan Borough Council,https://www.sandwell.gov.uk/performance-spending/government-procurement-cards,10-Apr-23,Law & Governance,FACEBK  K3543QFTF2,Assistant Chief Executive (Excl SIU),2,ADVERTISING SERVICES,2023-24Q1_PC0108
Sandwell Metropolitan Borough Council,https://www.sandwell.gov.uk/performance-spending/government-procurement-cards,10-Apr-23,Regeneration & Growth,OTTER.AI,Regeneration And The Economy,83.09,COMPUTER SOFTWARE STORES,2023-24Q1_PC0109
Sandwell Metropolitan Borough Council,https://www.sandwell.gov.uk/performance-spending/government-procurement-cards,10-Apr-23,Total ASCHWB,AMZNMKTPLACE AMAZON.CO,Total Adult Social Care,52.97,MISCELLANEOUS AND SPECIALTY RETAIL STORES,2023-24Q1_PC0110
Sandwell Metropolitan Borough Council,https://www.sandwell.gov.uk/performance-spending/government-procurement-cards,10-Apr-23,Total Borough Economy,BOOKER LTD - 38593354,Total Adult Social Care,235.36,"GROCERY STORES, SUPERMARKETS",2023-24Q1_PC0111
Sandwell Metropolitan Borough Council,https://www.sandwell.gov.uk/performance-spending/government-procurement-cards,10-Apr-23,Total Borough Economy,CO-OP GROUP 070370,Total Adult Social Care,30,"GROCERY STORES, SUPERMARKETS",2023-24Q1_PC0112
Sandwell Metropolitan Borough Council,https://www.sandwell.gov.uk/performance-spending/government-procurement-cards,10-Apr-23,Total Borough Economy,SAINSBURYS S/MKTS,Total Adult Social Care,6.45,"GROCERY STORES, SUPERMARKETS",2023-24Q1_PC0113
Sandwell Metropolitan Borough Council,https://www.sandwell.gov.uk/performance-spending/government-procurement-cards,10-Apr-23,Total Borough Economy,SPAR GREAT WYRLEY,Total Adult Social Care,22.15,"GROCERY STORES, SUPERMARKETS",2023-24Q1_PC0114
Sandwell Metropolitan Borough Council,https://www.sandwell.gov.uk/performance-spending/government-procurement-cards,10-Apr-23,Total Borough Economy,WILKO RETAIL LIMITED,Total Adult Social Care,18,MISCELLANEOUS GENERAL MERCHANDISE,2023-24Q1_PC0115
Sandwell Metropolitan Borough Council,https://www.sandwell.gov.uk/performance-spending/government-procurement-cards,11-Apr-23,Childrens Services,TESCO STORES 6161,Childrens Services,110.95,"GROCERY STORES, SUPERMARKETS",2023-24Q1_PC0116
Sandwell Metropolitan Borough Council,https://www.sandwell.gov.uk/performance-spending/government-procurement-cards,11-Apr-23,Regeneration & Growth,Amazon.co.uk XB6491L95,Regeneration And The Economy,49.97,DIRECT MARKETING-OTHER DIRECT MARKETERS/NOT ELSEW.,2023-24Q1_PC0117
Sandwell Metropolitan Borough Council,https://www.sandwell.gov.uk/performance-spending/government-procurement-cards,11-Apr-23,Total Borough Economy,Hobbycraft Trading Lim,Total Adult Social Care,24,"ARTIST SUPPLY STORES, CRAFT SHOPS",2023-24Q1_PC0118
Sandwell Metropolitan Borough Council,https://www.sandwell.gov.uk/performance-spending/government-procurement-cards,11-Apr-23,Total Borough Economy,VIKING OFFICE UK LIMIT,Total Adult Social Care,126.54,STATIONERY/OFFICE SUPPLIES/PRINTING & WRITING PAP.,2023-24Q1_PC0119
Sandwell Metropolitan Borough Council,https://www.sandwell.gov.uk/performance-spending/government-procurement-cards,12-Apr-23,Assistant Chief Executive,AMZNMKTPLACE AMAZON.CO,Assistant Chief Executive (Excl SIU),14.97,MISCELLANEOUS AND SPECIALTY RETAIL STORES,2023-24Q1_PC0120
Sandwell Metropolitan Borough Council,https://www.sandwell.gov.uk/performance-spending/government-procurement-cards,12-Apr-23,FINANCE (Inc SIU),PAYPAL  MIDFRDFORUM MI,Assistant Chief Executive (Excl SIU),65,"ASSOCIATIONS-CIVIC, SOCIAL, AND FRATERNAL",2023-24Q1_PC0121
Sandwell Metropolitan Borough Council,https://www.sandwell.gov.uk/performance-spending/government-procurement-cards,12-Apr-23,Law & Governance,SumUp   John Somervill,Assistant Chief Executive (Excl SIU),3,MISCELLANEOUS GENERAL MERCHANDISE,2023-24Q1_PC0122
Sandwell Metropolitan Borough Council,https://www.sandwell.gov.uk/performance-spending/government-procurement-cards,12-Apr-23,Childrens Services,POST OFFICE COUNTER,Childrens Services,13.2,POSTAL SERVICES-GOVERNMENT ONLY,2023-24Q1_PC0123
Sandwell Metropolitan Borough Council,https://www.sandwell.gov.uk/performance-spending/government-procurement-cards,12-Apr-23,Childrens Services,TESCO STORES 2770,Childrens Services,164.68,"GROCERY STORES, SUPERMARKETS",2023-24Q1_PC0124
Sandwell Metropolitan Borough Council,https://www.sandwell.gov.uk/performance-spending/government-procurement-cards,12-Apr-23,Childrens Services,TESCO STORES 4512,Childrens Services,3,"GROCERY STORES, SUPERMARKETS",2023-24Q1_PC0125
Sandwell Metropolitan Borough Council,https://www.sandwell.gov.uk/performance-spending/government-procurement-cards,12-Apr-23,Corporate Management,EastMidlandsCOM,Corporate Management,231.9,PASSENGER RAILWAYS,2023-24Q1_PC0126
Sandwell Metropolitan Borough Council,https://www.sandwell.gov.uk/performance-spending/government-procurement-cards,12-Apr-23,Corporate Management,trainline,Corporate Management,12.01,PASSENGER RAILWAYS,2023-24Q1_PC0127
Sandwell Metropolitan Borough Council,https://www.sandwell.gov.uk/performance-spending/government-procurement-cards,12-Apr-23,Regeneration & Growth,OTTER.AI,Regeneration And The Economy,-83.32,COMPUTER SOFTWARE STORES,2023-24Q1_PC0128
Sandwell Metropolitan Borough Council,https://www.sandwell.gov.uk/performance-spending/government-procurement-cards,12-Apr-23,Total ASCHWB,Amazon.co.uk Y73OR55N5,Total Adult Social Care,32.23,DIRECT MARKETING-OTHER DIRECT MARKETERS/NOT ELSEW.,2023-24Q1_PC0129
Sandwell Metropolitan Borough Council,https://www.sandwell.gov.uk/performance-spending/government-procurement-cards,12-Apr-23,Total ASCHWB,AMZNMktplace,Total Adult Social Care,19.43,MISCELLANEOUS AND SPECIALTY RETAIL STORES,2023-24Q1_PC0130
Sandwell Metropolitan Borough Council,https://www.sandwell.gov.uk/performance-spending/government-procurement-cards,12-Apr-23,Total ASCHWB,EB  CUCKOOING MASTERCL,Total Adult Social Care,84.91,BUSINESS SERVICES-NOT ELSEWHERE CLASSIFIED,2023-24Q1_PC0131
Sandwell Metropolitan Borough Council,https://www.sandwell.gov.uk/performance-spending/government-procurement-cards,12-Apr-23,Total ASCHWB,S STAFFS WATER PBN,Total Adult Social Care,360.51,"UTLTS-ELCTRC, GAS, HEATING OIL, SANITARY, WATER",2023-24Q1_PC0132
Sandwell Metropolitan Borough Council,https://www.sandwell.gov.uk/performance-spending/government-procurement-cards,12-Apr-23,Total ASCHWB,S STAFFS WATER PBN,Total Adult Social Care,66.34,"UTLTS-ELCTRC, GAS, HEATING OIL, SANITARY, WATER",2023-24Q1_PC0133
Sandwell Metropolitan Borough Council,https://www.sandwell.gov.uk/performance-spending/government-procurement-cards,12-Apr-23,Total ASCHWB,S STAFFS WATER PBN,Total Adult Social Care,173.93,"UTLTS-ELCTRC, GAS, HEATING OIL, SANITARY, WATER",2023-24Q1_PC0134
Sandwell Metropolitan Borough Council,https://www.sandwell.gov.uk/performance-spending/government-procurement-cards,12-Apr-23,Total Borough Economy,AMZNMktplace,Total Adult Social Care,18.95,MISCELLANEOUS AND SPECIALTY RETAIL STORES,2023-24Q1_PC0135
Sandwell Metropolitan Borough Council,https://www.sandwell.gov.uk/performance-spending/government-procurement-cards,12-Apr-23,Total Borough Economy,AMZNMktplace,Total Adult Social Care,18.95,MISCELLANEOUS AND SPECIALTY RETAIL STORES,2023-24Q1_PC0136
Sandwell Metropolitan Borough Council,https://www.sandwell.gov.uk/performance-spending/government-procurement-cards,12-Apr-23,Total Borough Economy,AMZNMktplace,Total Adult Social Care,18.95,MISCELLANEOUS AND SPECIALTY RETAIL STORES,2023-24Q1_PC0137
Sandwell Metropolitan Borough Council,https://www.sandwell.gov.uk/performance-spending/government-procurement-cards,12-Apr-23,Total Borough Economy,AMZNMktplace,Total Adult Social Care,18.95,MISCELLANEOUS AND SPECIALTY RETAIL STORES,2023-24Q1_PC0138
Sandwell Metropolitan Borough Council,https://www.sandwell.gov.uk/performance-spending/government-procurement-cards,12-Apr-23,Total Borough Economy,SAINSBURYS,Total Adult Social Care,36.8,"GROCERY STORES, SUPERMARKETS",2023-24Q1_PC0139
Sandwell Metropolitan Borough Council,https://www.sandwell.gov.uk/performance-spending/government-procurement-cards,12-Apr-23,Total Borough Economy,SAINSBURYS,Total Adult Social Care,2.5,"GROCERY STORES, SUPERMARKETS",2023-24Q1_PC0140
Sandwell Metropolitan Borough Council,https://www.sandwell.gov.uk/performance-spending/government-procurement-cards,12-Apr-23,Total Housing Revenue Account,STAFFORDSHIRE BUILDER,Total Housing Revenue Account,59.69,"BUILDING MATERIALS, LUMBER STORES",2023-24Q1_PC0141
Sandwell Metropolitan Borough Council,https://www.sandwell.gov.uk/performance-spending/government-procurement-cards,13-Apr-23,Assistant Chief Executive,AMZNMktplace,Assistant Chief Executive (Excl SIU),26.98,MISCELLANEOUS AND SPECIALTY RETAIL STORES,2023-24Q1_PC0142
Sandwell Metropolitan Borough Council,https://www.sandwell.gov.uk/performance-spending/government-procurement-cards,13-Apr-23,Assistant Chief Executive,AMZNMktplace,Assistant Chief Executive (Excl SIU),52.83,MISCELLANEOUS AND SPECIALTY RETAIL STORES,2023-24Q1_PC0143
Sandwell Metropolitan Borough Council,https://www.sandwell.gov.uk/performance-spending/government-procurement-cards,13-Apr-23,FINANCE (Inc SIU),Trainline.COM,Assistant Chief Executive (Excl SIU),67.96,PASSENGER RAILWAYS,2023-24Q1_PC0144
Sandwell Metropolitan Borough Council,https://www.sandwell.gov.uk/performance-spending/government-procurement-cards,13-Apr-23,Law & Governance,FACEBK  D98EEPXTF2,Assistant Chief Executive (Excl SIU),2,ADVERTISING SERVICES,2023-24Q1_PC0145
Sandwell Metropolitan Borough Council,https://www.sandwell.gov.uk/performance-spending/government-procurement-cards,13-Apr-23,Law & Governance,FACEBK  TRNP7QFTF2,Assistant Chief Executive (Excl SIU),3,ADVERTISING SERVICES,2023-24Q1_PC0146
Sandwell Metropolitan Borough Council,https://www.sandwell.gov.uk/performance-spending/government-procurement-cards,13-Apr-23,Law & Governance,FACEBK QL9B7QFTF2,Assistant Chief Executive (Excl SIU),2.18,ADVERTISING SERVICES,2023-24Q1_PC0147
Sandwell Metropolitan Borough Council,https://www.sandwell.gov.uk/performance-spending/government-procurement-cards,13-Apr-23,Childrens Services,AO RETAIL LIMITED,Childrens Services,289,HOUSEHOLD APPLIANCE STORES,2023-24Q1_PC0148
Sandwell Metropolitan Borough Council,https://www.sandwell.gov.uk/performance-spending/government-procurement-cards,13-Apr-23,Childrens Services,ASDA GROCERIES ONLINE,Childrens Services,-0.45,"GROCERY STORES, SUPERMARKETS",2023-24Q1_PC0149
Sandwell Metropolitan Borough Council,https://www.sandwell.gov.uk/performance-spending/government-procurement-cards,13-Apr-23,Childrens Services,ASDA GROCERIES ONLINE,Childrens Services,126.94,"GROCERY STORES, SUPERMARKETS",2023-24Q1_PC0150
Sandwell Metropolitan Borough Council,https://www.sandwell.gov.uk/performance-spending/government-procurement-cards,13-Apr-23,Childrens Services,BEEBYS BUBBLES,Childrens Services,217.5,"CLEANING, GARMENT, AND LAUNDRY SERVICES",2023-24Q1_PC0151
Sandwell Metropolitan Borough Council,https://www.sandwell.gov.uk/performance-spending/government-procurement-cards,13-Apr-23,Childrens Services,trainline,Childrens Services,97.81,PASSENGER RAILWAYS,2023-24Q1_PC0152
Sandwell Metropolitan Borough Council,https://www.sandwell.gov.uk/performance-spending/government-procurement-cards,13-Apr-23,Childrens Services,Trainline.COM,Childrens Services,141.63,PASSENGER RAILWAYS,2023-24Q1_PC0153
Sandwell Metropolitan Borough Council,https://www.sandwell.gov.uk/performance-spending/government-procurement-cards,13-Apr-23,Corporate Management,AMZNMktplace,Corporate Management,44.99,MISCELLANEOUS AND SPECIALTY RETAIL STORES,2023-24Q1_PC0154
Sandwell Metropolitan Borough Council,https://www.sandwell.gov.uk/performance-spending/government-procurement-cards,13-Apr-23,Corporate Management,AMZNMktplace,Corporate Management,27.98,MISCELLANEOUS AND SPECIALTY RETAIL STORES,2023-24Q1_PC0155
Sandwell Metropolitan Borough Council,https://www.sandwell.gov.uk/performance-spending/government-procurement-cards,13-Apr-23,Regeneration & Growth,PROCONFERENCES.COM,Regeneration And The Economy,130.8,"COLLEGES, UNIV, PRO SCHOOLS, JUNIOR COLLEGES",2023-24Q1_PC0156
Sandwell Metropolitan Borough Council,https://www.sandwell.gov.uk/performance-spending/government-procurement-cards,13-Apr-23,Regeneration & Growth,PROCONFERENCES.COM,Regeneration And The Economy,130.8,"COLLEGES, UNIV, PRO SCHOOLS, JUNIOR COLLEGES",2023-24Q1_PC0157
Sandwell Metropolitan Borough Council,https://www.sandwell.gov.uk/performance-spending/government-procurement-cards,13-Apr-23,Total ASCHWB,Amazon.co.uk BZ8JQ8HM5,Total Adult Social Care,73.13,DIRECT MARKETING-OTHER DIRECT MARKETERS/NOT ELSEW.,2023-24Q1_PC0158
Sandwell Metropolitan Borough Council,https://www.sandwell.gov.uk/performance-spending/government-procurement-cards,13-Apr-23,Total ASCHWB,Amazon.co.uk C56TE50D5,Total Adult Social Care,32.24,DIRECT MARKETING-OTHER DIRECT MARKETERS/NOT ELSEW.,2023-24Q1_PC0159
Sandwell Metropolitan Borough Council,https://www.sandwell.gov.uk/performance-spending/government-procurement-cards,13-Apr-23,Total ASCHWB,AMZNMktplace,Total Adult Social Care,37.39,MISCELLANEOUS AND SPECIALTY RETAIL STORES,2023-24Q1_PC0160
Sandwell Metropolitan Borough Council,https://www.sandwell.gov.uk/performance-spending/government-procurement-cards,13-Apr-23,Total ASCHWB,AMZNMktplace,Total Adult Social Care,81.44,MISCELLANEOUS AND SPECIALTY RETAIL STORES,2023-24Q1_PC0161
Sandwell Metropolitan Borough Council,https://www.sandwell.gov.uk/performance-spending/government-procurement-cards,13-Apr-23,Total ASCHWB,AMZNMktplace,Total Adult Social Care,160.28,MISCELLANEOUS AND SPECIALTY RETAIL STORES,2023-24Q1_PC0162
Sandwell Metropolitan Borough Council,https://www.sandwell.gov.uk/performance-spending/government-procurement-cards,13-Apr-23,Total Borough Economy,AMZNMktplace,Total Adult Social Care,361.43,MISCELLANEOUS AND SPECIALTY RETAIL STORES,2023-24Q1_PC0163
Sandwell Metropolitan Borough Council,https://www.sandwell.gov.uk/performance-spending/government-procurement-cards,13-Apr-23,Total Borough Economy,AMZNMKTPLACE AMAZON.CO,Total Adult Social Care,38.59,MISCELLANEOUS AND SPECIALTY RETAIL STORES,2023-24Q1_PC0164
Sandwell Metropolitan Borough Council,https://www.sandwell.gov.uk/performance-spending/government-procurement-cards,13-Apr-23,Total Borough Economy,AMZNMKTPLACE AMAZON.CO,Total Adult Social Care,133.82,MISCELLANEOUS AND SPECIALTY RETAIL STORES,2023-24Q1_PC0165
Sandwell Metropolitan Borough Council,https://www.sandwell.gov.uk/performance-spending/government-procurement-cards,13-Apr-23,Total Borough Economy,ASDA SUPERSTORE,Total Adult Social Care,44.5,"GROCERY STORES, SUPERMARKETS",2023-24Q1_PC0166
Sandwell Metropolitan Borough Council,https://www.sandwell.gov.uk/performance-spending/government-procurement-cards,13-Apr-23,Total Borough Economy,ICELAND 1603,Total Adult Social Care,7.75,"GROCERY STORES, SUPERMARKETS",2023-24Q1_PC0167
Sandwell Metropolitan Borough Council,https://www.sandwell.gov.uk/performance-spending/government-procurement-cards,14-Apr-23,Assistant Chief Executive,Amazon.co.uk 3J32O8NY5,Assistant Chief Executive (Excl SIU),29.98,DIRECT MARKETING-OTHER DIRECT MARKETERS/NOT ELSEW.,2023-24Q1_PC0168
Sandwell Metropolitan Borough Council,https://www.sandwell.gov.uk/performance-spending/government-procurement-cards,14-Apr-23,Law & Governance,FACEBK  JVPN7PKTF2,Assistant Chief Executive (Excl SIU),5,ADVERTISING SERVICES,2023-24Q1_PC0169
Sandwell Metropolitan Borough Council,https://www.sandwell.gov.uk/performance-spending/government-procurement-cards,14-Apr-23,Total Central Items,KIMPTON CLOCKTOWER,Assistant Chief Executive (Excl SIU),160.2,"EATING PLACES, RESTAURANTS",2023-24Q1_PC0170
Sandwell Metropolitan Borough Council,https://www.sandwell.gov.uk/performance-spending/government-procurement-cards,14-Apr-23,Childrens Services,Amazon.co.uk HM7JN6O55,Childrens Services,6.49,DIRECT MARKETING-OTHER DIRECT MARKETERS/NOT ELSEW.,2023-24Q1_PC0171
Sandwell Metropolitan Borough Council,https://www.sandwell.gov.uk/performance-spending/government-procurement-cards,14-Apr-23,Total ASCHWB,Amazon.co.uk 028FA4KI5,Total Adult Social Care,23.51,DIRECT MARKETING-OTHER DIRECT MARKETERS/NOT ELSEW.,2023-24Q1_PC0172
Sandwell Metropolitan Borough Council,https://www.sandwell.gov.uk/performance-spending/government-procurement-cards,14-Apr-23,Total ASCHWB,Amazon.co.uk E05WQ82L5,Total Adult Social Care,13.48,DIRECT MARKETING-OTHER DIRECT MARKETERS/NOT ELSEW.,2023-24Q1_PC0173
Sandwell Metropolitan Borough Council,https://www.sandwell.gov.uk/performance-spending/government-procurement-cards,14-Apr-23,Total ASCHWB,Amazon.co.uk JG2PK66Z5,Total Adult Social Care,109.99,DIRECT MARKETING-OTHER DIRECT MARKETERS/NOT ELSEW.,2023-24Q1_PC0174
Sandwell Metropolitan Borough Council,https://www.sandwell.gov.uk/performance-spending/government-procurement-cards,14-Apr-23,Total ASCHWB,AMZNMktplace,Total Adult Social Care,85.49,MISCELLANEOUS AND SPECIALTY RETAIL STORES,2023-24Q1_PC0175
Sandwell Metropolitan Borough Council,https://www.sandwell.gov.uk/performance-spending/government-procurement-cards,14-Apr-23,Total ASCHWB,SQ  JOANNES FLOWERS,Total Adult Social Care,20,MISCELLANEOUS GENERAL MERCHANDISE,2023-24Q1_PC0176
Sandwell Metropolitan Borough Council,https://www.sandwell.gov.uk/performance-spending/government-procurement-cards,14-Apr-23,Total ASCHWB,SumUp   A J tyre Servi,Total Adult Social Care,165,"CLEANING, GARMENT, AND LAUNDRY SERVICES",2023-24Q1_PC0177
Sandwell Metropolitan Borough Council,https://www.sandwell.gov.uk/performance-spending/government-procurement-cards,14-Apr-23,Total ASCHWB,TCD,Total Adult Social Care,209.99,INDUSTRIAL SUPPLIES NOT ELSEWHERE CLASSIFIED,2023-24Q1_PC0178
Sandwell Metropolitan Borough Council,https://www.sandwell.gov.uk/performance-spending/government-procurement-cards,14-Apr-23,Total Borough Economy,Etsy.com - Multiple Sh,Total Adult Social Care,65.41,ACCESSORY AND APPAREL STORES-MISCELLANEOUS,2023-24Q1_PC0179
Sandwell Metropolitan Borough Council,https://www.sandwell.gov.uk/performance-spending/government-procurement-cards,14-Apr-23,Total Borough Economy,J AND A INTERNATIONAL,Total Adult Social Care,414.66,MEN'S/WOMEN'S/CHILDREN'S UNIFORMS/COMMERCIAL CLOTH,2023-24Q1_PC0180
Sandwell Metropolitan Borough Council,https://www.sandwell.gov.uk/performance-spending/government-procurement-cards,14-Apr-23,Total Borough Economy,SP FARMSTREAM LTD,Total Adult Social Care,353.96,COMPUTER SOFTWARE STORES,2023-24Q1_PC0181
Sandwell Metropolitan Borough Council,https://www.sandwell.gov.uk/performance-spending/government-procurement-cards,14-Apr-23,Total Borough Economy,SP FARMSTREAM LTD,Total Adult Social Care,240,COMPUTER SOFTWARE STORES,2023-24Q1_PC0182
Sandwell Metropolitan Borough Council,https://www.sandwell.gov.uk/performance-spending/government-procurement-cards,14-Apr-23,Total Borough Economy,WWW.TTS-GROUPS.CO.UK,Total Adult Social Care,126.53,"OFFICE, SCHOOL SUPPLY, AND STATIONERY STORES",2023-24Q1_PC0183
Sandwell Metropolitan Borough Council,https://www.sandwell.gov.uk/performance-spending/government-procurement-cards,14-Apr-23,Total Housing Revenue Account,Amazon.co.uk Q30SV9ZB5,Total Housing Revenue Account,144.98,DIRECT MARKETING-OTHER DIRECT MARKETERS/NOT ELSEW.,2023-24Q1_PC0184
Sandwell Metropolitan Borough Council,https://www.sandwell.gov.uk/performance-spending/government-procurement-cards,14-Apr-23,Total Housing Revenue Account,WWW.SCREWFIX.COM,Total Housing Revenue Account,49.49,"BUILDING MATERIALS, LUMBER STORES",2023-24Q1_PC0185
Sandwell Metropolitan Borough Council,https://www.sandwell.gov.uk/performance-spending/government-procurement-cards,17-Apr-23,FINANCE (Inc SIU),AMZNMktplace,Assistant Chief Executive (Excl SIU),24.95,MISCELLANEOUS AND SPECIALTY RETAIL STORES,2023-24Q1_PC0186
Sandwell Metropolitan Borough Council,https://www.sandwell.gov.uk/performance-spending/government-procurement-cards,17-Apr-23,FINANCE (Inc SIU),REMARKABLE,Assistant Chief Executive (Excl SIU),2.99,ELECTRONIC SALES,2023-24Q1_PC0187
Sandwell Metropolitan Borough Council,https://www.sandwell.gov.uk/performance-spending/government-procurement-cards,17-Apr-23,Law & Governance,Amazon Prime CQ27B5S45,Assistant Chief Executive (Excl SIU),8.99,DIRECT MARKETING-CONTINUITY/SUBSCRIPTION MERCHANTS,2023-24Q1_PC0188
Sandwell Metropolitan Borough Council,https://www.sandwell.gov.uk/performance-spending/government-procurement-cards,17-Apr-23,Law & Governance,FACEBK  23AHTQKUF2,Assistant Chief Executive (Excl SIU),7,ADVERTISING SERVICES,2023-24Q1_PC0189
Sandwell Metropolitan Borough Council,https://www.sandwell.gov.uk/performance-spending/government-procurement-cards,17-Apr-23,Childrens Services,SPORTSDIRECT.COM,Childrens Services,-47.96,"SPORTS APPAREL, RIDING APPAREL STORES",2023-24Q1_PC0190
Sandwell Metropolitan Borough Council,https://www.sandwell.gov.uk/performance-spending/government-procurement-cards,17-Apr-23,Childrens Services,SPOTIFY,Childrens Services,9.99,DIGITAL GOODS AUDIOVISUAL MEDIA,2023-24Q1_PC0191
Sandwell Metropolitan Borough Council,https://www.sandwell.gov.uk/performance-spending/government-procurement-cards,17-Apr-23,Regeneration & Growth,PENNON WATER SERVICES,Regeneration And The Economy,1740.5,"UTLTS-ELCTRC, GAS, HEATING OIL, SANITARY, WATER",2023-24Q1_PC0192
Sandwell Metropolitan Borough Council,https://www.sandwell.gov.uk/performance-spending/government-procurement-cards,17-Apr-23,Regeneration & Growth,SAINSBURYS,Regeneration And The Economy,42.5,"GROCERY STORES, SUPERMARKETS",2023-24Q1_PC0193
Sandwell Metropolitan Borough Council,https://www.sandwell.gov.uk/performance-spending/government-procurement-cards,17-Apr-23,Regeneration & Growth,Trainline.COM,Regeneration And The Economy,106.17,PASSENGER RAILWAYS,2023-24Q1_PC0194
Sandwell Metropolitan Borough Council,https://www.sandwell.gov.uk/performance-spending/government-procurement-cards,17-Apr-23,Regeneration & Growth,WWW.KREATIVEBUNTING.CO,Regeneration And The Economy,225.3,"GIFT, CARD, NOVELTY AND SOUVENIR SHOPS",2023-24Q1_PC0195
Sandwell Metropolitan Borough Council,https://www.sandwell.gov.uk/performance-spending/government-procurement-cards,17-Apr-23,Total ASCHWB,Amazon Prime ZK1TL4AY5,Total Adult Social Care,8.99,DIRECT MARKETING-CONTINUITY/SUBSCRIPTION MERCHANTS,2023-24Q1_PC0196
Sandwell Metropolitan Borough Council,https://www.sandwell.gov.uk/performance-spending/government-procurement-cards,17-Apr-23,Total Borough Economy,ADOBE ACROPRO SUBS,Total Adult Social Care,19.97,COMPUTER SOFTWARE STORES,2023-24Q1_PC0197
Sandwell Metropolitan Borough Council,https://www.sandwell.gov.uk/performance-spending/government-procurement-cards,17-Apr-23,Total Borough Economy,AMZNMKTPLACE AMAZON.CO,Total Adult Social Care,-85.31,MISCELLANEOUS AND SPECIALTY RETAIL STORES,2023-24Q1_PC0198
Sandwell Metropolitan Borough Council,https://www.sandwell.gov.uk/performance-spending/government-procurement-cards,17-Apr-23,Total Borough Economy,AMZNMKTPLACE AMAZON.CO,Total Adult Social Care,-107.94,MISCELLANEOUS AND SPECIALTY RETAIL STORES,2023-24Q1_PC0199
Sandwell Metropolitan Borough Council,https://www.sandwell.gov.uk/performance-spending/government-procurement-cards,17-Apr-23,Total Borough Economy,AMZNMKTPLACE AMAZON.CO,Total Adult Social Care,602.96,MISCELLANEOUS AND SPECIALTY RETAIL STORES,2023-24Q1_PC0200
Sandwell Metropolitan Borough Council,https://www.sandwell.gov.uk/performance-spending/government-procurement-cards,17-Apr-23,Total Borough Economy,Canva  03755-16324217,Total Adult Social Care,35,"COMMERCIAL ART, GRAPHICS, PHOTOGRAPHY",2023-24Q1_PC0201
Sandwell Metropolitan Borough Council,https://www.sandwell.gov.uk/performance-spending/government-procurement-cards,17-Apr-23,Total Borough Economy,Canva  03755-16377124,Total Adult Social Care,35,"COMMERCIAL ART, GRAPHICS, PHOTOGRAPHY",2023-24Q1_PC0202
Sandwell Metropolitan Borough Council,https://www.sandwell.gov.uk/performance-spending/government-procurement-cards,17-Apr-23,Total Borough Economy,Canva  03755-16391662,Total Adult Social Care,35,"COMMERCIAL ART, GRAPHICS, PHOTOGRAPHY",2023-24Q1_PC0203
Sandwell Metropolitan Borough Council,https://www.sandwell.gov.uk/performance-spending/government-procurement-cards,17-Apr-23,Total Borough Economy,SANDWELL VALLEY VISITO,Total Adult Social Care,0.01,GOVERNMENT SERVICES-NOT ELSEWHERE CLASSIFIED,2023-24Q1_PC0204
Sandwell Metropolitan Borough Council,https://www.sandwell.gov.uk/performance-spending/government-procurement-cards,17-Apr-23,Total Housing Revenue Account,DVLA DRIVERS TACHOGRAP,Total Housing Revenue Account,19,GOVERNMENT SERVICES-NOT ELSEWHERE CLASSIFIED,2023-24Q1_PC0205
Sandwell Metropolitan Borough Council,https://www.sandwell.gov.uk/performance-spending/government-procurement-cards,17-Apr-23,Total Housing Revenue Account,TRAVIS PERKINS,Total Housing Revenue Account,11.75,"BUILDING MATERIALS, LUMBER STORES",2023-24Q1_PC0206
Sandwell Metropolitan Borough Council,https://www.sandwell.gov.uk/performance-spending/government-procurement-cards,18-Apr-23,Childrens Services,AMZNMktplace,Childrens Services,39.99,MISCELLANEOUS AND SPECIALTY RETAIL STORES,2023-24Q1_PC0207
Sandwell Metropolitan Borough Council,https://www.sandwell.gov.uk/performance-spending/government-procurement-cards,18-Apr-23,Childrens Services,ASDA SUPERSTORE 04236,Childrens Services,55.88,"GROCERY STORES, SUPERMARKETS",2023-24Q1_PC0208
Sandwell Metropolitan Borough Council,https://www.sandwell.gov.uk/performance-spending/government-procurement-cards,18-Apr-23,Childrens Services,BIDFOOD,Childrens Services,233.05,WHOLESALE CLUBS,2023-24Q1_PC0209
Sandwell Metropolitan Borough Council,https://www.sandwell.gov.uk/performance-spending/government-procurement-cards,18-Apr-23,Childrens Services,SumUp   Birmingham Emp,Childrens Services,130,"ORGANIZATIONS, MEMBERSHIP-NOT ELSEWHERE CLASSIFIED",2023-24Q1_PC0210
Sandwell Metropolitan Borough Council,https://www.sandwell.gov.uk/performance-spending/government-procurement-cards,18-Apr-23,Childrens Services,TESCO STORES 2770,Childrens Services,130.67,"GROCERY STORES, SUPERMARKETS",2023-24Q1_PC0211
Sandwell Metropolitan Borough Council,https://www.sandwell.gov.uk/performance-spending/government-procurement-cards,18-Apr-23,Housing & Assets Total,Amazon.co.uk 2N1LE1JS5,Corporate Management,12.02,DIRECT MARKETING-OTHER DIRECT MARKETERS/NOT ELSEW.,2023-24Q1_PC0212
Sandwell Metropolitan Borough Council,https://www.sandwell.gov.uk/performance-spending/government-procurement-cards,18-Apr-23,Housing & Assets Total,AMZNMktplace,Corporate Management,149.98,MISCELLANEOUS AND SPECIALTY RETAIL STORES,2023-24Q1_PC0213
Sandwell Metropolitan Borough Council,https://www.sandwell.gov.uk/performance-spending/government-procurement-cards,18-Apr-23,Individual School Budgets With Inclusion,ASDA STORES,Individual School Budgets With Inclusion,19.97,"GROCERY STORES, SUPERMARKETS",2023-24Q1_PC0214
Sandwell Metropolitan Borough Council,https://www.sandwell.gov.uk/performance-spending/government-procurement-cards,18-Apr-23,Individual School Budgets With Inclusion,UBER    EATS,Individual School Budgets With Inclusion,51.94,"EATING PLACES, RESTAURANTS",2023-24Q1_PC0215
Sandwell Metropolitan Borough Council,https://www.sandwell.gov.uk/performance-spending/government-procurement-cards,18-Apr-23,Total ASCHWB,SMARTY CO UK,Total Adult Social Care,20,TELECOM INCL PREPAID/RECURRING PHONE SVCS,2023-24Q1_PC0216
Sandwell Metropolitan Borough Council,https://www.sandwell.gov.uk/performance-spending/government-procurement-cards,18-Apr-23,Total ASCHWB,TVLICENSING.CO.UK,Total Adult Social Care,159,"CONSULTING, MANAGEMENT, AND PUBLIC RELATIONS SVCS",2023-24Q1_PC0217
Sandwell Metropolitan Borough Council,https://www.sandwell.gov.uk/performance-spending/government-procurement-cards,18-Apr-23,Total Borough Economy,AMZNMktplace,Total Adult Social Care,25.9,MISCELLANEOUS AND SPECIALTY RETAIL STORES,2023-24Q1_PC0218
Sandwell Metropolitan Borough Council,https://www.sandwell.gov.uk/performance-spending/government-procurement-cards,18-Apr-23,Total Borough Economy,AMZNMktplace,Total Adult Social Care,36.91,MISCELLANEOUS AND SPECIALTY RETAIL STORES,2023-24Q1_PC0219
Sandwell Metropolitan Borough Council,https://www.sandwell.gov.uk/performance-spending/government-procurement-cards,18-Apr-23,Total Borough Economy,APPOINTEDD,Total Adult Social Care,68,COMPUTER SOFTWARE STORES,2023-24Q1_PC0220
Sandwell Metropolitan Borough Council,https://www.sandwell.gov.uk/performance-spending/government-procurement-cards,18-Apr-23,Total Borough Economy,ASDA STORES 4453,Total Adult Social Care,12.05,"GROCERY STORES, SUPERMARKETS",2023-24Q1_PC0221
Sandwell Metropolitan Borough Council,https://www.sandwell.gov.uk/performance-spending/government-procurement-cards,18-Apr-23,Total Borough Economy,POST OFFICE COUNTER,Total Adult Social Care,150,POSTAL SERVICES-GOVERNMENT ONLY,2023-24Q1_PC0222
Sandwell Metropolitan Borough Council,https://www.sandwell.gov.uk/performance-spending/government-procurement-cards,18-Apr-23,Total Borough Economy,SANDWELL M B C CENTRAL,Total Adult Social Care,5.94,GOVERNMENT SERVICES-NOT ELSEWHERE CLASSIFIED,2023-24Q1_PC0223
Sandwell Metropolitan Borough Council,https://www.sandwell.gov.uk/performance-spending/government-procurement-cards,18-Apr-23,Total Borough Economy,SP FARMSTREAM LTD,Total Adult Social Care,76.91,COMPUTER SOFTWARE STORES,2023-24Q1_PC0224
Sandwell Metropolitan Borough Council,https://www.sandwell.gov.uk/performance-spending/government-procurement-cards,18-Apr-23,Total Borough Economy,TESCO STORES 6197,Total Adult Social Care,9,"GROCERY STORES, SUPERMARKETS",2023-24Q1_PC0225
Sandwell Metropolitan Borough Council,https://www.sandwell.gov.uk/performance-spending/government-procurement-cards,18-Apr-23,Total Borough Economy,TESCO STORES 6197,Total Adult Social Care,26,"GROCERY STORES, SUPERMARKETS",2023-24Q1_PC0226
Sandwell Metropolitan Borough Council,https://www.sandwell.gov.uk/performance-spending/government-procurement-cards,18-Apr-23,Total Borough Economy,TESCO STORES 6197,Total Adult Social Care,62.34,"GROCERY STORES, SUPERMARKETS",2023-24Q1_PC0227
Sandwell Metropolitan Borough Council,https://www.sandwell.gov.uk/performance-spending/government-procurement-cards,19-Apr-23,FINANCE (Inc SIU),PAYPAL  MIDFRDFORUM MI,Assistant Chief Executive (Excl SIU),65,"ASSOCIATIONS-CIVIC, SOCIAL, AND FRATERNAL",2023-24Q1_PC0228
Sandwell Metropolitan Borough Council,https://www.sandwell.gov.uk/performance-spending/government-procurement-cards,19-Apr-23,Law & Governance,SAINSBURYS S/MKTS,Assistant Chief Executive (Excl SIU),5.94,"GROCERY STORES, SUPERMARKETS",2023-24Q1_PC0229
Sandwell Metropolitan Borough Council,https://www.sandwell.gov.uk/performance-spending/government-procurement-cards,19-Apr-23,Childrens Services,ASDA GROCERIES ONLINE,Childrens Services,66,"GROCERY STORES, SUPERMARKETS",2023-24Q1_PC0230
Sandwell Metropolitan Borough Council,https://www.sandwell.gov.uk/performance-spending/government-procurement-cards,19-Apr-23,Childrens Services,ASDA GROCERIES ONLINE,Childrens Services,17.5,"GROCERY STORES, SUPERMARKETS",2023-24Q1_PC0231
Sandwell Metropolitan Borough Council,https://www.sandwell.gov.uk/performance-spending/government-procurement-cards,19-Apr-23,Childrens Services,ASDA SUPERSTORE 04236,Childrens Services,18.1,"GROCERY STORES, SUPERMARKETS",2023-24Q1_PC0232
Sandwell Metropolitan Borough Council,https://www.sandwell.gov.uk/performance-spending/government-procurement-cards,19-Apr-23,Childrens Services,WWW.ARGOS.CO.UK,Childrens Services,15,DEPARTMENT STORES,2023-24Q1_PC0233
Sandwell Metropolitan Borough Council,https://www.sandwell.gov.uk/performance-spending/government-procurement-cards,19-Apr-23,Childrens Services,WWW.SCREWFIX.COM,Childrens Services,10.44,"BUILDING MATERIALS, LUMBER STORES",2023-24Q1_PC0234
Sandwell Metropolitan Borough Council,https://www.sandwell.gov.uk/performance-spending/government-procurement-cards,19-Apr-23,Housing & Assets Total,TRAVELODGE,Corporate Management,347.76,TRAVELODGE,2023-24Q1_PC0235
Sandwell Metropolitan Borough Council,https://www.sandwell.gov.uk/performance-spending/government-procurement-cards,19-Apr-23,Housing & Assets Total,TRAVELODGE,Corporate Management,90.76,TRAVELODGE,2023-24Q1_PC0236
Sandwell Metropolitan Borough Council,https://www.sandwell.gov.uk/performance-spending/government-procurement-cards,19-Apr-23,Individual School Budgets With Inclusion,ASDA GROCERIES ONLINE,Individual School Budgets With Inclusion,192.55,"GROCERY STORES, SUPERMARKETS",2023-24Q1_PC0237
Sandwell Metropolitan Borough Council,https://www.sandwell.gov.uk/performance-spending/government-procurement-cards,19-Apr-23,Individual School Budgets With Inclusion,EPAY.ED.AC.UK,Individual School Budgets With Inclusion,80,"COLLEGES, UNIV, PRO SCHOOLS, JUNIOR COLLEGES",2023-24Q1_PC0238
Sandwell Metropolitan Borough Council,https://www.sandwell.gov.uk/performance-spending/government-procurement-cards,19-Apr-23,Total Public Health,Amazon.co.uk U89DG3PP5,Public Health,46.28,DIRECT MARKETING-OTHER DIRECT MARKETERS/NOT ELSEW.,2023-24Q1_PC0239
Sandwell Metropolitan Borough Council,https://www.sandwell.gov.uk/performance-spending/government-procurement-cards,19-Apr-23,Total ASCHWB,HILTON,Total Adult Social Care,116.5,HILTON,2023-24Q1_PC0240
Sandwell Metropolitan Borough Council,https://www.sandwell.gov.uk/performance-spending/government-procurement-cards,19-Apr-23,Total ASCHWB,OVO Energy Ltd,Total Adult Social Care,115.78,"UTLTS-ELCTRC, GAS, HEATING OIL, SANITARY, WATER",2023-24Q1_PC0241
Sandwell Metropolitan Borough Council,https://www.sandwell.gov.uk/performance-spending/government-procurement-cards,19-Apr-23,Total ASCHWB,S STAFFS WATER PBN,Total Adult Social Care,85.61,"UTLTS-ELCTRC, GAS, HEATING OIL, SANITARY, WATER",2023-24Q1_PC0242
Sandwell Metropolitan Borough Council,https://www.sandwell.gov.uk/performance-spending/government-procurement-cards,19-Apr-23,Total Borough Economy,Amazon.co.uk 3D8H27525,Total Adult Social Care,18.43,DIRECT MARKETING-OTHER DIRECT MARKETERS/NOT ELSEW.,2023-24Q1_PC0243
Sandwell Metropolitan Borough Council,https://www.sandwell.gov.uk/performance-spending/government-procurement-cards,19-Apr-23,Total Borough Economy,Amazon.co.uk VN0TX6NX5,Total Adult Social Care,64.48,DIRECT MARKETING-OTHER DIRECT MARKETERS/NOT ELSEW.,2023-24Q1_PC0244
Sandwell Metropolitan Borough Council,https://www.sandwell.gov.uk/performance-spending/government-procurement-cards,19-Apr-23,Total Borough Economy,AMZNMktplace,Total Adult Social Care,23.64,MISCELLANEOUS AND SPECIALTY RETAIL STORES,2023-24Q1_PC0245
Sandwell Metropolitan Borough Council,https://www.sandwell.gov.uk/performance-spending/government-procurement-cards,19-Apr-23,Total Borough Economy,B & Q 1357,Total Adult Social Care,237.5,HOME SUPPLY WAREHOUSE STORES,2023-24Q1_PC0246
Sandwell Metropolitan Borough Council,https://www.sandwell.gov.uk/performance-spending/government-procurement-cards,19-Apr-23,Total Borough Economy,GROUP FOR ED IN MUSEUM,Total Adult Social Care,105,"ORGANIZATIONS, CHARITABLE AND SOCIAL SERVICES",2023-24Q1_PC0247
Sandwell Metropolitan Borough Council,https://www.sandwell.gov.uk/performance-spending/government-procurement-cards,19-Apr-23,Total Borough Economy,TESCO STORES 6141,Total Adult Social Care,10.13,"GROCERY STORES, SUPERMARKETS",2023-24Q1_PC0248
Sandwell Metropolitan Borough Council,https://www.sandwell.gov.uk/performance-spending/government-procurement-cards,19-Apr-23,Total Borough Economy,WWW.PARRS.CO.UK,Total Adult Social Care,183.54,HARDWARE EQUIPMENT AND SUPPLIES,2023-24Q1_PC0249
Sandwell Metropolitan Borough Council,https://www.sandwell.gov.uk/performance-spending/government-procurement-cards,19-Apr-23,Total Housing Revenue Account,POST OFFICE COUNTER,Total Housing Revenue Account,55,POSTAL SERVICES-GOVERNMENT ONLY,2023-24Q1_PC0250
Sandwell Metropolitan Borough Council,https://www.sandwell.gov.uk/performance-spending/government-procurement-cards,19-Apr-23,Total Housing Revenue Account,SCREWFIX DIR LTD,Total Housing Revenue Account,28.45,"BUILDING MATERIALS, LUMBER STORES",2023-24Q1_PC0251
Sandwell Metropolitan Borough Council,https://www.sandwell.gov.uk/performance-spending/government-procurement-cards,20-Apr-23,FINANCE (Inc SIU),PAYPAL  MIDFRDFORUM MI,Assistant Chief Executive (Excl SIU),65,"ASSOCIATIONS-CIVIC, SOCIAL, AND FRATERNAL",2023-24Q1_PC0252
Sandwell Metropolitan Borough Council,https://www.sandwell.gov.uk/performance-spending/government-procurement-cards,20-Apr-23,FINANCE (Inc SIU),PAYPAL  MIDFRDFORUM MI,Assistant Chief Executive (Excl SIU),65,"ASSOCIATIONS-CIVIC, SOCIAL, AND FRATERNAL",2023-24Q1_PC0253
Sandwell Metropolitan Borough Council,https://www.sandwell.gov.uk/performance-spending/government-procurement-cards,20-Apr-23,Law & Governance,FACEBK  DQHVLPFUF2,Assistant Chief Executive (Excl SIU),12,ADVERTISING SERVICES,2023-24Q1_PC0254
Sandwell Metropolitan Borough Council,https://www.sandwell.gov.uk/performance-spending/government-procurement-cards,20-Apr-23,Law & Governance,www.papajohn s.co.uk,Assistant Chief Executive (Excl SIU),31.46,FAST FOOD RESTAURANTS,2023-24Q1_PC0255
Sandwell Metropolitan Borough Council,https://www.sandwell.gov.uk/performance-spending/government-procurement-cards,20-Apr-23,Childrens Services,Amazon.co.uk J99861BI5,Childrens Services,13,DIRECT MARKETING-OTHER DIRECT MARKETERS/NOT ELSEW.,2023-24Q1_PC0256
Sandwell Metropolitan Borough Council,https://www.sandwell.gov.uk/performance-spending/government-procurement-cards,20-Apr-23,Childrens Services,AMZNMktplace,Childrens Services,9.98,MISCELLANEOUS AND SPECIALTY RETAIL STORES,2023-24Q1_PC0257
Sandwell Metropolitan Borough Council,https://www.sandwell.gov.uk/performance-spending/government-procurement-cards,20-Apr-23,Childrens Services,AMZNMktplace,Childrens Services,65.45,MISCELLANEOUS AND SPECIALTY RETAIL STORES,2023-24Q1_PC0258
Sandwell Metropolitan Borough Council,https://www.sandwell.gov.uk/performance-spending/government-procurement-cards,20-Apr-23,Childrens Services,TESCO STORES 2770,Childrens Services,75.98,"GROCERY STORES, SUPERMARKETS",2023-24Q1_PC0259
Sandwell Metropolitan Borough Council,https://www.sandwell.gov.uk/performance-spending/government-procurement-cards,20-Apr-23,Childrens Services,TRAVELODGE,Childrens Services,180.27,TRAVELODGE,2023-24Q1_PC0260
Sandwell Metropolitan Borough Council,https://www.sandwell.gov.uk/performance-spending/government-procurement-cards,20-Apr-23,Housing & Assets Total,Amazon Prime GK8MS4955,Corporate Management,8.99,DIRECT MARKETING-CONTINUITY/SUBSCRIPTION MERCHANTS,2023-24Q1_PC0261
Sandwell Metropolitan Borough Council,https://www.sandwell.gov.uk/performance-spending/government-procurement-cards,20-Apr-23,Law & Governance,SAINSBURYS S/MKTS,Dead SeRCOP,18,"GROCERY STORES, SUPERMARKETS",2023-24Q1_PC0262
Sandwell Metropolitan Borough Council,https://www.sandwell.gov.uk/performance-spending/government-procurement-cards,20-Apr-23,Individual School Budgets With Inclusion,Amazon.co.uk B55JN5R85,Individual School Budgets With Inclusion,96.9,DIRECT MARKETING-OTHER DIRECT MARKETERS/NOT ELSEW.,2023-24Q1_PC0263
Sandwell Metropolitan Borough Council,https://www.sandwell.gov.uk/performance-spending/government-procurement-cards,20-Apr-23,Individual School Budgets With Inclusion,AMZNMktplace,Individual School Budgets With Inclusion,20.98,MISCELLANEOUS AND SPECIALTY RETAIL STORES,2023-24Q1_PC0264
Sandwell Metropolitan Borough Council,https://www.sandwell.gov.uk/performance-spending/government-procurement-cards,20-Apr-23,Individual School Budgets With Inclusion,ARGOS LTD,Individual School Budgets With Inclusion,-2.95,DISCOUNT STORES,2023-24Q1_PC0265
Sandwell Metropolitan Borough Council,https://www.sandwell.gov.uk/performance-spending/government-procurement-cards,20-Apr-23,Individual School Budgets With Inclusion,LARKSWOOD STATIONERS,Individual School Budgets With Inclusion,159.54,"SCHOOLS, ELEMENTARY AND SECONDARY",2023-24Q1_PC0266
Sandwell Metropolitan Borough Council,https://www.sandwell.gov.uk/performance-spending/government-procurement-cards,20-Apr-23,Individual School Budgets With Inclusion,WWW.ARGOS.CO.UK,Individual School Budgets With Inclusion,183.95,DEPARTMENT STORES,2023-24Q1_PC0267
Sandwell Metropolitan Borough Council,https://www.sandwell.gov.uk/performance-spending/government-procurement-cards,20-Apr-23,Total Public Health,MOTEL ONE COM NEWCAST,Public Health,69,"LODGING-HOTELS,MOTELS,RESORTS-NOT CLASSIFIED",2023-24Q1_PC0268
Sandwell Metropolitan Borough Council,https://www.sandwell.gov.uk/performance-spending/government-procurement-cards,20-Apr-23,Total Public Health,trainline,Public Health,142.75,PASSENGER RAILWAYS,2023-24Q1_PC0269
Sandwell Metropolitan Borough Council,https://www.sandwell.gov.uk/performance-spending/government-procurement-cards,20-Apr-23,Total ASCHWB,AMZ EASYINK,Total Adult Social Care,-19.43,MISCELLANEOUS AND SPECIALTY RETAIL STORES,2023-24Q1_PC0270
Sandwell Metropolitan Borough Council,https://www.sandwell.gov.uk/performance-spending/government-procurement-cards,20-Apr-23,Total ASCHWB,AMZNMKTPLACE AMAZON.CO,Total Adult Social Care,30.95,MISCELLANEOUS AND SPECIALTY RETAIL STORES,2023-24Q1_PC0271
Sandwell Metropolitan Borough Council,https://www.sandwell.gov.uk/performance-spending/government-procurement-cards,20-Apr-23,Total ASCHWB,AMZNMKTPLACE AMAZON.CO,Total Adult Social Care,183,MISCELLANEOUS AND SPECIALTY RETAIL STORES,2023-24Q1_PC0272
Sandwell Metropolitan Borough Council,https://www.sandwell.gov.uk/performance-spending/government-procurement-cards,20-Apr-23,Total Borough Economy,Amazon.co.uk WW5TV7795,Total Adult Social Care,19.13,DIRECT MARKETING-OTHER DIRECT MARKETERS/NOT ELSEW.,2023-24Q1_PC0273
Sandwell Metropolitan Borough Council,https://www.sandwell.gov.uk/performance-spending/government-procurement-cards,20-Apr-23,Total Borough Economy,AMZNMktplace,Total Adult Social Care,174.97,MISCELLANEOUS AND SPECIALTY RETAIL STORES,2023-24Q1_PC0274
Sandwell Metropolitan Borough Council,https://www.sandwell.gov.uk/performance-spending/government-procurement-cards,20-Apr-23,Total Borough Economy,AMZNMktplace,Total Adult Social Care,47.96,MISCELLANEOUS AND SPECIALTY RETAIL STORES,2023-24Q1_PC0275
Sandwell Metropolitan Borough Council,https://www.sandwell.gov.uk/performance-spending/government-procurement-cards,20-Apr-23,Total Borough Economy,AMZNMktplace,Total Adult Social Care,51.92,MISCELLANEOUS AND SPECIALTY RETAIL STORES,2023-24Q1_PC0276
Sandwell Metropolitan Borough Council,https://www.sandwell.gov.uk/performance-spending/government-procurement-cards,20-Apr-23,Total Borough Economy,AMZNMktplace,Total Adult Social Care,73.94,MISCELLANEOUS AND SPECIALTY RETAIL STORES,2023-24Q1_PC0277
Sandwell Metropolitan Borough Council,https://www.sandwell.gov.uk/performance-spending/government-procurement-cards,20-Apr-23,Total Borough Economy,AMZNMKTPLACE AMAZON.CO,Total Adult Social Care,27.9,MISCELLANEOUS AND SPECIALTY RETAIL STORES,2023-24Q1_PC0278
Sandwell Metropolitan Borough Council,https://www.sandwell.gov.uk/performance-spending/government-procurement-cards,20-Apr-23,Total Borough Economy,AMZNMKTPLACE AMAZON.CO,Total Adult Social Care,50.85,MISCELLANEOUS AND SPECIALTY RETAIL STORES,2023-24Q1_PC0279
Sandwell Metropolitan Borough Council,https://www.sandwell.gov.uk/performance-spending/government-procurement-cards,20-Apr-23,Total Borough Economy,AMZNMKTPLACE AMAZON.CO,Total Adult Social Care,118.65,MISCELLANEOUS AND SPECIALTY RETAIL STORES,2023-24Q1_PC0280
Sandwell Metropolitan Borough Council,https://www.sandwell.gov.uk/performance-spending/government-procurement-cards,20-Apr-23,Total Borough Economy,B & Q 1357,Total Adult Social Care,454.58,HOME SUPPLY WAREHOUSE STORES,2023-24Q1_PC0281
Sandwell Metropolitan Borough Council,https://www.sandwell.gov.uk/performance-spending/government-procurement-cards,20-Apr-23,Total Borough Economy,B & Q 1357,Total Adult Social Care,236.12,HOME SUPPLY WAREHOUSE STORES,2023-24Q1_PC0282
Sandwell Metropolitan Borough Council,https://www.sandwell.gov.uk/performance-spending/government-procurement-cards,20-Apr-23,Total Borough Economy,trainline,Total Adult Social Care,25.16,PASSENGER RAILWAYS,2023-24Q1_PC0283
Sandwell Metropolitan Borough Council,https://www.sandwell.gov.uk/performance-spending/government-procurement-cards,20-Apr-23,Total Borough Economy,TVLICENSING.CO.UK,Total Adult Social Care,159,"CONSULTING, MANAGEMENT, AND PUBLIC RELATIONS SVCS",2023-24Q1_PC0284
Sandwell Metropolitan Borough Council,https://www.sandwell.gov.uk/performance-spending/government-procurement-cards,20-Apr-23,Total Borough Economy,Wm Morrisons Store Pic,Total Adult Social Care,76.52,"GROCERY STORES, SUPERMARKETS",2023-24Q1_PC0285
Sandwell Metropolitan Borough Council,https://www.sandwell.gov.uk/performance-spending/government-procurement-cards,20-Apr-23,Total Housing Revenue Account,WWW.AVANTIWESTCOAST.CO,Total Housing Revenue Account,119.9,PASSENGER RAILWAYS,2023-24Q1_PC0286
Sandwell Metropolitan Borough Council,https://www.sandwell.gov.uk/performance-spending/government-procurement-cards,21-Apr-23,Assistant Chief Executive,Amazon.co.uk Q74695B85,Assistant Chief Executive (Excl SIU),57.99,DIRECT MARKETING-OTHER DIRECT MARKETERS/NOT ELSEW.,2023-24Q1_PC0287
Sandwell Metropolitan Borough Council,https://www.sandwell.gov.uk/performance-spending/government-procurement-cards,21-Apr-23,Assistant Chief Executive,AMZNMktplace,Assistant Chief Executive (Excl SIU),54.78,MISCELLANEOUS AND SPECIALTY RETAIL STORES,2023-24Q1_PC0288
Sandwell Metropolitan Borough Council,https://www.sandwell.gov.uk/performance-spending/government-procurement-cards,21-Apr-23,FINANCE (Inc SIU),PAYPAL  MIDFRDFORUM MI,Assistant Chief Executive (Excl SIU),65,"ASSOCIATIONS-CIVIC, SOCIAL, AND FRATERNAL",2023-24Q1_PC0289
Sandwell Metropolitan Borough Council,https://www.sandwell.gov.uk/performance-spending/government-procurement-cards,21-Apr-23,FINANCE (Inc SIU),PAYPAL  MIDFRDFORUM MI,Assistant Chief Executive (Excl SIU),65,"ASSOCIATIONS-CIVIC, SOCIAL, AND FRATERNAL",2023-24Q1_PC0290
Sandwell Metropolitan Borough Council,https://www.sandwell.gov.uk/performance-spending/government-procurement-cards,21-Apr-23,Law & Governance,Amazon.co.uk J52ZB6R65,Assistant Chief Executive (Excl SIU),10,DIRECT MARKETING-OTHER DIRECT MARKETERS/NOT ELSEW.,2023-24Q1_PC0291
Sandwell Metropolitan Borough Council,https://www.sandwell.gov.uk/performance-spending/government-procurement-cards,21-Apr-23,Law & Governance,Amazon.co.uk O83TQ94P5,Assistant Chief Executive (Excl SIU),11.23,DIRECT MARKETING-OTHER DIRECT MARKETERS/NOT ELSEW.,2023-24Q1_PC0292
Sandwell Metropolitan Borough Council,https://www.sandwell.gov.uk/performance-spending/government-procurement-cards,21-Apr-23,Childrens Services,AMZNMKTPLACE AMAZON.CO,Childrens Services,26.59,MISCELLANEOUS AND SPECIALTY RETAIL STORES,2023-24Q1_PC0293
Sandwell Metropolitan Borough Council,https://www.sandwell.gov.uk/performance-spending/government-procurement-cards,21-Apr-23,Childrens Services,ASDA GROCERIES ONLINE,Childrens Services,53.43,"GROCERY STORES, SUPERMARKETS",2023-24Q1_PC0294
Sandwell Metropolitan Borough Council,https://www.sandwell.gov.uk/performance-spending/government-procurement-cards,21-Apr-23,Childrens Services,Hermes Parcelnet Ltd T,Childrens Services,6.36,"FREIGHT CARRIER,TRUCKING-LCL/LNG DIST, MVG/STORAGE",2023-24Q1_PC0295
Sandwell Metropolitan Borough Council,https://www.sandwell.gov.uk/performance-spending/government-procurement-cards,21-Apr-23,Childrens Services,PACEY COMMERCIAL SERVI,Childrens Services,99,"ORGANIZATIONS, CHARITABLE AND SOCIAL SERVICES",2023-24Q1_PC0296
Sandwell Metropolitan Borough Council,https://www.sandwell.gov.uk/performance-spending/government-procurement-cards,21-Apr-23,Childrens Services,TESCO STORES 2770,Childrens Services,91.16,"GROCERY STORES, SUPERMARKETS",2023-24Q1_PC0297
Sandwell Metropolitan Borough Council,https://www.sandwell.gov.uk/performance-spending/government-procurement-cards,21-Apr-23,Childrens Services,WWW.SCREWFIX.COM,Childrens Services,6.69,"BUILDING MATERIALS, LUMBER STORES",2023-24Q1_PC0298
Sandwell Metropolitan Borough Council,https://www.sandwell.gov.uk/performance-spending/government-procurement-cards,21-Apr-23,Housing & Assets Total,Amazon.co.uk XC2EG5WM5,Corporate Management,86.99,DIRECT MARKETING-OTHER DIRECT MARKETERS/NOT ELSEW.,2023-24Q1_PC0299
Sandwell Metropolitan Borough Council,https://www.sandwell.gov.uk/performance-spending/government-procurement-cards,21-Apr-23,Housing & Assets Total,AMZNMktplace,Corporate Management,48.48,MISCELLANEOUS AND SPECIALTY RETAIL STORES,2023-24Q1_PC0300
Sandwell Metropolitan Borough Council,https://www.sandwell.gov.uk/performance-spending/government-procurement-cards,21-Apr-23,Individual School Budgets With Inclusion,AMZNMktplace,Individual School Budgets With Inclusion,46.97,MISCELLANEOUS AND SPECIALTY RETAIL STORES,2023-24Q1_PC0301
Sandwell Metropolitan Borough Council,https://www.sandwell.gov.uk/performance-spending/government-procurement-cards,21-Apr-23,Individual School Budgets With Inclusion,WWW.ARGOS.CO.UK,Individual School Budgets With Inclusion,59.95,DEPARTMENT STORES,2023-24Q1_PC0302
Sandwell Metropolitan Borough Council,https://www.sandwell.gov.uk/performance-spending/government-procurement-cards,21-Apr-23,Total Public Health,SAINSBURYS S/MKTS,Public Health,23.37,"GROCERY STORES, SUPERMARKETS",2023-24Q1_PC0303
Sandwell Metropolitan Borough Council,https://www.sandwell.gov.uk/performance-spending/government-procurement-cards,21-Apr-23,Regeneration & Growth,trainline,Regeneration And The Economy,-75.7,PASSENGER RAILWAYS,2023-24Q1_PC0304
Sandwell Metropolitan Borough Council,https://www.sandwell.gov.uk/performance-spending/government-procurement-cards,21-Apr-23,Regeneration & Growth,trainline,Total Adult Social Care,54.3,PASSENGER RAILWAYS,2023-24Q1_PC0305
Sandwell Metropolitan Borough Council,https://www.sandwell.gov.uk/performance-spending/government-procurement-cards,21-Apr-23,Total ASCHWB,AMZNMktplace,Total Adult Social Care,34.99,MISCELLANEOUS AND SPECIALTY RETAIL STORES,2023-24Q1_PC0306
Sandwell Metropolitan Borough Council,https://www.sandwell.gov.uk/performance-spending/government-procurement-cards,21-Apr-23,Total ASCHWB,BRITISH GAS ONLINE,Total Adult Social Care,209.36,"UTLTS-ELCTRC, GAS, HEATING OIL, SANITARY, WATER",2023-24Q1_PC0307
Sandwell Metropolitan Borough Council,https://www.sandwell.gov.uk/performance-spending/government-procurement-cards,21-Apr-23,Total Borough Economy,Amazon.co.uk H82FB20F5,Total Adult Social Care,14,DIRECT MARKETING-OTHER DIRECT MARKETERS/NOT ELSEW.,2023-24Q1_PC0308
Sandwell Metropolitan Borough Council,https://www.sandwell.gov.uk/performance-spending/government-procurement-cards,21-Apr-23,Total Borough Economy,AMZNMktplace,Total Adult Social Care,21.86,MISCELLANEOUS AND SPECIALTY RETAIL STORES,2023-24Q1_PC0309
Sandwell Metropolitan Borough Council,https://www.sandwell.gov.uk/performance-spending/government-procurement-cards,21-Apr-23,Total Borough Economy,AMZNMKTPLACE AMAZON.CO,Total Adult Social Care,89.98,MISCELLANEOUS AND SPECIALTY RETAIL STORES,2023-24Q1_PC0310
Sandwell Metropolitan Borough Council,https://www.sandwell.gov.uk/performance-spending/government-procurement-cards,21-Apr-23,Total Borough Economy,B&Q LTD,Total Adult Social Care,-150,"BUILDING MATERIALS, LUMBER STORES",2023-24Q1_PC0311
Sandwell Metropolitan Borough Council,https://www.sandwell.gov.uk/performance-spending/government-procurement-cards,21-Apr-23,Total Borough Economy,TESCO STORES 6141,Total Adult Social Care,5.5,"GROCERY STORES, SUPERMARKETS",2023-24Q1_PC0312
Sandwell Metropolitan Borough Council,https://www.sandwell.gov.uk/performance-spending/government-procurement-cards,21-Apr-23,Total Borough Economy,Wm Morrisons Store Pic,Total Adult Social Care,231.68,"GROCERY STORES, SUPERMARKETS",2023-24Q1_PC0313
Sandwell Metropolitan Borough Council,https://www.sandwell.gov.uk/performance-spending/government-procurement-cards,21-Apr-23,Total Housing Revenue Account,AMZNMktplace,Total Housing Revenue Account,46.68,MISCELLANEOUS AND SPECIALTY RETAIL STORES,2023-24Q1_PC0314
Sandwell Metropolitan Borough Council,https://www.sandwell.gov.uk/performance-spending/government-procurement-cards,24-Apr-23,Assistant Chief Executive,AMZNMktplace,Assistant Chief Executive (Excl SIU),14.25,MISCELLANEOUS AND SPECIALTY RETAIL STORES,2023-24Q1_PC0315
Sandwell Metropolitan Borough Council,https://www.sandwell.gov.uk/performance-spending/government-procurement-cards,24-Apr-23,FINANCE (Inc SIU),Amazon.co.uk RE1B93O55,Assistant Chief Executive (Excl SIU),79.99,DIRECT MARKETING-OTHER DIRECT MARKETERS/NOT ELSEW.,2023-24Q1_PC0316
Sandwell Metropolitan Borough Council,https://www.sandwell.gov.uk/performance-spending/government-procurement-cards,24-Apr-23,Law & Governance,CKB LTD,Assistant Chief Executive (Excl SIU),42.5,MISCELLANEOUS GENERAL MERCHANDISE,2023-24Q1_PC0317
Sandwell Metropolitan Borough Council,https://www.sandwell.gov.uk/performance-spending/government-procurement-cards,24-Apr-23,Law & Governance,FACEBK  7BYCWQPTF2,Assistant Chief Executive (Excl SIU),17,ADVERTISING SERVICES,2023-24Q1_PC0318
Sandwell Metropolitan Borough Council,https://www.sandwell.gov.uk/performance-spending/government-procurement-cards,24-Apr-23,Law & Governance,FACEBK  ZHLLHQFTF2,Assistant Chief Executive (Excl SIU),25,ADVERTISING SERVICES,2023-24Q1_PC0319
Sandwell Metropolitan Borough Council,https://www.sandwell.gov.uk/performance-spending/government-procurement-cards,24-Apr-23,Law & Governance,ROYAL MAIL GROUP LTD,Assistant Chief Executive (Excl SIU),2.6,POSTAL SERVICES-GOVERNMENT ONLY,2023-24Q1_PC0320
Sandwell Metropolitan Borough Council,https://www.sandwell.gov.uk/performance-spending/government-procurement-cards,24-Apr-23,Law & Governance,ROYAL MAIL GROUP LTD,Assistant Chief Executive (Excl SIU),7.8,POSTAL SERVICES-GOVERNMENT ONLY,2023-24Q1_PC0321
Sandwell Metropolitan Borough Council,https://www.sandwell.gov.uk/performance-spending/government-procurement-cards,24-Apr-23,Law & Governance,SAINSBURYS S/MKTS,Assistant Chief Executive (Excl SIU),5,"GROCERY STORES, SUPERMARKETS",2023-24Q1_PC0322
Sandwell Metropolitan Borough Council,https://www.sandwell.gov.uk/performance-spending/government-procurement-cards,24-Apr-23,Law & Governance,THE CARD NETWORK,Assistant Chief Executive (Excl SIU),124,MISCELLANEOUS PUBLISHING AND PRINTING,2023-24Q1_PC0323
Sandwell Metropolitan Borough Council,https://www.sandwell.gov.uk/performance-spending/government-procurement-cards,24-Apr-23,Law & Governance,TIMPSON LTD,Assistant Chief Executive (Excl SIU),187.5,MISCELLANEOUS AND SPECIALTY RETAIL STORES,2023-24Q1_PC0324
Sandwell Metropolitan Borough Council,https://www.sandwell.gov.uk/performance-spending/government-procurement-cards,24-Apr-23,Childrens Services,ALDI 109 772,Childrens Services,6.64,"GROCERY STORES, SUPERMARKETS",2023-24Q1_PC0325
Sandwell Metropolitan Borough Council,https://www.sandwell.gov.uk/performance-spending/government-procurement-cards,24-Apr-23,Childrens Services,AMZNMktplace,Childrens Services,22.4,MISCELLANEOUS AND SPECIALTY RETAIL STORES,2023-24Q1_PC0326
Sandwell Metropolitan Borough Council,https://www.sandwell.gov.uk/performance-spending/government-procurement-cards,24-Apr-23,Childrens Services,AMZNMktplace,Childrens Services,26.5,MISCELLANEOUS AND SPECIALTY RETAIL STORES,2023-24Q1_PC0327
Sandwell Metropolitan Borough Council,https://www.sandwell.gov.uk/performance-spending/government-procurement-cards,24-Apr-23,Childrens Services,AMZNMktplace,Childrens Services,27.98,MISCELLANEOUS AND SPECIALTY RETAIL STORES,2023-24Q1_PC0328
Sandwell Metropolitan Borough Council,https://www.sandwell.gov.uk/performance-spending/government-procurement-cards,24-Apr-23,Childrens Services,AMZNMKTPLACE AMAZON.CO,Childrens Services,83.54,MISCELLANEOUS AND SPECIALTY RETAIL STORES,2023-24Q1_PC0329
Sandwell Metropolitan Borough Council,https://www.sandwell.gov.uk/performance-spending/government-procurement-cards,24-Apr-23,Childrens Services,ASDA GROCERIES ONLINE,Childrens Services,54.84,"GROCERY STORES, SUPERMARKETS",2023-24Q1_PC0330
Sandwell Metropolitan Borough Council,https://www.sandwell.gov.uk/performance-spending/government-procurement-cards,24-Apr-23,Childrens Services,BOOKWHEN- SOFTWARE SUB,Childrens Services,228,COMPUTER SOFTWARE STORES,2023-24Q1_PC0331
Sandwell Metropolitan Borough Council,https://www.sandwell.gov.uk/performance-spending/government-procurement-cards,24-Apr-23,Childrens Services,ESSENTIAL FOOD HYGIENE,Childrens Services,84,SCHOOLS & EDUCATIONAL SVC-NOT ELSEWHERE CLASSIFIED,2023-24Q1_PC0332
Sandwell Metropolitan Borough Council,https://www.sandwell.gov.uk/performance-spending/government-procurement-cards,24-Apr-23,Childrens Services,HOME BARGAINS,Childrens Services,7.92,HARDWARE STORES,2023-24Q1_PC0333
Sandwell Metropolitan Borough Council,https://www.sandwell.gov.uk/performance-spending/government-procurement-cards,24-Apr-23,Corporate Management,AMZNMKTPLACE AMAZON.CO,Corporate Management,8.98,MISCELLANEOUS AND SPECIALTY RETAIL STORES,2023-24Q1_PC0334
Sandwell Metropolitan Borough Council,https://www.sandwell.gov.uk/performance-spending/government-procurement-cards,24-Apr-23,Housing & Assets Total,Amazon Prime T464968R5,Corporate Management,8.99,DIRECT MARKETING-CONTINUITY/SUBSCRIPTION MERCHANTS,2023-24Q1_PC0335
Sandwell Metropolitan Borough Council,https://www.sandwell.gov.uk/performance-spending/government-procurement-cards,24-Apr-23,Individual School Budgets With Inclusion,AMZNMKTPLACE AMAZON.CO,Individual School Budgets With Inclusion,17.98,MISCELLANEOUS AND SPECIALTY RETAIL STORES,2023-24Q1_PC0336
Sandwell Metropolitan Borough Council,https://www.sandwell.gov.uk/performance-spending/government-procurement-cards,24-Apr-23,Total Public Health,AMZ Amazon.co.uk,Public Health,-46.28,DIRECT MARKETING-OTHER DIRECT MARKETERS/NOT ELSEW.,2023-24Q1_PC0337
Sandwell Metropolitan Borough Council,https://www.sandwell.gov.uk/performance-spending/government-procurement-cards,24-Apr-23,Regeneration & Growth,AMZNMktplace,Regeneration And The Economy,33.01,MISCELLANEOUS AND SPECIALTY RETAIL STORES,2023-24Q1_PC0338
Sandwell Metropolitan Borough Council,https://www.sandwell.gov.uk/performance-spending/government-procurement-cards,24-Apr-23,Regeneration & Growth,PROCONFERENCES.COM,Regeneration And The Economy,130.8,"COLLEGES, UNIV, PRO SCHOOLS, JUNIOR COLLEGES",2023-24Q1_PC0339
Sandwell Metropolitan Borough Council,https://www.sandwell.gov.uk/performance-spending/government-procurement-cards,24-Apr-23,Total ASCHWB,Amazon.co.uk I18NV6IM5,Total Adult Social Care,23.68,DIRECT MARKETING-OTHER DIRECT MARKETERS/NOT ELSEW.,2023-24Q1_PC0340
Sandwell Metropolitan Borough Council,https://www.sandwell.gov.uk/performance-spending/government-procurement-cards,24-Apr-23,Total ASCHWB,Amazon.co.uk OR6C31FS5,Total Adult Social Care,28.7,DIRECT MARKETING-OTHER DIRECT MARKETERS/NOT ELSEW.,2023-24Q1_PC0341
Sandwell Metropolitan Borough Council,https://www.sandwell.gov.uk/performance-spending/government-procurement-cards,24-Apr-23,Total ASCHWB,AMZNMktplace,Total Adult Social Care,39.99,MISCELLANEOUS AND SPECIALTY RETAIL STORES,2023-24Q1_PC0342
Sandwell Metropolitan Borough Council,https://www.sandwell.gov.uk/performance-spending/government-procurement-cards,24-Apr-23,Total ASCHWB,AMZNMktplace,Total Adult Social Care,29.97,MISCELLANEOUS AND SPECIALTY RETAIL STORES,2023-24Q1_PC0343
Sandwell Metropolitan Borough Council,https://www.sandwell.gov.uk/performance-spending/government-procurement-cards,24-Apr-23,Total ASCHWB,AMZNMktplace,Total Adult Social Care,161.69,MISCELLANEOUS AND SPECIALTY RETAIL STORES,2023-24Q1_PC0344
Sandwell Metropolitan Borough Council,https://www.sandwell.gov.uk/performance-spending/government-procurement-cards,24-Apr-23,Total ASCHWB,POUNDLAND LTD - 1576,Total Adult Social Care,40,DISCOUNT STORES,2023-24Q1_PC0345
Sandwell Metropolitan Borough Council,https://www.sandwell.gov.uk/performance-spending/government-procurement-cards,24-Apr-23,Total ASCHWB,SAINSBURYS S/MKTS,Total Adult Social Care,15,"GROCERY STORES, SUPERMARKETS",2023-24Q1_PC0346
Sandwell Metropolitan Borough Council,https://www.sandwell.gov.uk/performance-spending/government-procurement-cards,24-Apr-23,Total Borough Economy,Amazon.co.uk 4J7123LF5,Total Adult Social Care,41.37,DIRECT MARKETING-OTHER DIRECT MARKETERS/NOT ELSEW.,2023-24Q1_PC0347
Sandwell Metropolitan Borough Council,https://www.sandwell.gov.uk/performance-spending/government-procurement-cards,24-Apr-23,Total Borough Economy,AMZNMktplace,Total Adult Social Care,29.06,MISCELLANEOUS AND SPECIALTY RETAIL STORES,2023-24Q1_PC0348
Sandwell Metropolitan Borough Council,https://www.sandwell.gov.uk/performance-spending/government-procurement-cards,24-Apr-23,Total Borough Economy,AMZNMktplace,Total Adult Social Care,139.17,MISCELLANEOUS AND SPECIALTY RETAIL STORES,2023-24Q1_PC0349
Sandwell Metropolitan Borough Council,https://www.sandwell.gov.uk/performance-spending/government-procurement-cards,24-Apr-23,Total Borough Economy,AMZNMKTPLACE AMAZON.CO,Total Adult Social Care,15.57,MISCELLANEOUS AND SPECIALTY RETAIL STORES,2023-24Q1_PC0350
Sandwell Metropolitan Borough Council,https://www.sandwell.gov.uk/performance-spending/government-procurement-cards,24-Apr-23,Total Borough Economy,AMZNMKTPLACE AMAZON.CO,Total Adult Social Care,11.98,MISCELLANEOUS AND SPECIALTY RETAIL STORES,2023-24Q1_PC0351
Sandwell Metropolitan Borough Council,https://www.sandwell.gov.uk/performance-spending/government-procurement-cards,24-Apr-23,Total Borough Economy,ASDA SUPERSTORE,Total Adult Social Care,84.2,"GROCERY STORES, SUPERMARKETS",2023-24Q1_PC0352
Sandwell Metropolitan Borough Council,https://www.sandwell.gov.uk/performance-spending/government-procurement-cards,24-Apr-23,Total Borough Economy,Canva  03762-18880147,Total Adult Social Care,10.99,"COMMERCIAL ART, GRAPHICS, PHOTOGRAPHY",2023-24Q1_PC0353
Sandwell Metropolitan Borough Council,https://www.sandwell.gov.uk/performance-spending/government-procurement-cards,24-Apr-23,Total Borough Economy,Cooksmill,Total Adult Social Care,28.14,MISCELLANEOUS HOUSE FURNISHING SPECIALTY SHOPS,2023-24Q1_PC0354
Sandwell Metropolitan Borough Council,https://www.sandwell.gov.uk/performance-spending/government-procurement-cards,24-Apr-23,Total Borough Economy,GLOBAL WINES (BHAM) LT,Total Adult Social Care,46.14,"PACKAGE STORES, BEER, WINE, LIQUOR",2023-24Q1_PC0355
Sandwell Metropolitan Borough Council,https://www.sandwell.gov.uk/performance-spending/government-procurement-cards,24-Apr-23,Total Borough Economy,PADDLE.NET SNAPWIDGET,Total Adult Social Care,5.41,DIGITAL GOODS MULTI CATEGORY,2023-24Q1_PC0356
Sandwell Metropolitan Borough Council,https://www.sandwell.gov.uk/performance-spending/government-procurement-cards,24-Apr-23,Total Borough Economy,SABA PARK SERVICES LTD,Total Adult Social Care,12.8,AUTOMOBILE PARKING LOTS AND GARAGES,2023-24Q1_PC0357
Sandwell Metropolitan Borough Council,https://www.sandwell.gov.uk/performance-spending/government-procurement-cards,24-Apr-23,Total Borough Economy,SANDWELL COLLEGE,Total Adult Social Care,499,"COLLEGES, UNIV, PRO SCHOOLS, JUNIOR COLLEGES",2023-24Q1_PC0358
Sandwell Metropolitan Borough Council,https://www.sandwell.gov.uk/performance-spending/government-procurement-cards,24-Apr-23,Total Borough Economy,TESCO STORES 6197,Total Adult Social Care,3,"GROCERY STORES, SUPERMARKETS",2023-24Q1_PC0359
Sandwell Metropolitan Borough Council,https://www.sandwell.gov.uk/performance-spending/government-procurement-cards,24-Apr-23,Total Borough Economy,TIM HORTONS UK 0056,Total Adult Social Care,3.99,"EATING PLACES, RESTAURANTS",2023-24Q1_PC0360
Sandwell Metropolitan Borough Council,https://www.sandwell.gov.uk/performance-spending/government-procurement-cards,24-Apr-23,Total Borough Economy,VIKING OFFICE UK LIMIT,Total Adult Social Care,146.7,STATIONERY/OFFICE SUPPLIES/PRINTING & WRITING PAP.,2023-24Q1_PC0361
Sandwell Metropolitan Borough Council,https://www.sandwell.gov.uk/performance-spending/government-procurement-cards,24-Apr-23,Total Borough Economy,WOLVERHAMPTON SST,Total Adult Social Care,9.2,PASSENGER RAILWAYS,2023-24Q1_PC0362
Sandwell Metropolitan Borough Council,https://www.sandwell.gov.uk/performance-spending/government-procurement-cards,24-Apr-23,Total Housing Revenue Account,AMZNMKTPLACE AMAZON.CO,Total Housing Revenue Account,124.48,MISCELLANEOUS AND SPECIALTY RETAIL STORES,2023-24Q1_PC0363
Sandwell Metropolitan Borough Council,https://www.sandwell.gov.uk/performance-spending/government-procurement-cards,24-Apr-23,Total Housing Revenue Account,CERTSURE LLP PORTAL,Total Housing Revenue Account,-230.28,MISCELLANEOUS AND SPECIALTY RETAIL STORES,2023-24Q1_PC0364
Sandwell Metropolitan Borough Council,https://www.sandwell.gov.uk/performance-spending/government-procurement-cards,24-Apr-23,Total Housing Revenue Account,KANE INTERNATIONAL LTD,Total Housing Revenue Account,860.16,ELECTRONIC SALES,2023-24Q1_PC0365
Sandwell Metropolitan Borough Council,https://www.sandwell.gov.uk/performance-spending/government-procurement-cards,24-Apr-23,Total Housing Revenue Account,WWW.SCREWFIX.COM,Total Housing Revenue Account,6.2,"BUILDING MATERIALS, LUMBER STORES",2023-24Q1_PC0366
Sandwell Metropolitan Borough Council,https://www.sandwell.gov.uk/performance-spending/government-procurement-cards,25-Apr-23,Law & Governance,Amazon.co.uk SB7L29QN5,Assistant Chief Executive (Excl SIU),39.61,DIRECT MARKETING-OTHER DIRECT MARKETERS/NOT ELSEW.,2023-24Q1_PC0367
Sandwell Metropolitan Borough Council,https://www.sandwell.gov.uk/performance-spending/government-procurement-cards,25-Apr-23,Law & Governance,ASAP STAMPS LTD,Assistant Chief Executive (Excl SIU),391.8,BUSINESS SERVICES-NOT ELSEWHERE CLASSIFIED,2023-24Q1_PC0368
Sandwell Metropolitan Borough Council,https://www.sandwell.gov.uk/performance-spending/government-procurement-cards,25-Apr-23,Law & Governance,ROYAL MAIL GROUP LTD,Assistant Chief Executive (Excl SIU),5.2,POSTAL SERVICES-GOVERNMENT ONLY,2023-24Q1_PC0369
Sandwell Metropolitan Borough Council,https://www.sandwell.gov.uk/performance-spending/government-procurement-cards,25-Apr-23,Law & Governance,VERSAPAK INTERNATIONAL,Assistant Chief Executive (Excl SIU),33.52,MISCELLANEOUS GENERAL MERCHANDISE,2023-24Q1_PC0370
Sandwell Metropolitan Borough Council,https://www.sandwell.gov.uk/performance-spending/government-procurement-cards,25-Apr-23,Childrens Services,Amazon.co.uk TT4IK7L75,Childrens Services,5.67,DIRECT MARKETING-OTHER DIRECT MARKETERS/NOT ELSEW.,2023-24Q1_PC0371
Sandwell Metropolitan Borough Council,https://www.sandwell.gov.uk/performance-spending/government-procurement-cards,25-Apr-23,Childrens Services,AMZNMktplace,Childrens Services,9.34,MISCELLANEOUS AND SPECIALTY RETAIL STORES,2023-24Q1_PC0372
Sandwell Metropolitan Borough Council,https://www.sandwell.gov.uk/performance-spending/government-procurement-cards,25-Apr-23,Childrens Services,ASDA GROCERIES ONLINE,Childrens Services,-0.5,"GROCERY STORES, SUPERMARKETS",2023-24Q1_PC0373
Sandwell Metropolitan Borough Council,https://www.sandwell.gov.uk/performance-spending/government-procurement-cards,25-Apr-23,Childrens Services,ASDA GROCERIES ONLINE,Childrens Services,106.29,"GROCERY STORES, SUPERMARKETS",2023-24Q1_PC0374
Sandwell Metropolitan Borough Council,https://www.sandwell.gov.uk/performance-spending/government-procurement-cards,25-Apr-23,Childrens Services,GROUP ACCOMMODATION,Childrens Services,612,BUSINESS SERVICES-NOT ELSEWHERE CLASSIFIED,2023-24Q1_PC0375
Sandwell Metropolitan Borough Council,https://www.sandwell.gov.uk/performance-spending/government-procurement-cards,25-Apr-23,Childrens Services,TESCO STORES 2770,Childrens Services,105.28,"GROCERY STORES, SUPERMARKETS",2023-24Q1_PC0376
Sandwell Metropolitan Borough Council,https://www.sandwell.gov.uk/performance-spending/government-procurement-cards,25-Apr-23,Childrens Services,WWW.SCREWFIX.COM,Childrens Services,80.98,"BUILDING MATERIALS, LUMBER STORES",2023-24Q1_PC0377
Sandwell Metropolitan Borough Council,https://www.sandwell.gov.uk/performance-spending/government-procurement-cards,25-Apr-23,Corporate Management,FS  JotForm,Corporate Management,18.98,DIGITAL GOODS SOFTWARE APPLICATIONS,2023-24Q1_PC0378
Sandwell Metropolitan Borough Council,https://www.sandwell.gov.uk/performance-spending/government-procurement-cards,25-Apr-23,Individual School Budgets With Inclusion,ASDA GROCERIES ONLINE,Individual School Budgets With Inclusion,-2.85,"GROCERY STORES, SUPERMARKETS",2023-24Q1_PC0379
Sandwell Metropolitan Borough Council,https://www.sandwell.gov.uk/performance-spending/government-procurement-cards,25-Apr-23,Individual School Budgets With Inclusion,ASDA GROCERIES ONLINE,Individual School Budgets With Inclusion,-2,"GROCERY STORES, SUPERMARKETS",2023-24Q1_PC0380
Sandwell Metropolitan Borough Council,https://www.sandwell.gov.uk/performance-spending/government-procurement-cards,25-Apr-23,Individual School Budgets With Inclusion,ASDA GROCERIES ONLINE,Individual School Budgets With Inclusion,15.6,"GROCERY STORES, SUPERMARKETS",2023-24Q1_PC0381
Sandwell Metropolitan Borough Council,https://www.sandwell.gov.uk/performance-spending/government-procurement-cards,25-Apr-23,Individual School Budgets With Inclusion,ASDA GROCERIES ONLINE,Individual School Budgets With Inclusion,77.3,"GROCERY STORES, SUPERMARKETS",2023-24Q1_PC0382
Sandwell Metropolitan Borough Council,https://www.sandwell.gov.uk/performance-spending/government-procurement-cards,25-Apr-23,Individual School Budgets With Inclusion,MARKS&SPENCER PLC SACA,Individual School Budgets With Inclusion,9.75,"GROCERY STORES, SUPERMARKETS",2023-24Q1_PC0383
Sandwell Metropolitan Borough Council,https://www.sandwell.gov.uk/performance-spending/government-procurement-cards,25-Apr-23,Individual School Budgets With Inclusion,UBER    EATS,Individual School Budgets With Inclusion,49.01,"EATING PLACES, RESTAURANTS",2023-24Q1_PC0384
Sandwell Metropolitan Borough Council,https://www.sandwell.gov.uk/performance-spending/government-procurement-cards,25-Apr-23,Regeneration & Growth,TOOLSTATION LTD,Regeneration And The Economy,13.18,"BUILDING MATERIALS, LUMBER STORES",2023-24Q1_PC0385
Sandwell Metropolitan Borough Council,https://www.sandwell.gov.uk/performance-spending/government-procurement-cards,25-Apr-23,Total ASCHWB,Amazon.co.uk 441M20A55,Total Adult Social Care,38.92,DIRECT MARKETING-OTHER DIRECT MARKETERS/NOT ELSEW.,2023-24Q1_PC0386
Sandwell Metropolitan Borough Council,https://www.sandwell.gov.uk/performance-spending/government-procurement-cards,25-Apr-23,Total ASCHWB,Amazon.co.uk 8P3PA5I55,Total Adult Social Care,77.4,DIRECT MARKETING-OTHER DIRECT MARKETERS/NOT ELSEW.,2023-24Q1_PC0387
Sandwell Metropolitan Borough Council,https://www.sandwell.gov.uk/performance-spending/government-procurement-cards,25-Apr-23,Total Borough Economy,AMZNMktplace,Total Adult Social Care,195.96,MISCELLANEOUS AND SPECIALTY RETAIL STORES,2023-24Q1_PC0388
Sandwell Metropolitan Borough Council,https://www.sandwell.gov.uk/performance-spending/government-procurement-cards,25-Apr-23,Total Borough Economy,AMZNMktplace,Total Adult Social Care,45.98,MISCELLANEOUS AND SPECIALTY RETAIL STORES,2023-24Q1_PC0389
Sandwell Metropolitan Borough Council,https://www.sandwell.gov.uk/performance-spending/government-procurement-cards,25-Apr-23,Total Borough Economy,AMZNMktplace,Total Adult Social Care,22.09,MISCELLANEOUS AND SPECIALTY RETAIL STORES,2023-24Q1_PC0390
Sandwell Metropolitan Borough Council,https://www.sandwell.gov.uk/performance-spending/government-procurement-cards,25-Apr-23,Total Borough Economy,AMZNMktplace,Total Adult Social Care,8.09,MISCELLANEOUS AND SPECIALTY RETAIL STORES,2023-24Q1_PC0391
Sandwell Metropolitan Borough Council,https://www.sandwell.gov.uk/performance-spending/government-procurement-cards,25-Apr-23,Total Borough Economy,eBay O 04-09984-44659,Total Adult Social Care,44.52,DEPARTMENT STORES,2023-24Q1_PC0392
Sandwell Metropolitan Borough Council,https://www.sandwell.gov.uk/performance-spending/government-procurement-cards,25-Apr-23,Total Borough Economy,FS  TechSmith,Total Adult Social Care,265.33,DIGITAL GOODS SOFTWARE APPLICATIONS,2023-24Q1_PC0393
Sandwell Metropolitan Borough Council,https://www.sandwell.gov.uk/performance-spending/government-procurement-cards,25-Apr-23,Total Borough Economy,THE NEC,Total Adult Social Care,17.95,AUTOMOBILE PARKING LOTS AND GARAGES,2023-24Q1_PC0394
Sandwell Metropolitan Borough Council,https://www.sandwell.gov.uk/performance-spending/government-procurement-cards,25-Apr-23,Total Borough Economy,Wm Morrisons Store Pic,Total Adult Social Care,204.82,"GROCERY STORES, SUPERMARKETS",2023-24Q1_PC0395
Sandwell Metropolitan Borough Council,https://www.sandwell.gov.uk/performance-spending/government-procurement-cards,25-Apr-23,Total Housing Revenue Account,AMZNMktplace,Total Housing Revenue Account,21.56,MISCELLANEOUS AND SPECIALTY RETAIL STORES,2023-24Q1_PC0396
Sandwell Metropolitan Borough Council,https://www.sandwell.gov.uk/performance-spending/government-procurement-cards,25-Apr-23,Total Housing Revenue Account,CURRYS BUSINESS,Total Housing Revenue Account,20.37,COMPUTER SOFTWARE STORES,2023-24Q1_PC0397
Sandwell Metropolitan Borough Council,https://www.sandwell.gov.uk/performance-spending/government-procurement-cards,26-Apr-23,FINANCE (Inc SIU),AMZNMKTPLACE AMAZON.CO,Assistant Chief Executive (Excl SIU),94.06,MISCELLANEOUS AND SPECIALTY RETAIL STORES,2023-24Q1_PC0398
Sandwell Metropolitan Borough Council,https://www.sandwell.gov.uk/performance-spending/government-procurement-cards,26-Apr-23,FINANCE (Inc SIU),AMZNMKTPLACE AMAZON.CO,Assistant Chief Executive (Excl SIU),34.09,MISCELLANEOUS AND SPECIALTY RETAIL STORES,2023-24Q1_PC0399
Sandwell Metropolitan Borough Council,https://www.sandwell.gov.uk/performance-spending/government-procurement-cards,26-Apr-23,FINANCE (Inc SIU),REMARKABLE,Assistant Chief Executive (Excl SIU),2.99,ELECTRONIC SALES,2023-24Q1_PC0400
Sandwell Metropolitan Borough Council,https://www.sandwell.gov.uk/performance-spending/government-procurement-cards,26-Apr-23,FINANCE (Inc SIU),Trainline.COM,Assistant Chief Executive (Excl SIU),77.74,PASSENGER RAILWAYS,2023-24Q1_PC0401
Sandwell Metropolitan Borough Council,https://www.sandwell.gov.uk/performance-spending/government-procurement-cards,26-Apr-23,Law & Governance,AMZNMKTPLACE AMAZON.CO,Assistant Chief Executive (Excl SIU),29.5,MISCELLANEOUS AND SPECIALTY RETAIL STORES,2023-24Q1_PC0402
Sandwell Metropolitan Borough Council,https://www.sandwell.gov.uk/performance-spending/government-procurement-cards,26-Apr-23,Law & Governance,CKB LTD,Assistant Chief Executive (Excl SIU),289,MISCELLANEOUS GENERAL MERCHANDISE,2023-24Q1_PC0403
Sandwell Metropolitan Borough Council,https://www.sandwell.gov.uk/performance-spending/government-procurement-cards,26-Apr-23,Law & Governance,FACEBK  CQGY4RKUF2,Assistant Chief Executive (Excl SIU),25,ADVERTISING SERVICES,2023-24Q1_PC0404
Sandwell Metropolitan Borough Council,https://www.sandwell.gov.uk/performance-spending/government-procurement-cards,26-Apr-23,Law & Governance,THE CARD NETWORK,Assistant Chief Executive (Excl SIU),100.96,MISCELLANEOUS PUBLISHING AND PRINTING,2023-24Q1_PC0405
Sandwell Metropolitan Borough Council,https://www.sandwell.gov.uk/performance-spending/government-procurement-cards,26-Apr-23,Childrens Services,AMZNMktplace,Childrens Services,122.59,MISCELLANEOUS AND SPECIALTY RETAIL STORES,2023-24Q1_PC0406
Sandwell Metropolitan Borough Council,https://www.sandwell.gov.uk/performance-spending/government-procurement-cards,26-Apr-23,Childrens Services,AMZNMKTPLACE AMAZON.CO,Childrens Services,22.99,MISCELLANEOUS AND SPECIALTY RETAIL STORES,2023-24Q1_PC0407
Sandwell Metropolitan Borough Council,https://www.sandwell.gov.uk/performance-spending/government-procurement-cards,26-Apr-23,Childrens Services,AMZNMKTPLACE AMAZON.CO,Childrens Services,-98.27,MISCELLANEOUS AND SPECIALTY RETAIL STORES,2023-24Q1_PC0408
Sandwell Metropolitan Borough Council,https://www.sandwell.gov.uk/performance-spending/government-procurement-cards,26-Apr-23,Childrens Services,ANIMOTO INC,Childrens Services,192,DIRECT MARKETING-CONTINUITY/SUBSCRIPTION MERCHANTS,2023-24Q1_PC0409
Sandwell Metropolitan Borough Council,https://www.sandwell.gov.uk/performance-spending/government-procurement-cards,26-Apr-23,Childrens Services,ASDA GEORGE COM LEEDS,Childrens Services,70,"GROCERY STORES, SUPERMARKETS",2023-24Q1_PC0410
Sandwell Metropolitan Borough Council,https://www.sandwell.gov.uk/performance-spending/government-procurement-cards,26-Apr-23,Childrens Services,TESCO STORES 2770,Childrens Services,79.95,"GROCERY STORES, SUPERMARKETS",2023-24Q1_PC0411
Sandwell Metropolitan Borough Council,https://www.sandwell.gov.uk/performance-spending/government-procurement-cards,26-Apr-23,Housing & Assets Total,ASDA STORES,Corporate Management,5.85,"GROCERY STORES, SUPERMARKETS",2023-24Q1_PC0412
Sandwell Metropolitan Borough Council,https://www.sandwell.gov.uk/performance-spending/government-procurement-cards,26-Apr-23,Individual School Budgets With Inclusion,ASDA GROCERIES ONLINE,Individual School Budgets With Inclusion,-7.6,"GROCERY STORES, SUPERMARKETS",2023-24Q1_PC0413
Sandwell Metropolitan Borough Council,https://www.sandwell.gov.uk/performance-spending/government-procurement-cards,26-Apr-23,Individual School Budgets With Inclusion,B & Q 1357,Individual School Budgets With Inclusion,8,HOME SUPPLY WAREHOUSE STORES,2023-24Q1_PC0414
Sandwell Metropolitan Borough Council,https://www.sandwell.gov.uk/performance-spending/government-procurement-cards,26-Apr-23,Individual School Budgets With Inclusion,UBER    EATS,Individual School Budgets With Inclusion,18.48,"EATING PLACES, RESTAURANTS",2023-24Q1_PC0415
Sandwell Metropolitan Borough Council,https://www.sandwell.gov.uk/performance-spending/government-procurement-cards,26-Apr-23,Individual School Budgets With Inclusion,UBER  EATS,Individual School Budgets With Inclusion,42.05,"EATING PLACES, RESTAURANTS",2023-24Q1_PC0416
Sandwell Metropolitan Borough Council,https://www.sandwell.gov.uk/performance-spending/government-procurement-cards,26-Apr-23,Assistant Chief Executive,Amazon.co.uk ZF0EX9AD5,Neighbourhoods,58.68,DIRECT MARKETING-OTHER DIRECT MARKETERS/NOT ELSEW.,2023-24Q1_PC0417
Sandwell Metropolitan Borough Council,https://www.sandwell.gov.uk/performance-spending/government-procurement-cards,26-Apr-23,Total Public Health,EB  MODESHIFT TRAVELWI,Public Health,-175,BUSINESS SERVICES-NOT ELSEWHERE CLASSIFIED,2023-24Q1_PC0418
Sandwell Metropolitan Borough Council,https://www.sandwell.gov.uk/performance-spending/government-procurement-cards,26-Apr-23,Total Public Health,trainline,Public Health,65,PASSENGER RAILWAYS,2023-24Q1_PC0419
Sandwell Metropolitan Borough Council,https://www.sandwell.gov.uk/performance-spending/government-procurement-cards,26-Apr-23,Total ASCHWB,AMZNMKTPLACE AMAZON.CO,Total Adult Social Care,26.99,MISCELLANEOUS AND SPECIALTY RETAIL STORES,2023-24Q1_PC0420
Sandwell Metropolitan Borough Council,https://www.sandwell.gov.uk/performance-spending/government-procurement-cards,26-Apr-23,Total ASCHWB,MYSYCOUS - UTILITIES,Total Adult Social Care,66.26,COMPUTER SOFTWARE STORES,2023-24Q1_PC0421
Sandwell Metropolitan Borough Council,https://www.sandwell.gov.uk/performance-spending/government-procurement-cards,26-Apr-23,Total ASCHWB,MYSYCOUS - UTILITIES,Total Adult Social Care,52.74,COMPUTER SOFTWARE STORES,2023-24Q1_PC0422
Sandwell Metropolitan Borough Council,https://www.sandwell.gov.uk/performance-spending/government-procurement-cards,26-Apr-23,Total ASCHWB,S STAFFS WATER PBN,Total Adult Social Care,191.83,"UTLTS-ELCTRC, GAS, HEATING OIL, SANITARY, WATER",2023-24Q1_PC0423
Sandwell Metropolitan Borough Council,https://www.sandwell.gov.uk/performance-spending/government-procurement-cards,26-Apr-23,Total ASCHWB,S STAFFS WATER PBN,Total Adult Social Care,46.86,"UTLTS-ELCTRC, GAS, HEATING OIL, SANITARY, WATER",2023-24Q1_PC0424
Sandwell Metropolitan Borough Council,https://www.sandwell.gov.uk/performance-spending/government-procurement-cards,26-Apr-23,Total Borough Economy,AMZNMktplace,Total Adult Social Care,12.99,MISCELLANEOUS AND SPECIALTY RETAIL STORES,2023-24Q1_PC0425
Sandwell Metropolitan Borough Council,https://www.sandwell.gov.uk/performance-spending/government-procurement-cards,26-Apr-23,Total Borough Economy,AMZNMktplace,Total Adult Social Care,31.99,MISCELLANEOUS AND SPECIALTY RETAIL STORES,2023-24Q1_PC0426
Sandwell Metropolitan Borough Council,https://www.sandwell.gov.uk/performance-spending/government-procurement-cards,26-Apr-23,Total Borough Economy,NFAN/MD0QBA1K,Total Adult Social Care,103.5,"ORGANIZATIONS, MEMBERSHIP-NOT ELSEWHERE CLASSIFIED",2023-24Q1_PC0427
Sandwell Metropolitan Borough Council,https://www.sandwell.gov.uk/performance-spending/government-procurement-cards,26-Apr-23,Total Borough Economy,POST OFFICE COUNTER,Total Adult Social Care,150,POSTAL SERVICES-GOVERNMENT ONLY,2023-24Q1_PC0428
Sandwell Metropolitan Borough Council,https://www.sandwell.gov.uk/performance-spending/government-procurement-cards,26-Apr-23,Total Borough Economy,trainline,Total Adult Social Care,13.64,PASSENGER RAILWAYS,2023-24Q1_PC0429
Sandwell Metropolitan Borough Council,https://www.sandwell.gov.uk/performance-spending/government-procurement-cards,26-Apr-23,Total Borough Economy,UNI OF YORK (EVISI,Total Adult Social Care,840,"COLLEGES, UNIV, PRO SCHOOLS, JUNIOR COLLEGES",2023-24Q1_PC0430
Sandwell Metropolitan Borough Council,https://www.sandwell.gov.uk/performance-spending/government-procurement-cards,26-Apr-23,Total Borough Economy,VIKING OFFICE UK LIMIT,Total Adult Social Care,65.84,STATIONERY/OFFICE SUPPLIES/PRINTING & WRITING PAP.,2023-24Q1_PC0431
Sandwell Metropolitan Borough Council,https://www.sandwell.gov.uk/performance-spending/government-procurement-cards,26-Apr-23,Total Borough Economy,Wm Morrisons Store Pic,Total Adult Social Care,124.05,"GROCERY STORES, SUPERMARKETS",2023-24Q1_PC0432
Sandwell Metropolitan Borough Council,https://www.sandwell.gov.uk/performance-spending/government-procurement-cards,26-Apr-23,Total Borough Economy,WWW.KLIPSPRINGER.COM,Total Adult Social Care,248.76,"COMMERCIAL EQUIPMENT, NOT ELSEWHERE CLASSIFIED",2023-24Q1_PC0433
Sandwell Metropolitan Borough Council,https://www.sandwell.gov.uk/performance-spending/government-procurement-cards,26-Apr-23,Total Borough Economy,WWW.RANDALLSFIREWOOD,Total Adult Social Care,313,"FIREPLACE, FIREPLACE SCREENS & ACCESSORIES STORES",2023-24Q1_PC0434
Sandwell Metropolitan Borough Council,https://www.sandwell.gov.uk/performance-spending/government-procurement-cards,26-Apr-23,Total Housing Revenue Account,trainline,Total Housing Revenue Account,124.61,PASSENGER RAILWAYS,2023-24Q1_PC0435
Sandwell Metropolitan Borough Council,https://www.sandwell.gov.uk/performance-spending/government-procurement-cards,27-Apr-23,Assistant Chief Executive,AMZNMKTPLACE AMAZON.CO,Assistant Chief Executive (Excl SIU),67.97,MISCELLANEOUS AND SPECIALTY RETAIL STORES,2023-24Q1_PC0436
Sandwell Metropolitan Borough Council,https://www.sandwell.gov.uk/performance-spending/government-procurement-cards,27-Apr-23,FINANCE (Inc SIU),Amazon.co.uk ES9N20BC5,Assistant Chief Executive (Excl SIU),79.99,DIRECT MARKETING-OTHER DIRECT MARKETERS/NOT ELSEW.,2023-24Q1_PC0437
Sandwell Metropolitan Borough Council,https://www.sandwell.gov.uk/performance-spending/government-procurement-cards,27-Apr-23,FINANCE (Inc SIU),AMZNMktplace,Assistant Chief Executive (Excl SIU),23.98,MISCELLANEOUS AND SPECIALTY RETAIL STORES,2023-24Q1_PC0438
Sandwell Metropolitan Borough Council,https://www.sandwell.gov.uk/performance-spending/government-procurement-cards,27-Apr-23,FINANCE (Inc SIU),ROYAL MAIL GROUP LTD,Assistant Chief Executive (Excl SIU),6.65,POSTAL SERVICES-GOVERNMENT ONLY,2023-24Q1_PC0439
Sandwell Metropolitan Borough Council,https://www.sandwell.gov.uk/performance-spending/government-procurement-cards,27-Apr-23,Law & Governance,ROYAL MAIL GROUP LTD,Assistant Chief Executive (Excl SIU),7.8,POSTAL SERVICES-GOVERNMENT ONLY,2023-24Q1_PC0440
Sandwell Metropolitan Borough Council,https://www.sandwell.gov.uk/performance-spending/government-procurement-cards,27-Apr-23,Law & Governance,ROYAL MAIL GROUP LTD,Assistant Chief Executive (Excl SIU),4.89,POSTAL SERVICES-GOVERNMENT ONLY,2023-24Q1_PC0441
Sandwell Metropolitan Borough Council,https://www.sandwell.gov.uk/performance-spending/government-procurement-cards,27-Apr-23,Law & Governance,SPAR,Assistant Chief Executive (Excl SIU),7.56,NEWS DEALERS AND NEWSSTANDS,2023-24Q1_PC0442
Sandwell Metropolitan Borough Council,https://www.sandwell.gov.uk/performance-spending/government-procurement-cards,27-Apr-23,Law & Governance,WM MORRISONS STORE,Assistant Chief Executive (Excl SIU),32.44,"GROCERY STORES, SUPERMARKETS",2023-24Q1_PC0443
Sandwell Metropolitan Borough Council,https://www.sandwell.gov.uk/performance-spending/government-procurement-cards,27-Apr-23,Law & Governance,WM MORRISONS STORE,Assistant Chief Executive (Excl SIU),1.56,"GROCERY STORES, SUPERMARKETS",2023-24Q1_PC0444
Sandwell Metropolitan Borough Council,https://www.sandwell.gov.uk/performance-spending/government-procurement-cards,27-Apr-23,Childrens Services,ADOBE PS CREATIVE CLD,Childrens Services,19.97,COMPUTER SOFTWARE STORES,2023-24Q1_PC0445
Sandwell Metropolitan Borough Council,https://www.sandwell.gov.uk/performance-spending/government-procurement-cards,27-Apr-23,Childrens Services,Amazon.co.uk 4Y9V10565,Childrens Services,12.99,DIRECT MARKETING-OTHER DIRECT MARKETERS/NOT ELSEW.,2023-24Q1_PC0446
Sandwell Metropolitan Borough Council,https://www.sandwell.gov.uk/performance-spending/government-procurement-cards,27-Apr-23,Childrens Services,Amazon.co.uk 9P9914L75,Childrens Services,13.53,DIRECT MARKETING-OTHER DIRECT MARKETERS/NOT ELSEW.,2023-24Q1_PC0447
Sandwell Metropolitan Borough Council,https://www.sandwell.gov.uk/performance-spending/government-procurement-cards,27-Apr-23,Childrens Services,AMZ Itech Store,Childrens Services,-105.6,MISCELLANEOUS AND SPECIALTY RETAIL STORES,2023-24Q1_PC0448
Sandwell Metropolitan Borough Council,https://www.sandwell.gov.uk/performance-spending/government-procurement-cards,27-Apr-23,Childrens Services,BRIDEBOOK,Childrens Services,153.6,COMPUTER SOFTWARE STORES,2023-24Q1_PC0449
Sandwell Metropolitan Borough Council,https://www.sandwell.gov.uk/performance-spending/government-procurement-cards,27-Apr-23,Childrens Services,GOMPELS HEALTHCARE,Childrens Services,211.85,WHOLESALE CLUBS,2023-24Q1_PC0450
Sandwell Metropolitan Borough Council,https://www.sandwell.gov.uk/performance-spending/government-procurement-cards,27-Apr-23,Childrens Services,ICEPACKS4LESS,Childrens Services,37.14,DENTAL/LAB/MED/OPHTHALMIC HOSP EQUIP & SUPPLIES,2023-24Q1_PC0451
Sandwell Metropolitan Borough Council,https://www.sandwell.gov.uk/performance-spending/government-procurement-cards,27-Apr-23,Childrens Services,NOPCOMMERCE STORE,Childrens Services,120.6,MEN'S AND WOMEN'S CLOTHING STORES,2023-24Q1_PC0452
Sandwell Metropolitan Borough Council,https://www.sandwell.gov.uk/performance-spending/government-procurement-cards,27-Apr-23,Childrens Services,RONTEC DUDLEY PORT,Childrens Services,9.79,SERVICE STATIONS WITH OR WITHOUT ANCILLARY SERVICE,2023-24Q1_PC0453
Sandwell Metropolitan Borough Council,https://www.sandwell.gov.uk/performance-spending/government-procurement-cards,27-Apr-23,Childrens Services,SQ  KALEIDOSCOPE PLUS,Childrens Services,180,"ORGANIZATIONS, CHARITABLE AND SOCIAL SERVICES",2023-24Q1_PC0454
Sandwell Metropolitan Borough Council,https://www.sandwell.gov.uk/performance-spending/government-procurement-cards,27-Apr-23,Childrens Services,TESCO STORES 2770,Childrens Services,80.54,"GROCERY STORES, SUPERMARKETS",2023-24Q1_PC0455
Sandwell Metropolitan Borough Council,https://www.sandwell.gov.uk/performance-spending/government-procurement-cards,27-Apr-23,Childrens Services,TESCO STORES 2770,Childrens Services,62.95,"GROCERY STORES, SUPERMARKETS",2023-24Q1_PC0456
Sandwell Metropolitan Borough Council,https://www.sandwell.gov.uk/performance-spending/government-procurement-cards,27-Apr-23,Childrens Services,Twinkl,Childrens Services,53.88,SCHOOLS & EDUCATIONAL SVC-NOT ELSEWHERE CLASSIFIED,2023-24Q1_PC0457
Sandwell Metropolitan Borough Council,https://www.sandwell.gov.uk/performance-spending/government-procurement-cards,27-Apr-23,Corporate Management,AMZNMktplace,Corporate Management,14.98,MISCELLANEOUS AND SPECIALTY RETAIL STORES,2023-24Q1_PC0458
Sandwell Metropolitan Borough Council,https://www.sandwell.gov.uk/performance-spending/government-procurement-cards,27-Apr-23,Corporate Management,POSTURITE LTD,Corporate Management,136.8,MISCELLANEOUS HOUSE FURNISHING SPECIALTY SHOPS,2023-24Q1_PC0459
Sandwell Metropolitan Borough Council,https://www.sandwell.gov.uk/performance-spending/government-procurement-cards,27-Apr-23,Individual School Budgets With Inclusion,AMZNMktplace,Individual School Budgets With Inclusion,27.47,MISCELLANEOUS AND SPECIALTY RETAIL STORES,2023-24Q1_PC0460
Sandwell Metropolitan Borough Council,https://www.sandwell.gov.uk/performance-spending/government-procurement-cards,27-Apr-23,Individual School Budgets With Inclusion,ASDA STORES 4765,Individual School Budgets With Inclusion,8.4,"GROCERY STORES, SUPERMARKETS",2023-24Q1_PC0461
Sandwell Metropolitan Borough Council,https://www.sandwell.gov.uk/performance-spending/government-procurement-cards,27-Apr-23,Individual School Budgets With Inclusion,GREGGS PLC,Individual School Budgets With Inclusion,2.63,"EATING PLACES, RESTAURANTS",2023-24Q1_PC0462
Sandwell Metropolitan Borough Council,https://www.sandwell.gov.uk/performance-spending/government-procurement-cards,27-Apr-23,Individual School Budgets With Inclusion,SANDWELL & DUD T/O,Individual School Budgets With Inclusion,11.6,PASSENGER RAILWAYS,2023-24Q1_PC0463
Sandwell Metropolitan Borough Council,https://www.sandwell.gov.uk/performance-spending/government-procurement-cards,27-Apr-23,Individual School Budgets With Inclusion,SP PRINTERINKDIRECT,Individual School Budgets With Inclusion,149,COMPUTER SOFTWARE STORES,2023-24Q1_PC0464
Sandwell Metropolitan Borough Council,https://www.sandwell.gov.uk/performance-spending/government-procurement-cards,27-Apr-23,Individual School Budgets With Inclusion,UBER    EATS,Individual School Budgets With Inclusion,49.01,"EATING PLACES, RESTAURANTS",2023-24Q1_PC0465
Sandwell Metropolitan Borough Council,https://www.sandwell.gov.uk/performance-spending/government-procurement-cards,27-Apr-23,Total Public Health,Amazon.co.uk GD4O49G65,Public Health,43.67,DIRECT MARKETING-OTHER DIRECT MARKETERS/NOT ELSEW.,2023-24Q1_PC0466
Sandwell Metropolitan Borough Council,https://www.sandwell.gov.uk/performance-spending/government-procurement-cards,27-Apr-23,FINANCE (Inc SIU),AMZNMKTPLACE AMAZON.CO,Total Adult Social Care,16.99,MISCELLANEOUS AND SPECIALTY RETAIL STORES,2023-24Q1_PC0467
Sandwell Metropolitan Borough Council,https://www.sandwell.gov.uk/performance-spending/government-procurement-cards,27-Apr-23,Total ASCHWB,AMZNMktplace,Total Adult Social Care,50.37,MISCELLANEOUS AND SPECIALTY RETAIL STORES,2023-24Q1_PC0468
Sandwell Metropolitan Borough Council,https://www.sandwell.gov.uk/performance-spending/government-procurement-cards,27-Apr-23,Total ASCHWB,AMZNMktplace,Total Adult Social Care,39.89,MISCELLANEOUS AND SPECIALTY RETAIL STORES,2023-24Q1_PC0469
Sandwell Metropolitan Borough Council,https://www.sandwell.gov.uk/performance-spending/government-procurement-cards,27-Apr-23,Total ASCHWB,AMZNMKTPLACE AMAZON.CO,Total Adult Social Care,23.94,MISCELLANEOUS AND SPECIALTY RETAIL STORES,2023-24Q1_PC0470
Sandwell Metropolitan Borough Council,https://www.sandwell.gov.uk/performance-spending/government-procurement-cards,27-Apr-23,Total ASCHWB,AMZNMKTPLACE AMAZON.CO,Total Adult Social Care,184.5,MISCELLANEOUS AND SPECIALTY RETAIL STORES,2023-24Q1_PC0471
Sandwell Metropolitan Borough Council,https://www.sandwell.gov.uk/performance-spending/government-procurement-cards,27-Apr-23,Total ASCHWB,BILLINGHAMS FLORISTS,Total Adult Social Care,50,FLORISTS,2023-24Q1_PC0472
Sandwell Metropolitan Borough Council,https://www.sandwell.gov.uk/performance-spending/government-procurement-cards,27-Apr-23,Total Borough Economy,Amazon Prime F80RF9515,Total Adult Social Care,8.99,DIRECT MARKETING-CONTINUITY/SUBSCRIPTION MERCHANTS,2023-24Q1_PC0473
Sandwell Metropolitan Borough Council,https://www.sandwell.gov.uk/performance-spending/government-procurement-cards,27-Apr-23,Total Borough Economy,Amazon.co.uk CA04R3C05,Total Adult Social Care,50,DIRECT MARKETING-OTHER DIRECT MARKETERS/NOT ELSEW.,2023-24Q1_PC0474
Sandwell Metropolitan Borough Council,https://www.sandwell.gov.uk/performance-spending/government-procurement-cards,27-Apr-23,Total Borough Economy,Amazon.co.uk X67QQ4S75,Total Adult Social Care,6.75,DIRECT MARKETING-OTHER DIRECT MARKETERS/NOT ELSEW.,2023-24Q1_PC0475
Sandwell Metropolitan Borough Council,https://www.sandwell.gov.uk/performance-spending/government-procurement-cards,27-Apr-23,Total Borough Economy,AMZNMktplace,Total Adult Social Care,194.56,MISCELLANEOUS AND SPECIALTY RETAIL STORES,2023-24Q1_PC0476
Sandwell Metropolitan Borough Council,https://www.sandwell.gov.uk/performance-spending/government-procurement-cards,27-Apr-23,Total Borough Economy,AMZNMktplace,Total Adult Social Care,26.22,MISCELLANEOUS AND SPECIALTY RETAIL STORES,2023-24Q1_PC0477
Sandwell Metropolitan Borough Council,https://www.sandwell.gov.uk/performance-spending/government-procurement-cards,27-Apr-23,Total Borough Economy,AMZNMktplace,Total Adult Social Care,58.95,MISCELLANEOUS AND SPECIALTY RETAIL STORES,2023-24Q1_PC0478
Sandwell Metropolitan Borough Council,https://www.sandwell.gov.uk/performance-spending/government-procurement-cards,27-Apr-23,Total Borough Economy,AMZNMktplace,Total Adult Social Care,8.26,MISCELLANEOUS AND SPECIALTY RETAIL STORES,2023-24Q1_PC0479
Sandwell Metropolitan Borough Council,https://www.sandwell.gov.uk/performance-spending/government-procurement-cards,27-Apr-23,Total Borough Economy,AMZNMKTPLACE AMAZON.CO,Total Adult Social Care,32.99,MISCELLANEOUS AND SPECIALTY RETAIL STORES,2023-24Q1_PC0480
Sandwell Metropolitan Borough Council,https://www.sandwell.gov.uk/performance-spending/government-procurement-cards,27-Apr-23,Total Borough Economy,POUNDLAND,Total Adult Social Care,1.55,DISCOUNT STORES,2023-24Q1_PC0481
Sandwell Metropolitan Borough Council,https://www.sandwell.gov.uk/performance-spending/government-procurement-cards,27-Apr-23,Total Borough Economy,Wm Morrisons Store Pic,Total Adult Social Care,54.88,"GROCERY STORES, SUPERMARKETS",2023-24Q1_PC0482
Sandwell Metropolitan Borough Council,https://www.sandwell.gov.uk/performance-spending/government-procurement-cards,27-Apr-23,Total Housing Revenue Account,AMZNMktplace,Total Housing Revenue Account,20.48,MISCELLANEOUS AND SPECIALTY RETAIL STORES,2023-24Q1_PC0483
Sandwell Metropolitan Borough Council,https://www.sandwell.gov.uk/performance-spending/government-procurement-cards,27-Apr-23,Total Housing Revenue Account,POST OFFICE COUNTER,Total Housing Revenue Account,249.7,POSTAL SERVICES-GOVERNMENT ONLY,2023-24Q1_PC0484
Sandwell Metropolitan Borough Council,https://www.sandwell.gov.uk/performance-spending/government-procurement-cards,27-Apr-23,Total Housing Revenue Account,www.lsengineers.co.uk,Total Housing Revenue Account,25.84,HARDWARE STORES,2023-24Q1_PC0485
Sandwell Metropolitan Borough Council,https://www.sandwell.gov.uk/performance-spending/government-procurement-cards,28-Apr-23,FINANCE (Inc SIU),Amazon.co.uk 7N84C8MA5,Assistant Chief Executive (Excl SIU),19.18,DIRECT MARKETING-OTHER DIRECT MARKETERS/NOT ELSEW.,2023-24Q1_PC0486
Sandwell Metropolitan Borough Council,https://www.sandwell.gov.uk/performance-spending/government-procurement-cards,28-Apr-23,Law & Governance,AMZNMktplace,Assistant Chief Executive (Excl SIU),85.48,MISCELLANEOUS AND SPECIALTY RETAIL STORES,2023-24Q1_PC0487
Sandwell Metropolitan Borough Council,https://www.sandwell.gov.uk/performance-spending/government-procurement-cards,28-Apr-23,Law & Governance,AMZNMktplace,Assistant Chief Executive (Excl SIU),118.85,MISCELLANEOUS AND SPECIALTY RETAIL STORES,2023-24Q1_PC0488
Sandwell Metropolitan Borough Council,https://www.sandwell.gov.uk/performance-spending/government-procurement-cards,28-Apr-23,Childrens Services,AMZNMktplace,Childrens Services,3.35,MISCELLANEOUS AND SPECIALTY RETAIL STORES,2023-24Q1_PC0489
Sandwell Metropolitan Borough Council,https://www.sandwell.gov.uk/performance-spending/government-procurement-cards,28-Apr-23,Childrens Services,GOMPELS HEALTHCARE,Childrens Services,119.68,WHOLESALE CLUBS,2023-24Q1_PC0490
Sandwell Metropolitan Borough Council,https://www.sandwell.gov.uk/performance-spending/government-procurement-cards,28-Apr-23,Childrens Services,ROYAL MAIL GROUP LTD,Childrens Services,29.9,POSTAL SERVICES-GOVERNMENT ONLY,2023-24Q1_PC0491
Sandwell Metropolitan Borough Council,https://www.sandwell.gov.uk/performance-spending/government-procurement-cards,28-Apr-23,Childrens Services,TESCO STORES 2770,Childrens Services,-0.99,"GROCERY STORES, SUPERMARKETS",2023-24Q1_PC0492
Sandwell Metropolitan Borough Council,https://www.sandwell.gov.uk/performance-spending/government-procurement-cards,28-Apr-23,Childrens Services,TESCO STORES 2770,Childrens Services,73.99,"GROCERY STORES, SUPERMARKETS",2023-24Q1_PC0493
Sandwell Metropolitan Borough Council,https://www.sandwell.gov.uk/performance-spending/government-procurement-cards,28-Apr-23,Childrens Services,WWW.LESAR.CO.UK,Childrens Services,221.86,COMPUTER SOFTWARE STORES,2023-24Q1_PC0494
Sandwell Metropolitan Borough Council,https://www.sandwell.gov.uk/performance-spending/government-procurement-cards,28-Apr-23,Childrens Services,WWW.SCREWFIX.COM,Childrens Services,15.39,"BUILDING MATERIALS, LUMBER STORES",2023-24Q1_PC0495
Sandwell Metropolitan Borough Council,https://www.sandwell.gov.uk/performance-spending/government-procurement-cards,28-Apr-23,Corporate Management,AMZNMKTPLACE AMAZON.CO,Corporate Management,14.94,MISCELLANEOUS AND SPECIALTY RETAIL STORES,2023-24Q1_PC0496
Sandwell Metropolitan Borough Council,https://www.sandwell.gov.uk/performance-spending/government-procurement-cards,28-Apr-23,Corporate Management,AMZNMKTPLACE AMAZON.CO,Corporate Management,29.98,MISCELLANEOUS AND SPECIALTY RETAIL STORES,2023-24Q1_PC0497
Sandwell Metropolitan Borough Council,https://www.sandwell.gov.uk/performance-spending/government-procurement-cards,28-Apr-23,Housing & Assets Total,Amazon.co.uk YX5VT9FC5,Corporate Management,51.84,DIRECT MARKETING-OTHER DIRECT MARKETERS/NOT ELSEW.,2023-24Q1_PC0498
Sandwell Metropolitan Borough Council,https://www.sandwell.gov.uk/performance-spending/government-procurement-cards,28-Apr-23,Housing & Assets Total,WWW.OVOENERGY.COM,Corporate Management,-125,"UTLTS-ELCTRC, GAS, HEATING OIL, SANITARY, WATER",2023-24Q1_PC0499
Sandwell Metropolitan Borough Council,https://www.sandwell.gov.uk/performance-spending/government-procurement-cards,28-Apr-23,Housing & Assets Total,WWW.OVOENERGY.COM,Corporate Management,-0.61,"UTLTS-ELCTRC, GAS, HEATING OIL, SANITARY, WATER",2023-24Q1_PC0500
Sandwell Metropolitan Borough Council,https://www.sandwell.gov.uk/performance-spending/government-procurement-cards,28-Apr-23,Individual School Budgets With Inclusion,AMZNMktplace,Individual School Budgets With Inclusion,12.39,MISCELLANEOUS AND SPECIALTY RETAIL STORES,2023-24Q1_PC0501
Sandwell Metropolitan Borough Council,https://www.sandwell.gov.uk/performance-spending/government-procurement-cards,28-Apr-23,Individual School Budgets With Inclusion,AMZNMktplace,Individual School Budgets With Inclusion,15.37,MISCELLANEOUS AND SPECIALTY RETAIL STORES,2023-24Q1_PC0502
Sandwell Metropolitan Borough Council,https://www.sandwell.gov.uk/performance-spending/government-procurement-cards,28-Apr-23,Total Public Health,Domino s Pizza,Public Health,109.25,"EATING PLACES, RESTAURANTS",2023-24Q1_PC0503
Sandwell Metropolitan Borough Council,https://www.sandwell.gov.uk/performance-spending/government-procurement-cards,28-Apr-23,Regeneration & Growth,AMZNMktplace,Regeneration And The Economy,40.24,MISCELLANEOUS AND SPECIALTY RETAIL STORES,2023-24Q1_PC0504
Sandwell Metropolitan Borough Council,https://www.sandwell.gov.uk/performance-spending/government-procurement-cards,28-Apr-23,Regeneration & Growth,AMZNMKTPLACE AMAZON.CO,Regeneration And The Economy,111.96,MISCELLANEOUS AND SPECIALTY RETAIL STORES,2023-24Q1_PC0505
Sandwell Metropolitan Borough Council,https://www.sandwell.gov.uk/performance-spending/government-procurement-cards,28-Apr-23,Regeneration & Growth,STANFORD MARSH LTD,Regeneration And The Economy,78.73,"OFFICE, SCHOOL SUPPLY, AND STATIONERY STORES",2023-24Q1_PC0506
Sandwell Metropolitan Borough Council,https://www.sandwell.gov.uk/performance-spending/government-procurement-cards,28-Apr-23,Total ASCHWB,AMZNMktplace,Total Adult Social Care,139.5,MISCELLANEOUS AND SPECIALTY RETAIL STORES,2023-24Q1_PC0507
Sandwell Metropolitan Borough Council,https://www.sandwell.gov.uk/performance-spending/government-procurement-cards,28-Apr-23,Total ASCHWB,AMZNMKTPLACE AMAZON.CO,Total Adult Social Care,92.46,MISCELLANEOUS AND SPECIALTY RETAIL STORES,2023-24Q1_PC0508
Sandwell Metropolitan Borough Council,https://www.sandwell.gov.uk/performance-spending/government-procurement-cards,28-Apr-23,Total Borough Economy,"BOOTS,WEST BROMWICH",Total Adult Social Care,8.38,"DRUG STORES, PHARMACIES",2023-24Q1_PC0509
Sandwell Metropolitan Borough Council,https://www.sandwell.gov.uk/performance-spending/government-procurement-cards,28-Apr-23,Total Borough Economy,COTSWOLD SEEDS LTD,Total Adult Social Care,229.75,LAWN AND GARDEN SUPPLY STORES,2023-24Q1_PC0510
Sandwell Metropolitan Borough Council,https://www.sandwell.gov.uk/performance-spending/government-procurement-cards,28-Apr-23,Total Borough Economy,HERON FOODS,Total Adult Social Care,10,"GROCERY STORES, SUPERMARKETS",2023-24Q1_PC0511
Sandwell Metropolitan Borough Council,https://www.sandwell.gov.uk/performance-spending/government-procurement-cards,28-Apr-23,Total Borough Economy,PAYPAL  FABRICLANDB,Total Adult Social Care,183.48,PROFESSIONAL SERVICES-NOT ELSEWHERE CLASSIFIED,2023-24Q1_PC0512
Sandwell Metropolitan Borough Council,https://www.sandwell.gov.uk/performance-spending/government-procurement-cards,28-Apr-23,Total Borough Economy,STITCHES OF BRIDGNORTH,Total Adult Social Care,201.34,MEN'S/WOMEN'S/CHILDREN'S UNIFORMS/COMMERCIAL CLOTH,2023-24Q1_PC0513
Sandwell Metropolitan Borough Council,https://www.sandwell.gov.uk/performance-spending/government-procurement-cards,28-Apr-23,Total Borough Economy,TESCO STORES 2335,Total Adult Social Care,43.31,"GROCERY STORES, SUPERMARKETS",2023-24Q1_PC0514
Sandwell Metropolitan Borough Council,https://www.sandwell.gov.uk/performance-spending/government-procurement-cards,28-Apr-23,Total Borough Economy,trainline,Total Adult Social Care,-3.6,PASSENGER RAILWAYS,2023-24Q1_PC0515
Sandwell Metropolitan Borough Council,https://www.sandwell.gov.uk/performance-spending/government-procurement-cards,28-Apr-23,Total Borough Economy,Wm Morrisons Store Pic,Total Adult Social Care,109.68,"GROCERY STORES, SUPERMARKETS",2023-24Q1_PC0516
Sandwell Metropolitan Borough Council,https://www.sandwell.gov.uk/performance-spending/government-procurement-cards,28-Apr-23,Total Borough Economy,WWW.SANDWELL.GOV.UK,Total Adult Social Care,63,GOVERNMENT SERVICES-NOT ELSEWHERE CLASSIFIED,2023-24Q1_PC0517
Sandwell Metropolitan Borough Council,https://www.sandwell.gov.uk/performance-spending/government-procurement-cards,28-Apr-23,Total Borough Economy,WWW.SANDWELL.GOV.UK,Total Adult Social Care,63,GOVERNMENT SERVICES-NOT ELSEWHERE CLASSIFIED,2023-24Q1_PC0518
Sandwell Metropolitan Borough Council,https://www.sandwell.gov.uk/performance-spending/government-procurement-cards,28-Apr-23,Total Housing Revenue Account,AMZNMKTPLACE AMAZON.CO,Total Housing Revenue Account,97.77,MISCELLANEOUS AND SPECIALTY RETAIL STORES,2023-24Q1_PC0519
Sandwell Metropolitan Borough Council,https://www.sandwell.gov.uk/performance-spending/government-procurement-cards,28-Apr-23,Total Housing Revenue Account,AMZNMKTPLACE AMAZON.CO,Total Housing Revenue Account,73.33,MISCELLANEOUS AND SPECIALTY RETAIL STORES,2023-24Q1_PC0520
Sandwell Metropolitan Borough Council,https://www.sandwell.gov.uk/performance-spending/government-procurement-cards,28-Apr-23,Total Housing Revenue Account,AMZNMKTPLACE AMAZON.CO,Total Housing Revenue Account,97.78,MISCELLANEOUS AND SPECIALTY RETAIL STORES,2023-24Q1_PC0521
Sandwell Metropolitan Borough Council,https://www.sandwell.gov.uk/performance-spending/government-procurement-cards,28-Apr-23,Total Housing Revenue Account,ROYAL MAIL GROUP LTD,Total Housing Revenue Account,14.45,POSTAL SERVICES-GOVERNMENT ONLY,2023-24Q1_PC0522
Sandwell Metropolitan Borough Council,https://www.sandwell.gov.uk/performance-spending/government-procurement-cards,28-Apr-23,Total Housing Revenue Account,ROYAL MAIL GROUP LTD,Total Housing Revenue Account,17.45,POSTAL SERVICES-GOVERNMENT ONLY,2023-24Q1_PC0523
Sandwell Metropolitan Borough Council,https://www.sandwell.gov.uk/performance-spending/government-procurement-cards,01-May-23,Assistant Chief Executive,AMZNMktplace,Assistant Chief Executive (Excl SIU),28.34,MISCELLANEOUS AND SPECIALTY RETAIL STORES,2023-24Q1_PC0524
Sandwell Metropolitan Borough Council,https://www.sandwell.gov.uk/performance-spending/government-procurement-cards,01-May-23,Assistant Chief Executive,AMZNMKTPLACE AMAZON.CO,Assistant Chief Executive (Excl SIU),37.38,MISCELLANEOUS AND SPECIALTY RETAIL STORES,2023-24Q1_PC0525
Sandwell Metropolitan Borough Council,https://www.sandwell.gov.uk/performance-spending/government-procurement-cards,01-May-23,FINANCE (Inc SIU),WWW.CIPFA.ORG.UK,Assistant Chief Executive (Excl SIU),120,"ORGANIZATIONS, MEMBERSHIP-NOT ELSEWHERE CLASSIFIED",2023-24Q1_PC0526
Sandwell Metropolitan Borough Council,https://www.sandwell.gov.uk/performance-spending/government-procurement-cards,01-May-23,Law & Governance,Amazon Prime ET1EQ1Z05,Assistant Chief Executive (Excl SIU),8.99,DIRECT MARKETING-CONTINUITY/SUBSCRIPTION MERCHANTS,2023-24Q1_PC0527
Sandwell Metropolitan Borough Council,https://www.sandwell.gov.uk/performance-spending/government-procurement-cards,01-May-23,Law & Governance,FACEBK  EQNSNQFTF2,Assistant Chief Executive (Excl SIU),40,ADVERTISING SERVICES,2023-24Q1_PC0528
Sandwell Metropolitan Borough Council,https://www.sandwell.gov.uk/performance-spending/government-procurement-cards,01-May-23,Law & Governance,ROYAL MAIL GROUP LTD,Assistant Chief Executive (Excl SIU),5.2,POSTAL SERVICES-GOVERNMENT ONLY,2023-24Q1_PC0529
Sandwell Metropolitan Borough Council,https://www.sandwell.gov.uk/performance-spending/government-procurement-cards,01-May-23,Law & Governance,THOMAS TELFORD LIMIT,Assistant Chief Executive (Excl SIU),127.5,PROFESSIONAL SERVICES-NOT ELSEWHERE CLASSIFIED,2023-24Q1_PC0530
Sandwell Metropolitan Borough Council,https://www.sandwell.gov.uk/performance-spending/government-procurement-cards,01-May-23,Childrens Services,AMZNMktplace,Childrens Services,393.29,MISCELLANEOUS AND SPECIALTY RETAIL STORES,2023-24Q1_PC0531
Sandwell Metropolitan Borough Council,https://www.sandwell.gov.uk/performance-spending/government-procurement-cards,01-May-23,Childrens Services,AMZNMktplace,Childrens Services,12.78,MISCELLANEOUS AND SPECIALTY RETAIL STORES,2023-24Q1_PC0532
Sandwell Metropolitan Borough Council,https://www.sandwell.gov.uk/performance-spending/government-procurement-cards,01-May-23,Childrens Services,AMZNMKTPLACE AMAZON.CO,Childrens Services,19.98,MISCELLANEOUS AND SPECIALTY RETAIL STORES,2023-24Q1_PC0533
Sandwell Metropolitan Borough Council,https://www.sandwell.gov.uk/performance-spending/government-procurement-cards,01-May-23,Childrens Services,ASDA SUPERSTORE 04236,Childrens Services,15.1,"GROCERY STORES, SUPERMARKETS",2023-24Q1_PC0534
Sandwell Metropolitan Borough Council,https://www.sandwell.gov.uk/performance-spending/government-procurement-cards,01-May-23,Childrens Services,BEEBYS BUBBLES,Childrens Services,45,"CLEANING, GARMENT, AND LAUNDRY SERVICES",2023-24Q1_PC0535
Sandwell Metropolitan Borough Council,https://www.sandwell.gov.uk/performance-spending/government-procurement-cards,01-May-23,Childrens Services,EB  RESOURCE HUB TRAIN,Childrens Services,-25,BUSINESS SERVICES-NOT ELSEWHERE CLASSIFIED,2023-24Q1_PC0536
Sandwell Metropolitan Borough Council,https://www.sandwell.gov.uk/performance-spending/government-procurement-cards,01-May-23,Childrens Services,FARMFOODS 621,Childrens Services,7.98,"GROCERY STORES, SUPERMARKETS",2023-24Q1_PC0537
Sandwell Metropolitan Borough Council,https://www.sandwell.gov.uk/performance-spending/government-procurement-cards,01-May-23,Childrens Services,SAINSBURYS SMKTS,Childrens Services,20.1,"GROCERY STORES, SUPERMARKETS",2023-24Q1_PC0538
Sandwell Metropolitan Borough Council,https://www.sandwell.gov.uk/performance-spending/government-procurement-cards,01-May-23,Childrens Services,TESCO STORES 2770,Childrens Services,165.8,"GROCERY STORES, SUPERMARKETS",2023-24Q1_PC0539
Sandwell Metropolitan Borough Council,https://www.sandwell.gov.uk/performance-spending/government-procurement-cards,01-May-23,Childrens Services,TESCO STORES 4512,Childrens Services,4.5,"GROCERY STORES, SUPERMARKETS",2023-24Q1_PC0540
Sandwell Metropolitan Borough Council,https://www.sandwell.gov.uk/performance-spending/government-procurement-cards,01-May-23,Childrens Services,TESCO SUBSCRIPTION,Childrens Services,7.99,DIRECT MARKETING-CONTINUITY/SUBSCRIPTION MERCHANTS,2023-24Q1_PC0541
Sandwell Metropolitan Borough Council,https://www.sandwell.gov.uk/performance-spending/government-procurement-cards,01-May-23,Housing & Assets Total,AMZNMKTPLACE AMAZON.CO,Corporate Management,172.61,MISCELLANEOUS AND SPECIALTY RETAIL STORES,2023-24Q1_PC0542
Sandwell Metropolitan Borough Council,https://www.sandwell.gov.uk/performance-spending/government-procurement-cards,01-May-23,Housing & Assets Total,ASDA STORES LTD,Corporate Management,50,"GROCERY STORES, SUPERMARKETS",2023-24Q1_PC0543
Sandwell Metropolitan Borough Council,https://www.sandwell.gov.uk/performance-spending/government-procurement-cards,01-May-23,Housing & Assets Total,GREGGS,Corporate Management,80,BAKERIES,2023-24Q1_PC0544
Sandwell Metropolitan Borough Council,https://www.sandwell.gov.uk/performance-spending/government-procurement-cards,01-May-23,Housing & Assets Total,GREGGS,Corporate Management,120,"EATING PLACES, RESTAURANTS",2023-24Q1_PC0545
Sandwell Metropolitan Borough Council,https://www.sandwell.gov.uk/performance-spending/government-procurement-cards,01-May-23,Housing & Assets Total,GREGGS,Corporate Management,70,"EATING PLACES, RESTAURANTS",2023-24Q1_PC0546
Sandwell Metropolitan Borough Council,https://www.sandwell.gov.uk/performance-spending/government-procurement-cards,01-May-23,Housing & Assets Total,TESCO GIFT CARD,Corporate Management,60,"GROCERY STORES, SUPERMARKETS",2023-24Q1_PC0547
Sandwell Metropolitan Borough Council,https://www.sandwell.gov.uk/performance-spending/government-procurement-cards,01-May-23,Housing & Assets Total,TESCO STORES,Corporate Management,345,"GROCERY STORES, SUPERMARKETS",2023-24Q1_PC0548
Sandwell Metropolitan Borough Council,https://www.sandwell.gov.uk/performance-spending/government-procurement-cards,01-May-23,Individual School Budgets With Inclusion,AMZNMktplace,Individual School Budgets With Inclusion,66.96,MISCELLANEOUS AND SPECIALTY RETAIL STORES,2023-24Q1_PC0549
Sandwell Metropolitan Borough Council,https://www.sandwell.gov.uk/performance-spending/government-procurement-cards,01-May-23,Individual School Budgets With Inclusion,AMZNMKTPLACE AMAZON.CO,Individual School Budgets With Inclusion,47.99,MISCELLANEOUS AND SPECIALTY RETAIL STORES,2023-24Q1_PC0550
Sandwell Metropolitan Borough Council,https://www.sandwell.gov.uk/performance-spending/government-procurement-cards,01-May-23,Individual School Budgets With Inclusion,UBER  EATS,Individual School Budgets With Inclusion,51.11,"EATING PLACES, RESTAURANTS",2023-24Q1_PC0551
Sandwell Metropolitan Borough Council,https://www.sandwell.gov.uk/performance-spending/government-procurement-cards,01-May-23,Total Public Health,PARK INN BY RADISSON,Public Health,136.8,PARK INN BY RADISSON,2023-24Q1_PC0552
Sandwell Metropolitan Borough Council,https://www.sandwell.gov.uk/performance-spending/government-procurement-cards,01-May-23,Total ASCHWB,B&M 022 - WEDNESBURY,Total Adult Social Care,21,MISCELLANEOUS GENERAL MERCHANDISE,2023-24Q1_PC0553
Sandwell Metropolitan Borough Council,https://www.sandwell.gov.uk/performance-spending/government-procurement-cards,01-May-23,Total ASCHWB,IKEA LTD 142 BIRMINGHA,Total Adult Social Care,249.5,"EQUIP, FURNITURE, HOME FURNSHNGS STRS (EXCPT APPL)",2023-24Q1_PC0554
Sandwell Metropolitan Borough Council,https://www.sandwell.gov.uk/performance-spending/government-procurement-cards,01-May-23,Total ASCHWB,Prime Video  HM7V59EY5,Total Adult Social Care,2.49,RECORD SHOPS,2023-24Q1_PC0555
Sandwell Metropolitan Borough Council,https://www.sandwell.gov.uk/performance-spending/government-procurement-cards,01-May-23,Total ASCHWB,TVLICENSING.CO.UK,Total Adult Social Care,159,"CONSULTING, MANAGEMENT, AND PUBLIC RELATIONS SVCS",2023-24Q1_PC0556
Sandwell Metropolitan Borough Council,https://www.sandwell.gov.uk/performance-spending/government-procurement-cards,01-May-23,Total Borough Economy,AMZNMktplace,Total Adult Social Care,226.19,MISCELLANEOUS AND SPECIALTY RETAIL STORES,2023-24Q1_PC0557
Sandwell Metropolitan Borough Council,https://www.sandwell.gov.uk/performance-spending/government-procurement-cards,01-May-23,Total Borough Economy,AMZNMktplace,Total Adult Social Care,3.56,MISCELLANEOUS AND SPECIALTY RETAIL STORES,2023-24Q1_PC0558
Sandwell Metropolitan Borough Council,https://www.sandwell.gov.uk/performance-spending/government-procurement-cards,01-May-23,Total Borough Economy,AMZNMktplace,Total Adult Social Care,23.98,MISCELLANEOUS AND SPECIALTY RETAIL STORES,2023-24Q1_PC0559
Sandwell Metropolitan Borough Council,https://www.sandwell.gov.uk/performance-spending/government-procurement-cards,01-May-23,Total Borough Economy,AMZNMktplace,Total Adult Social Care,50.75,MISCELLANEOUS AND SPECIALTY RETAIL STORES,2023-24Q1_PC0560
Sandwell Metropolitan Borough Council,https://www.sandwell.gov.uk/performance-spending/government-procurement-cards,01-May-23,Total Borough Economy,AMZNMktplace,Total Adult Social Care,-19.8,MISCELLANEOUS AND SPECIALTY RETAIL STORES,2023-24Q1_PC0561
Sandwell Metropolitan Borough Council,https://www.sandwell.gov.uk/performance-spending/government-procurement-cards,01-May-23,Total Borough Economy,ASDA SUPERSTORE,Total Adult Social Care,41.59,"GROCERY STORES, SUPERMARKETS",2023-24Q1_PC0562
Sandwell Metropolitan Borough Council,https://www.sandwell.gov.uk/performance-spending/government-procurement-cards,01-May-23,Total Borough Economy,B&M 697 - WEST BROMWIC,Total Adult Social Care,8.75,MISCELLANEOUS GENERAL MERCHANDISE,2023-24Q1_PC0563
Sandwell Metropolitan Borough Council,https://www.sandwell.gov.uk/performance-spending/government-procurement-cards,01-May-23,Total Borough Economy,GLOBAL WINES (BHAM) LT,Total Adult Social Care,11.38,"PACKAGE STORES, BEER, WINE, LIQUOR",2023-24Q1_PC0564
Sandwell Metropolitan Borough Council,https://www.sandwell.gov.uk/performance-spending/government-procurement-cards,01-May-23,Total Borough Economy,GLOBAL WINES (BHAM) LT,Total Adult Social Care,53.23,"PACKAGE STORES, BEER, WINE, LIQUOR",2023-24Q1_PC0565
Sandwell Metropolitan Borough Council,https://www.sandwell.gov.uk/performance-spending/government-procurement-cards,01-May-23,Total Borough Economy,HOMEBASE LTD 085,Total Adult Social Care,7,HOME SUPPLY WAREHOUSE STORES,2023-24Q1_PC0566
Sandwell Metropolitan Borough Council,https://www.sandwell.gov.uk/performance-spending/government-procurement-cards,01-May-23,Total Borough Economy,ICELAND 1603,Total Adult Social Care,34.3,"GROCERY STORES, SUPERMARKETS",2023-24Q1_PC0567
Sandwell Metropolitan Borough Council,https://www.sandwell.gov.uk/performance-spending/government-procurement-cards,01-May-23,Total Borough Economy,IKEA LTD SHOP ONLINE,Total Adult Social Care,165,"EQUIP, FURNITURE, HOME FURNSHNGS STRS (EXCPT APPL)",2023-24Q1_PC0568
Sandwell Metropolitan Borough Council,https://www.sandwell.gov.uk/performance-spending/government-procurement-cards,01-May-23,Total Borough Economy,POUNDSTRETCHER 328,Total Adult Social Care,13.65,VARIETY STORES,2023-24Q1_PC0569
Sandwell Metropolitan Borough Council,https://www.sandwell.gov.uk/performance-spending/government-procurement-cards,01-May-23,Total Borough Economy,PRINTED.COM,Total Adult Social Care,140.33,MISCELLANEOUS PUBLISHING AND PRINTING,2023-24Q1_PC0570
Sandwell Metropolitan Borough Council,https://www.sandwell.gov.uk/performance-spending/government-procurement-cards,01-May-23,Total Borough Economy,SAINSBURYS S/MKTS,Total Adult Social Care,18.3,"GROCERY STORES, SUPERMARKETS",2023-24Q1_PC0571
Sandwell Metropolitan Borough Council,https://www.sandwell.gov.uk/performance-spending/government-procurement-cards,01-May-23,Total Borough Economy,TIMPSON LTD,Total Adult Social Care,72.85,MISCELLANEOUS AND SPECIALTY RETAIL STORES,2023-24Q1_PC0572
Sandwell Metropolitan Borough Council,https://www.sandwell.gov.uk/performance-spending/government-procurement-cards,01-May-23,Total Borough Economy,TIMPSON LTD,Total Adult Social Care,8,MISCELLANEOUS AND SPECIALTY RETAIL STORES,2023-24Q1_PC0573
Sandwell Metropolitan Borough Council,https://www.sandwell.gov.uk/performance-spending/government-procurement-cards,01-May-23,Total Borough Economy,Wm Morrisons Store Pic,Total Adult Social Care,99.08,"GROCERY STORES, SUPERMARKETS",2023-24Q1_PC0574
Sandwell Metropolitan Borough Council,https://www.sandwell.gov.uk/performance-spending/government-procurement-cards,01-May-23,Total Borough Economy,WWW.VKF-RENZEL.CO.,Total Adult Social Care,147.84,STATIONERY/OFFICE SUPPLIES/PRINTING & WRITING PAP.,2023-24Q1_PC0575
Sandwell Metropolitan Borough Council,https://www.sandwell.gov.uk/performance-spending/government-procurement-cards,02-May-23,Assistant Chief Executive,CLOUD G2z3RS,Assistant Chief Executive (Excl SIU),307.48,COMPUTER NETWORK/INFORMATION SERVICES,2023-24Q1_PC0576
Sandwell Metropolitan Borough Council,https://www.sandwell.gov.uk/performance-spending/government-procurement-cards,02-May-23,Childrens Services,Amazon.co.uk U40425HA5,Childrens Services,88.49,DIRECT MARKETING-OTHER DIRECT MARKETERS/NOT ELSEW.,2023-24Q1_PC0577
Sandwell Metropolitan Borough Council,https://www.sandwell.gov.uk/performance-spending/government-procurement-cards,02-May-23,Childrens Services,AMZNMktplace,Childrens Services,4.99,MISCELLANEOUS AND SPECIALTY RETAIL STORES,2023-24Q1_PC0578
Sandwell Metropolitan Borough Council,https://www.sandwell.gov.uk/performance-spending/government-procurement-cards,02-May-23,Total Public Health,Amazon Prime AE7V20J45,Public Health,8.99,DIRECT MARKETING-CONTINUITY/SUBSCRIPTION MERCHANTS,2023-24Q1_PC0579
Sandwell Metropolitan Borough Council,https://www.sandwell.gov.uk/performance-spending/government-procurement-cards,02-May-23,FINANCE (Inc SIU),AMZNMktplace,Total Adult Social Care,25.38,MISCELLANEOUS AND SPECIALTY RETAIL STORES,2023-24Q1_PC0580
Sandwell Metropolitan Borough Council,https://www.sandwell.gov.uk/performance-spending/government-procurement-cards,02-May-23,Total ASCHWB,AMZNMktplace,Total Adult Social Care,17.27,MISCELLANEOUS AND SPECIALTY RETAIL STORES,2023-24Q1_PC0581
Sandwell Metropolitan Borough Council,https://www.sandwell.gov.uk/performance-spending/government-procurement-cards,02-May-23,Total ASCHWB,AMZNMktplace,Total Adult Social Care,86.42,MISCELLANEOUS AND SPECIALTY RETAIL STORES,2023-24Q1_PC0582
Sandwell Metropolitan Borough Council,https://www.sandwell.gov.uk/performance-spending/government-procurement-cards,02-May-23,Total Borough Economy,AMZNMktplace,Total Adult Social Care,15.99,MISCELLANEOUS AND SPECIALTY RETAIL STORES,2023-24Q1_PC0583
Sandwell Metropolitan Borough Council,https://www.sandwell.gov.uk/performance-spending/government-procurement-cards,03-May-23,Assistant Chief Executive,AMZNMKTPLACE AMAZON.CO,Assistant Chief Executive (Excl SIU),194.77,MISCELLANEOUS AND SPECIALTY RETAIL STORES,2023-24Q1_PC0584
Sandwell Metropolitan Borough Council,https://www.sandwell.gov.uk/performance-spending/government-procurement-cards,03-May-23,FINANCE (Inc SIU),VIKING OFFICE UK LIMIT,Assistant Chief Executive (Excl SIU),60.94,STATIONERY/OFFICE SUPPLIES/PRINTING & WRITING PAP.,2023-24Q1_PC0585
Sandwell Metropolitan Borough Council,https://www.sandwell.gov.uk/performance-spending/government-procurement-cards,03-May-23,Law & Governance,Admire Flowers,Assistant Chief Executive (Excl SIU),100,FLORISTS,2023-24Q1_PC0586
Sandwell Metropolitan Borough Council,https://www.sandwell.gov.uk/performance-spending/government-procurement-cards,03-May-23,Law & Governance,ALDI 14 772,Assistant Chief Executive (Excl SIU),6.64,"GROCERY STORES, SUPERMARKETS",2023-24Q1_PC0587
Sandwell Metropolitan Borough Council,https://www.sandwell.gov.uk/performance-spending/government-procurement-cards,03-May-23,Law & Governance,Amazon.co.uk YY11G2L15,Assistant Chief Executive (Excl SIU),26,DIRECT MARKETING-OTHER DIRECT MARKETERS/NOT ELSEW.,2023-24Q1_PC0588
Sandwell Metropolitan Borough Council,https://www.sandwell.gov.uk/performance-spending/government-procurement-cards,03-May-23,Law & Governance,AMZNMktplace,Assistant Chief Executive (Excl SIU),6.97,MISCELLANEOUS AND SPECIALTY RETAIL STORES,2023-24Q1_PC0589
Sandwell Metropolitan Borough Council,https://www.sandwell.gov.uk/performance-spending/government-procurement-cards,03-May-23,Law & Governance,AMZNMktplace,Assistant Chief Executive (Excl SIU),85.48,MISCELLANEOUS AND SPECIALTY RETAIL STORES,2023-24Q1_PC0590
Sandwell Metropolitan Borough Council,https://www.sandwell.gov.uk/performance-spending/government-procurement-cards,03-May-23,Law & Governance,FUTURELEARN.COM,Assistant Chief Executive (Excl SIU),14.99,SCHOOLS & EDUCATIONAL SVC-NOT ELSEWHERE CLASSIFIED,2023-24Q1_PC0591
Sandwell Metropolitan Borough Council,https://www.sandwell.gov.uk/performance-spending/government-procurement-cards,03-May-23,Law & Governance,FUTURELEARN.COM,Assistant Chief Executive (Excl SIU),14.99,SCHOOLS & EDUCATIONAL SVC-NOT ELSEWHERE CLASSIFIED,2023-24Q1_PC0592
Sandwell Metropolitan Borough Council,https://www.sandwell.gov.uk/performance-spending/government-procurement-cards,03-May-23,Law & Governance,FUTURELEARN.COM,Assistant Chief Executive (Excl SIU),14.99,SCHOOLS & EDUCATIONAL SVC-NOT ELSEWHERE CLASSIFIED,2023-24Q1_PC0593
Sandwell Metropolitan Borough Council,https://www.sandwell.gov.uk/performance-spending/government-procurement-cards,03-May-23,Law & Governance,FUTURELEARN.COM,Assistant Chief Executive (Excl SIU),14.99,SCHOOLS & EDUCATIONAL SVC-NOT ELSEWHERE CLASSIFIED,2023-24Q1_PC0594
Sandwell Metropolitan Borough Council,https://www.sandwell.gov.uk/performance-spending/government-procurement-cards,03-May-23,Law & Governance,FUTURELEARN.COM,Assistant Chief Executive (Excl SIU),14.99,SCHOOLS & EDUCATIONAL SVC-NOT ELSEWHERE CLASSIFIED,2023-24Q1_PC0595
Sandwell Metropolitan Borough Council,https://www.sandwell.gov.uk/performance-spending/government-procurement-cards,03-May-23,Law & Governance,FUTURELEARN.COM,Assistant Chief Executive (Excl SIU),14.99,SCHOOLS & EDUCATIONAL SVC-NOT ELSEWHERE CLASSIFIED,2023-24Q1_PC0596
Sandwell Metropolitan Borough Council,https://www.sandwell.gov.uk/performance-spending/government-procurement-cards,03-May-23,Law & Governance,FUTURELEARN.COM,Assistant Chief Executive (Excl SIU),14.99,SCHOOLS & EDUCATIONAL SVC-NOT ELSEWHERE CLASSIFIED,2023-24Q1_PC0597
Sandwell Metropolitan Borough Council,https://www.sandwell.gov.uk/performance-spending/government-procurement-cards,03-May-23,Law & Governance,FUTURELEARN.COM,Assistant Chief Executive (Excl SIU),14.99,SCHOOLS & EDUCATIONAL SVC-NOT ELSEWHERE CLASSIFIED,2023-24Q1_PC0598
Sandwell Metropolitan Borough Council,https://www.sandwell.gov.uk/performance-spending/government-procurement-cards,03-May-23,Law & Governance,ROYAL MAIL GROUP LTD,Assistant Chief Executive (Excl SIU),3.1,POSTAL SERVICES-GOVERNMENT ONLY,2023-24Q1_PC0599
Sandwell Metropolitan Borough Council,https://www.sandwell.gov.uk/performance-spending/government-procurement-cards,03-May-23,Law & Governance,ROYAL MAIL GROUP LTD,Assistant Chief Executive (Excl SIU),5.2,POSTAL SERVICES-GOVERNMENT ONLY,2023-24Q1_PC0600
Sandwell Metropolitan Borough Council,https://www.sandwell.gov.uk/performance-spending/government-procurement-cards,03-May-23,Law & Governance,SAINSBURYS S/MKTS,Assistant Chief Executive (Excl SIU),25.15,"GROCERY STORES, SUPERMARKETS",2023-24Q1_PC0601
Sandwell Metropolitan Borough Council,https://www.sandwell.gov.uk/performance-spending/government-procurement-cards,03-May-23,Childrens Services,ALDI 9 772,Childrens Services,36.14,"GROCERY STORES, SUPERMARKETS",2023-24Q1_PC0602
Sandwell Metropolitan Borough Council,https://www.sandwell.gov.uk/performance-spending/government-procurement-cards,03-May-23,Childrens Services,AMZNMktplace,Childrens Services,25.38,MISCELLANEOUS AND SPECIALTY RETAIL STORES,2023-24Q1_PC0603
Sandwell Metropolitan Borough Council,https://www.sandwell.gov.uk/performance-spending/government-procurement-cards,03-May-23,Childrens Services,ASDA GROCERIES ONLINE,Childrens Services,43.25,"GROCERY STORES, SUPERMARKETS",2023-24Q1_PC0604
Sandwell Metropolitan Borough Council,https://www.sandwell.gov.uk/performance-spending/government-procurement-cards,03-May-23,Childrens Services,Norton  AP1462481631,Childrens Services,64.99,COMPUTER SOFTWARE STORES,2023-24Q1_PC0605
Sandwell Metropolitan Borough Council,https://www.sandwell.gov.uk/performance-spending/government-procurement-cards,03-May-23,Childrens Services,TESCO STORES 2770,Childrens Services,58.63,"GROCERY STORES, SUPERMARKETS",2023-24Q1_PC0606
Sandwell Metropolitan Borough Council,https://www.sandwell.gov.uk/performance-spending/government-procurement-cards,03-May-23,Childrens Services,WICKES BUILDING,Childrens Services,30,"BUILDING MATERIALS, LUMBER STORES",2023-24Q1_PC0607
Sandwell Metropolitan Borough Council,https://www.sandwell.gov.uk/performance-spending/government-procurement-cards,03-May-23,Childrens Services,WWW.LESAR.CO.UK,Childrens Services,166.32,COMPUTER SOFTWARE STORES,2023-24Q1_PC0608
Sandwell Metropolitan Borough Council,https://www.sandwell.gov.uk/performance-spending/government-procurement-cards,03-May-23,Housing & Assets Total,AMZ Daal's Home,Corporate Management,-139.98,MISCELLANEOUS AND SPECIALTY RETAIL STORES,2023-24Q1_PC0609
Sandwell Metropolitan Borough Council,https://www.sandwell.gov.uk/performance-spending/government-procurement-cards,03-May-23,Housing & Assets Total,AMZNMktplace,Corporate Management,6.99,MISCELLANEOUS AND SPECIALTY RETAIL STORES,2023-24Q1_PC0610
Sandwell Metropolitan Borough Council,https://www.sandwell.gov.uk/performance-spending/government-procurement-cards,03-May-23,Housing & Assets Total,AMZNMktplace,Corporate Management,59.95,MISCELLANEOUS AND SPECIALTY RETAIL STORES,2023-24Q1_PC0611
Sandwell Metropolitan Borough Council,https://www.sandwell.gov.uk/performance-spending/government-procurement-cards,03-May-23,Housing & Assets Total,AMZNMktplace,Corporate Management,6.98,MISCELLANEOUS AND SPECIALTY RETAIL STORES,2023-24Q1_PC0612
Sandwell Metropolitan Borough Council,https://www.sandwell.gov.uk/performance-spending/government-procurement-cards,03-May-23,Individual School Budgets With Inclusion,ASDA GROCERIES ONLINE,Individual School Budgets With Inclusion,13.25,"GROCERY STORES, SUPERMARKETS",2023-24Q1_PC0613
Sandwell Metropolitan Borough Council,https://www.sandwell.gov.uk/performance-spending/government-procurement-cards,03-May-23,Individual School Budgets With Inclusion,ASDA GROCERIES ONLINE,Individual School Budgets With Inclusion,69.18,"GROCERY STORES, SUPERMARKETS",2023-24Q1_PC0614
Sandwell Metropolitan Borough Council,https://www.sandwell.gov.uk/performance-spending/government-procurement-cards,03-May-23,Individual School Budgets With Inclusion,BLACK COUNTRY LIVING M,Individual School Budgets With Inclusion,229.8,"GIFT, CARD, NOVELTY AND SOUVENIR SHOPS",2023-24Q1_PC0615
Sandwell Metropolitan Borough Council,https://www.sandwell.gov.uk/performance-spending/government-procurement-cards,03-May-23,Total Public Health,TSOHOST,Public Health,10,DIRECT MARKETING-CONTINUITY/SUBSCRIPTION MERCHANTS,2023-24Q1_PC0616
Sandwell Metropolitan Borough Council,https://www.sandwell.gov.uk/performance-spending/government-procurement-cards,03-May-23,Total Public Health,TSOHOST,Public Health,5.99,DIRECT MARKETING-CONTINUITY/SUBSCRIPTION MERCHANTS,2023-24Q1_PC0617
Sandwell Metropolitan Borough Council,https://www.sandwell.gov.uk/performance-spending/government-procurement-cards,03-May-23,Total Public Health,TSOHOST,Public Health,49.99,DIRECT MARKETING-CONTINUITY/SUBSCRIPTION MERCHANTS,2023-24Q1_PC0618
Sandwell Metropolitan Borough Council,https://www.sandwell.gov.uk/performance-spending/government-procurement-cards,03-May-23,FINANCE (Inc SIU),AMZNMktplace,Total Adult Social Care,20.98,MISCELLANEOUS AND SPECIALTY RETAIL STORES,2023-24Q1_PC0619
Sandwell Metropolitan Borough Council,https://www.sandwell.gov.uk/performance-spending/government-procurement-cards,03-May-23,Total Borough Economy,AMZNMktplace,Total Adult Social Care,29.47,MISCELLANEOUS AND SPECIALTY RETAIL STORES,2023-24Q1_PC0620
Sandwell Metropolitan Borough Council,https://www.sandwell.gov.uk/performance-spending/government-procurement-cards,03-May-23,Total Borough Economy,AMZNMktplace,Total Adult Social Care,53.03,MISCELLANEOUS AND SPECIALTY RETAIL STORES,2023-24Q1_PC0621
Sandwell Metropolitan Borough Council,https://www.sandwell.gov.uk/performance-spending/government-procurement-cards,03-May-23,Total Borough Economy,AMZNMktplace,Total Adult Social Care,15.98,MISCELLANEOUS AND SPECIALTY RETAIL STORES,2023-24Q1_PC0622
Sandwell Metropolitan Borough Council,https://www.sandwell.gov.uk/performance-spending/government-procurement-cards,03-May-23,Total Borough Economy,AMZNMktplace,Total Adult Social Care,37.96,MISCELLANEOUS AND SPECIALTY RETAIL STORES,2023-24Q1_PC0623
Sandwell Metropolitan Borough Council,https://www.sandwell.gov.uk/performance-spending/government-procurement-cards,03-May-23,Total Borough Economy,AMZNMktplace,Total Adult Social Care,19.55,MISCELLANEOUS AND SPECIALTY RETAIL STORES,2023-24Q1_PC0624
Sandwell Metropolitan Borough Council,https://www.sandwell.gov.uk/performance-spending/government-procurement-cards,03-May-23,Total Borough Economy,BAKER ROSS,Total Adult Social Care,90.35,"ARTIST SUPPLY STORES, CRAFT SHOPS",2023-24Q1_PC0625
Sandwell Metropolitan Borough Council,https://www.sandwell.gov.uk/performance-spending/government-procurement-cards,03-May-23,Total Borough Economy,EDEN ECOMMERCE,Total Adult Social Care,15.22,BOOK STORES,2023-24Q1_PC0626
Sandwell Metropolitan Borough Council,https://www.sandwell.gov.uk/performance-spending/government-procurement-cards,03-May-23,Total Borough Economy,FACEBK KMXJRP7KY2,Total Adult Social Care,16.87,ADVERTISING SERVICES,2023-24Q1_PC0627
Sandwell Metropolitan Borough Council,https://www.sandwell.gov.uk/performance-spending/government-procurement-cards,04-May-23,Assistant Chief Executive,AMZNMktplace,Assistant Chief Executive (Excl SIU),37.98,MISCELLANEOUS AND SPECIALTY RETAIL STORES,2023-24Q1_PC0628
Sandwell Metropolitan Borough Council,https://www.sandwell.gov.uk/performance-spending/government-procurement-cards,04-May-23,Assistant Chief Executive,SHROPSHIRESTAR.COM,Assistant Chief Executive (Excl SIU),71.15,NEWS DEALERS AND NEWSSTANDS,2023-24Q1_PC0629
Sandwell Metropolitan Borough Council,https://www.sandwell.gov.uk/performance-spending/government-procurement-cards,04-May-23,Law & Governance,AMZNMktplace,Assistant Chief Executive (Excl SIU),149.8,MISCELLANEOUS AND SPECIALTY RETAIL STORES,2023-24Q1_PC0630
Sandwell Metropolitan Borough Council,https://www.sandwell.gov.uk/performance-spending/government-procurement-cards,04-May-23,Childrens Services,Amazon.co.uk B41BA1355,Childrens Services,19.96,DIRECT MARKETING-OTHER DIRECT MARKETERS/NOT ELSEW.,2023-24Q1_PC0631
Sandwell Metropolitan Borough Council,https://www.sandwell.gov.uk/performance-spending/government-procurement-cards,04-May-23,Childrens Services,AMZNMKTPLACE AMAZON.CO,Childrens Services,14.4,MISCELLANEOUS AND SPECIALTY RETAIL STORES,2023-24Q1_PC0632
Sandwell Metropolitan Borough Council,https://www.sandwell.gov.uk/performance-spending/government-procurement-cards,04-May-23,Childrens Services,ASDA GROCERIES ONLINE,Childrens Services,60.3,"GROCERY STORES, SUPERMARKETS",2023-24Q1_PC0633
Sandwell Metropolitan Borough Council,https://www.sandwell.gov.uk/performance-spending/government-procurement-cards,04-May-23,Childrens Services,ASDA GROCERIES ONLINE,Childrens Services,9,"GROCERY STORES, SUPERMARKETS",2023-24Q1_PC0634
Sandwell Metropolitan Borough Council,https://www.sandwell.gov.uk/performance-spending/government-procurement-cards,04-May-23,Childrens Services,CALDMORE HARDWARE LIMI,Childrens Services,17.49,HARDWARE STORES,2023-24Q1_PC0635
Sandwell Metropolitan Borough Council,https://www.sandwell.gov.uk/performance-spending/government-procurement-cards,04-May-23,Childrens Services,LONGTOWN OUTDOOR LEARN,Childrens Services,50,"ORGANIZATIONS, CHARITABLE AND SOCIAL SERVICES",2023-24Q1_PC0636
Sandwell Metropolitan Borough Council,https://www.sandwell.gov.uk/performance-spending/government-procurement-cards,04-May-23,Childrens Services,SAFETYSUPPL,Childrens Services,137.78,DEPARTMENT STORES,2023-24Q1_PC0637
Sandwell Metropolitan Borough Council,https://www.sandwell.gov.uk/performance-spending/government-procurement-cards,04-May-23,Childrens Services,TESCO STORES 2770,Childrens Services,97.35,"GROCERY STORES, SUPERMARKETS",2023-24Q1_PC0638
Sandwell Metropolitan Borough Council,https://www.sandwell.gov.uk/performance-spending/government-procurement-cards,04-May-23,Childrens Services,WILKO.COM,Childrens Services,-3.5,MISCELLANEOUS GENERAL MERCHANDISE,2023-24Q1_PC0639
Sandwell Metropolitan Borough Council,https://www.sandwell.gov.uk/performance-spending/government-procurement-cards,04-May-23,Childrens Services,WILKO.COM,Childrens Services,20,MISCELLANEOUS GENERAL MERCHANDISE,2023-24Q1_PC0640
Sandwell Metropolitan Borough Council,https://www.sandwell.gov.uk/performance-spending/government-procurement-cards,04-May-23,Individual School Budgets With Inclusion,TESCO STORES 5362,Individual School Budgets With Inclusion,24.14,"GROCERY STORES, SUPERMARKETS",2023-24Q1_PC0641
Sandwell Metropolitan Borough Council,https://www.sandwell.gov.uk/performance-spending/government-procurement-cards,04-May-23,Individual School Budgets With Inclusion,TESCO STORES 5362,Individual School Budgets With Inclusion,3.98,"GROCERY STORES, SUPERMARKETS",2023-24Q1_PC0642
Sandwell Metropolitan Borough Council,https://www.sandwell.gov.uk/performance-spending/government-procurement-cards,04-May-23,Individual School Budgets With Inclusion,UBER    EATS,Individual School Budgets With Inclusion,44.1,"EATING PLACES, RESTAURANTS",2023-24Q1_PC0643
Sandwell Metropolitan Borough Council,https://www.sandwell.gov.uk/performance-spending/government-procurement-cards,04-May-23,Individual School Budgets With Inclusion,WEDNESBURY C-5D890081-,Individual School Budgets With Inclusion,41,PROFESSIONAL SERVICES-NOT ELSEWHERE CLASSIFIED,2023-24Q1_PC0644
Sandwell Metropolitan Borough Council,https://www.sandwell.gov.uk/performance-spending/government-procurement-cards,04-May-23,Total Public Health,ASDA STORES,Public Health,8.8,"GROCERY STORES, SUPERMARKETS",2023-24Q1_PC0645
Sandwell Metropolitan Borough Council,https://www.sandwell.gov.uk/performance-spending/government-procurement-cards,04-May-23,Total Public Health,ASDA STORES,Public Health,2.2,"GROCERY STORES, SUPERMARKETS",2023-24Q1_PC0646
Sandwell Metropolitan Borough Council,https://www.sandwell.gov.uk/performance-spending/government-procurement-cards,04-May-23,Total Public Health,ROYAL SOCIETY FOR,Public Health,250,"ORGANIZATIONS, CHARITABLE AND SOCIAL SERVICES",2023-24Q1_PC0647
Sandwell Metropolitan Borough Council,https://www.sandwell.gov.uk/performance-spending/government-procurement-cards,04-May-23,FINANCE (Inc SIU),AMZNMktplace,Total Adult Social Care,44.95,MISCELLANEOUS AND SPECIALTY RETAIL STORES,2023-24Q1_PC0648
Sandwell Metropolitan Borough Council,https://www.sandwell.gov.uk/performance-spending/government-procurement-cards,04-May-23,Total ASCHWB,OVO Energy Ltd,Total Adult Social Care,313.48,"UTLTS-ELCTRC, GAS, HEATING OIL, SANITARY, WATER",2023-24Q1_PC0649
Sandwell Metropolitan Borough Council,https://www.sandwell.gov.uk/performance-spending/government-procurement-cards,04-May-23,Total ASCHWB,PROTEC DIRECT,Total Adult Social Care,79.19,INDUSTRIAL SUPPLIES NOT ELSEWHERE CLASSIFIED,2023-24Q1_PC0650
Sandwell Metropolitan Borough Council,https://www.sandwell.gov.uk/performance-spending/government-procurement-cards,04-May-23,Total Borough Economy,Amazon.co.uk RX7J68M05,Total Adult Social Care,39.04,DIRECT MARKETING-OTHER DIRECT MARKETERS/NOT ELSEW.,2023-24Q1_PC0651
Sandwell Metropolitan Borough Council,https://www.sandwell.gov.uk/performance-spending/government-procurement-cards,04-May-23,Total Borough Economy,AMZNMktplace,Total Adult Social Care,45.95,MISCELLANEOUS AND SPECIALTY RETAIL STORES,2023-24Q1_PC0652
Sandwell Metropolitan Borough Council,https://www.sandwell.gov.uk/performance-spending/government-procurement-cards,04-May-23,Total Borough Economy,ASDA SUPERSTORE,Total Adult Social Care,12,"GROCERY STORES, SUPERMARKETS",2023-24Q1_PC0653
Sandwell Metropolitan Borough Council,https://www.sandwell.gov.uk/performance-spending/government-procurement-cards,04-May-23,Total Borough Economy,E.W. KING & CO LIMITED,Total Adult Social Care,116,DIRECT MARKETING-COMBINATION CATALOG/RETAIL MERCH.,2023-24Q1_PC0654
Sandwell Metropolitan Borough Council,https://www.sandwell.gov.uk/performance-spending/government-procurement-cards,04-May-23,Total Borough Economy,PODBEAN.COM,Total Adult Social Care,32.3,"CONSULTING, MANAGEMENT, AND PUBLIC RELATIONS SVCS",2023-24Q1_PC0655
Sandwell Metropolitan Borough Council,https://www.sandwell.gov.uk/performance-spending/government-procurement-cards,04-May-23,Total Borough Economy,SAC GRAPHICS,Total Adult Social Care,152.59,MISCELLANEOUS PUBLISHING AND PRINTING,2023-24Q1_PC0656
Sandwell Metropolitan Borough Council,https://www.sandwell.gov.uk/performance-spending/government-procurement-cards,04-May-23,Total Borough Economy,STAR SUPERMARKET,Total Adult Social Care,5.27,"MISC FOOD STORE-CONVENIENCE,MRKT,SPLTY,VENDNG MACS",2023-24Q1_PC0657
Sandwell Metropolitan Borough Council,https://www.sandwell.gov.uk/performance-spending/government-procurement-cards,04-May-23,Total Borough Economy,TESCO STORES 2335,Total Adult Social Care,56.75,"GROCERY STORES, SUPERMARKETS",2023-24Q1_PC0658
Sandwell Metropolitan Borough Council,https://www.sandwell.gov.uk/performance-spending/government-procurement-cards,04-May-23,Total Borough Economy,TESCO STORES 2335,Total Adult Social Care,14.75,"GROCERY STORES, SUPERMARKETS",2023-24Q1_PC0659
Sandwell Metropolitan Borough Council,https://www.sandwell.gov.uk/performance-spending/government-procurement-cards,04-May-23,Total Borough Economy,TESCO STORES 5362,Total Adult Social Care,94.5,"GROCERY STORES, SUPERMARKETS",2023-24Q1_PC0660
Sandwell Metropolitan Borough Council,https://www.sandwell.gov.uk/performance-spending/government-procurement-cards,05-May-23,Assistant Chief Executive,QR-CODE-GENERATOR.COM,Assistant Chief Executive (Excl SIU),104.8,COMPUTER SOFTWARE STORES,2023-24Q1_PC0661
Sandwell Metropolitan Borough Council,https://www.sandwell.gov.uk/performance-spending/government-procurement-cards,05-May-23,Childrens Services,Amazon Prime 0H6VN1U05,Childrens Services,8.99,DIRECT MARKETING-CONTINUITY/SUBSCRIPTION MERCHANTS,2023-24Q1_PC0662
Sandwell Metropolitan Borough Council,https://www.sandwell.gov.uk/performance-spending/government-procurement-cards,05-May-23,Childrens Services,AMZNMKTPLACE AMAZON.CO,Childrens Services,14.4,MISCELLANEOUS AND SPECIALTY RETAIL STORES,2023-24Q1_PC0663
Sandwell Metropolitan Borough Council,https://www.sandwell.gov.uk/performance-spending/government-procurement-cards,05-May-23,Childrens Services,AMZNMKTPLACE AMAZON.CO,Childrens Services,28.03,MISCELLANEOUS AND SPECIALTY RETAIL STORES,2023-24Q1_PC0664
Sandwell Metropolitan Borough Council,https://www.sandwell.gov.uk/performance-spending/government-procurement-cards,05-May-23,Childrens Services,AMZNMKTPLACE AMAZON.CO,Childrens Services,12.98,MISCELLANEOUS AND SPECIALTY RETAIL STORES,2023-24Q1_PC0665
Sandwell Metropolitan Borough Council,https://www.sandwell.gov.uk/performance-spending/government-procurement-cards,05-May-23,Childrens Services,ASDA STORE,Childrens Services,38.24,"GROCERY STORES, SUPERMARKETS",2023-24Q1_PC0666
Sandwell Metropolitan Borough Council,https://www.sandwell.gov.uk/performance-spending/government-procurement-cards,05-May-23,Childrens Services,ASDA STORES LTD 5865,Childrens Services,29.8,"GROCERY STORES, SUPERMARKETS",2023-24Q1_PC0667
Sandwell Metropolitan Borough Council,https://www.sandwell.gov.uk/performance-spending/government-procurement-cards,05-May-23,Childrens Services,GOMPELS HEALTHCARE,Childrens Services,93.43,WHOLESALE CLUBS,2023-24Q1_PC0668
Sandwell Metropolitan Borough Council,https://www.sandwell.gov.uk/performance-spending/government-procurement-cards,05-May-23,Housing & Assets Total,ASDA STORES,Corporate Management,30.75,"GROCERY STORES, SUPERMARKETS",2023-24Q1_PC0669
Sandwell Metropolitan Borough Council,https://www.sandwell.gov.uk/performance-spending/government-procurement-cards,05-May-23,Housing & Assets Total,THE APOLLO HOTEL,Corporate Management,1050,"LODGING-HOTELS,MOTELS,RESORTS-NOT CLASSIFIED",2023-24Q1_PC0670
Sandwell Metropolitan Borough Council,https://www.sandwell.gov.uk/performance-spending/government-procurement-cards,05-May-23,Housing & Assets Total,THE APOLLO HOTEL,Corporate Management,1050,"LODGING-HOTELS,MOTELS,RESORTS-NOT CLASSIFIED",2023-24Q1_PC0671
Sandwell Metropolitan Borough Council,https://www.sandwell.gov.uk/performance-spending/government-procurement-cards,05-May-23,Housing & Assets Total,THE APOLLO HOTEL,Corporate Management,1050,"LODGING-HOTELS,MOTELS,RESORTS-NOT CLASSIFIED",2023-24Q1_PC0672
Sandwell Metropolitan Borough Council,https://www.sandwell.gov.uk/performance-spending/government-procurement-cards,05-May-23,Housing & Assets Total,THE APOLLO HOTEL,Corporate Management,1050,"LODGING-HOTELS,MOTELS,RESORTS-NOT CLASSIFIED",2023-24Q1_PC0673
Sandwell Metropolitan Borough Council,https://www.sandwell.gov.uk/performance-spending/government-procurement-cards,05-May-23,Housing & Assets Total,THE APOLLO HOTEL,Corporate Management,1050,"LODGING-HOTELS,MOTELS,RESORTS-NOT CLASSIFIED",2023-24Q1_PC0674
Sandwell Metropolitan Borough Council,https://www.sandwell.gov.uk/performance-spending/government-procurement-cards,05-May-23,Housing & Assets Total,THE APOLLO HOTEL,Corporate Management,1050,"LODGING-HOTELS,MOTELS,RESORTS-NOT CLASSIFIED",2023-24Q1_PC0675
Sandwell Metropolitan Borough Council,https://www.sandwell.gov.uk/performance-spending/government-procurement-cards,05-May-23,Housing & Assets Total,THE APOLLO HOTEL,Corporate Management,1050,"LODGING-HOTELS,MOTELS,RESORTS-NOT CLASSIFIED",2023-24Q1_PC0676
Sandwell Metropolitan Borough Council,https://www.sandwell.gov.uk/performance-spending/government-procurement-cards,05-May-23,Housing & Assets Total,THE APOLLO HOTEL,Corporate Management,1050,"LODGING-HOTELS,MOTELS,RESORTS-NOT CLASSIFIED",2023-24Q1_PC0677
Sandwell Metropolitan Borough Council,https://www.sandwell.gov.uk/performance-spending/government-procurement-cards,05-May-23,Housing & Assets Total,THE APOLLO HOTEL,Corporate Management,1050,"LODGING-HOTELS,MOTELS,RESORTS-NOT CLASSIFIED",2023-24Q1_PC0678
Sandwell Metropolitan Borough Council,https://www.sandwell.gov.uk/performance-spending/government-procurement-cards,05-May-23,Housing & Assets Total,THE APOLLO HOTEL,Corporate Management,1050,"LODGING-HOTELS,MOTELS,RESORTS-NOT CLASSIFIED",2023-24Q1_PC0679
Sandwell Metropolitan Borough Council,https://www.sandwell.gov.uk/performance-spending/government-procurement-cards,05-May-23,Housing & Assets Total,THE APOLLO HOTEL,Corporate Management,1050,"LODGING-HOTELS,MOTELS,RESORTS-NOT CLASSIFIED",2023-24Q1_PC0680
Sandwell Metropolitan Borough Council,https://www.sandwell.gov.uk/performance-spending/government-procurement-cards,05-May-23,Individual School Budgets With Inclusion,Amazon.co.uk 1Q1MQ7EJ5,Individual School Budgets With Inclusion,137.15,DIRECT MARKETING-OTHER DIRECT MARKETERS/NOT ELSEW.,2023-24Q1_PC0681
Sandwell Metropolitan Borough Council,https://www.sandwell.gov.uk/performance-spending/government-procurement-cards,05-May-23,Individual School Budgets With Inclusion,UBER    EATS,Individual School Budgets With Inclusion,54.52,"EATING PLACES, RESTAURANTS",2023-24Q1_PC0682
Sandwell Metropolitan Borough Council,https://www.sandwell.gov.uk/performance-spending/government-procurement-cards,05-May-23,Total Public Health,Helloprint United King,Public Health,247.18,"QUICK COPY,REPRODUCTION AND BLUEPRINTING SERVICES",2023-24Q1_PC0683
Sandwell Metropolitan Borough Council,https://www.sandwell.gov.uk/performance-spending/government-procurement-cards,05-May-23,Regeneration & Growth,AMZNMktplace,Regeneration And The Economy,17.46,MISCELLANEOUS AND SPECIALTY RETAIL STORES,2023-24Q1_PC0684
Sandwell Metropolitan Borough Council,https://www.sandwell.gov.uk/performance-spending/government-procurement-cards,05-May-23,Regeneration & Growth,AMZNMktplace,Regeneration And The Economy,22.53,MISCELLANEOUS AND SPECIALTY RETAIL STORES,2023-24Q1_PC0685
Sandwell Metropolitan Borough Council,https://www.sandwell.gov.uk/performance-spending/government-procurement-cards,05-May-23,Regeneration & Growth,TRAVELODGE,Regeneration And The Economy,335.53,TRAVELODGE,2023-24Q1_PC0686
Sandwell Metropolitan Borough Council,https://www.sandwell.gov.uk/performance-spending/government-procurement-cards,05-May-23,Total ASCHWB,AMZNMktplace,Total Adult Social Care,35.96,MISCELLANEOUS AND SPECIALTY RETAIL STORES,2023-24Q1_PC0687
Sandwell Metropolitan Borough Council,https://www.sandwell.gov.uk/performance-spending/government-procurement-cards,05-May-23,Total ASCHWB,AMZNMktplace,Total Adult Social Care,43.67,MISCELLANEOUS AND SPECIALTY RETAIL STORES,2023-24Q1_PC0688
Sandwell Metropolitan Borough Council,https://www.sandwell.gov.uk/performance-spending/government-procurement-cards,05-May-23,Total ASCHWB,AMZNMktplace,Total Adult Social Care,54.75,MISCELLANEOUS AND SPECIALTY RETAIL STORES,2023-24Q1_PC0689
Sandwell Metropolitan Borough Council,https://www.sandwell.gov.uk/performance-spending/government-procurement-cards,05-May-23,Total ASCHWB,AMZNMKTPLACE AMAZON.CO,Total Adult Social Care,248.9,MISCELLANEOUS AND SPECIALTY RETAIL STORES,2023-24Q1_PC0690
Sandwell Metropolitan Borough Council,https://www.sandwell.gov.uk/performance-spending/government-procurement-cards,05-May-23,Total ASCHWB,EB  THE AUTISM SHOW BI,Total Adult Social Care,55.6,BUSINESS SERVICES-NOT ELSEWHERE CLASSIFIED,2023-24Q1_PC0691
Sandwell Metropolitan Borough Council,https://www.sandwell.gov.uk/performance-spending/government-procurement-cards,05-May-23,Total ASCHWB,MYSYCOUS - UTILITIES,Total Adult Social Care,98.01,COMPUTER SOFTWARE STORES,2023-24Q1_PC0692
Sandwell Metropolitan Borough Council,https://www.sandwell.gov.uk/performance-spending/government-procurement-cards,05-May-23,Total ASCHWB,SAFE.CO.UK,Total Adult Social Care,241.92,"OFFICE, SCHOOL SUPPLY, AND STATIONERY STORES",2023-24Q1_PC0693
Sandwell Metropolitan Borough Council,https://www.sandwell.gov.uk/performance-spending/government-procurement-cards,05-May-23,Total ASCHWB,WWW.SCREWFIX.COM,Total Adult Social Care,19.9,"BUILDING MATERIALS, LUMBER STORES",2023-24Q1_PC0694
Sandwell Metropolitan Borough Council,https://www.sandwell.gov.uk/performance-spending/government-procurement-cards,05-May-23,Total Borough Economy,AMZNMktplace,Total Adult Social Care,38.48,MISCELLANEOUS AND SPECIALTY RETAIL STORES,2023-24Q1_PC0695
Sandwell Metropolitan Borough Council,https://www.sandwell.gov.uk/performance-spending/government-procurement-cards,05-May-23,Total Borough Economy,AMZNMktplace,Total Adult Social Care,2.99,MISCELLANEOUS AND SPECIALTY RETAIL STORES,2023-24Q1_PC0696
Sandwell Metropolitan Borough Council,https://www.sandwell.gov.uk/performance-spending/government-procurement-cards,05-May-23,Total Borough Economy,AMZNMktplace,Total Adult Social Care,63.96,MISCELLANEOUS AND SPECIALTY RETAIL STORES,2023-24Q1_PC0697
Sandwell Metropolitan Borough Council,https://www.sandwell.gov.uk/performance-spending/government-procurement-cards,05-May-23,Total Borough Economy,AMZNMKTPLACE AMAZON.CO,Total Adult Social Care,70.26,MISCELLANEOUS AND SPECIALTY RETAIL STORES,2023-24Q1_PC0698
Sandwell Metropolitan Borough Council,https://www.sandwell.gov.uk/performance-spending/government-procurement-cards,05-May-23,Total Borough Economy,ASDA STORE 4376,Total Adult Social Care,28.3,"GROCERY STORES, SUPERMARKETS",2023-24Q1_PC0699
Sandwell Metropolitan Borough Council,https://www.sandwell.gov.uk/performance-spending/government-procurement-cards,05-May-23,Total Borough Economy,BOOKTEQ,Total Adult Social Care,119,COMPUTER SOFTWARE STORES,2023-24Q1_PC0700
Sandwell Metropolitan Borough Council,https://www.sandwell.gov.uk/performance-spending/government-procurement-cards,05-May-23,Total Borough Economy,CHARNOCK ENTERPRISES,Total Adult Social Care,20,"AUTOMOTIVE PARTS, ACCESSORIES STORES",2023-24Q1_PC0701
Sandwell Metropolitan Borough Council,https://www.sandwell.gov.uk/performance-spending/government-procurement-cards,05-May-23,Total Borough Economy,HEYZINE.COM,Total Adult Social Care,79,COMPUTER SOFTWARE STORES,2023-24Q1_PC0702
Sandwell Metropolitan Borough Council,https://www.sandwell.gov.uk/performance-spending/government-procurement-cards,05-May-23,Total Borough Economy,HOME BARGAINS,Total Adult Social Care,23.66,HARDWARE STORES,2023-24Q1_PC0703
Sandwell Metropolitan Borough Council,https://www.sandwell.gov.uk/performance-spending/government-procurement-cards,05-May-23,Total Borough Economy,HORNERSHEARING.COM,Total Adult Social Care,99.54,HARDWARE STORES,2023-24Q1_PC0704
Sandwell Metropolitan Borough Council,https://www.sandwell.gov.uk/performance-spending/government-procurement-cards,05-May-23,Total Borough Economy,TESCO STORES 6197,Total Adult Social Care,138,"GROCERY STORES, SUPERMARKETS",2023-24Q1_PC0705
Sandwell Metropolitan Borough Council,https://www.sandwell.gov.uk/performance-spending/government-procurement-cards,05-May-23,Total Borough Economy,WWW.ASPLI.COM,Total Adult Social Care,74.36,"BUILDING MATERIALS, LUMBER STORES",2023-24Q1_PC0706
Sandwell Metropolitan Borough Council,https://www.sandwell.gov.uk/performance-spending/government-procurement-cards,08-May-23,Assistant Chief Executive,AMZNMktplace,Assistant Chief Executive (Excl SIU),33.4,MISCELLANEOUS AND SPECIALTY RETAIL STORES,2023-24Q1_PC0707
Sandwell Metropolitan Borough Council,https://www.sandwell.gov.uk/performance-spending/government-procurement-cards,08-May-23,Law & Governance,Amazon Prime,Assistant Chief Executive (Excl SIU),-8.99,DIRECT MARKETING-CONTINUITY/SUBSCRIPTION MERCHANTS,2023-24Q1_PC0708
Sandwell Metropolitan Borough Council,https://www.sandwell.gov.uk/performance-spending/government-procurement-cards,08-May-23,Law & Governance,FACEBK  5GVVEPBUF2,Assistant Chief Executive (Excl SIU),29.28,ADVERTISING SERVICES,2023-24Q1_PC0709
Sandwell Metropolitan Borough Council,https://www.sandwell.gov.uk/performance-spending/government-procurement-cards,08-May-23,Childrens Services,AMZNMktplace,Childrens Services,10.63,MISCELLANEOUS AND SPECIALTY RETAIL STORES,2023-24Q1_PC0710
Sandwell Metropolitan Borough Council,https://www.sandwell.gov.uk/performance-spending/government-procurement-cards,08-May-23,Childrens Services,AMZNMKTPLACE AMAZON.CO,Childrens Services,9.79,MISCELLANEOUS AND SPECIALTY RETAIL STORES,2023-24Q1_PC0711
Sandwell Metropolitan Borough Council,https://www.sandwell.gov.uk/performance-spending/government-procurement-cards,08-May-23,Childrens Services,EVAC+CHAIR INTERNATION,Childrens Services,-180,"COMMERCIAL EQUIPMENT, NOT ELSEWHERE CLASSIFIED",2023-24Q1_PC0712
Sandwell Metropolitan Borough Council,https://www.sandwell.gov.uk/performance-spending/government-procurement-cards,08-May-23,Childrens Services,HOMEBASE LTD 085,Childrens Services,15,HOME SUPPLY WAREHOUSE STORES,2023-24Q1_PC0713
Sandwell Metropolitan Borough Council,https://www.sandwell.gov.uk/performance-spending/government-procurement-cards,08-May-23,Childrens Services,SQ  EAST TV LIMITED,Childrens Services,117.6,COMPUTER MAIN./REPAIR/SERVICES NOT ELSEWHERE CLASS,2023-24Q1_PC0714
Sandwell Metropolitan Borough Council,https://www.sandwell.gov.uk/performance-spending/government-procurement-cards,08-May-23,Childrens Services,Trainline,Childrens Services,47.28,PASSENGER RAILWAYS,2023-24Q1_PC0715
Sandwell Metropolitan Borough Council,https://www.sandwell.gov.uk/performance-spending/government-procurement-cards,08-May-23,Childrens Services,WWW.WMCA.ORG.UK,Childrens Services,10,"TRANSPRTN-SUBRBN & LOCAL COMTR PSNGR, INCL FERRIES",2023-24Q1_PC0716
Sandwell Metropolitan Borough Council,https://www.sandwell.gov.uk/performance-spending/government-procurement-cards,08-May-23,Housing & Assets Total,AMZNMKTPLACE AMAZON.CO,Corporate Management,38.15,MISCELLANEOUS AND SPECIALTY RETAIL STORES,2023-24Q1_PC0717
Sandwell Metropolitan Borough Council,https://www.sandwell.gov.uk/performance-spending/government-procurement-cards,08-May-23,Housing & Assets Total,THE APOLLO HOTEL,Corporate Management,500,"LODGING-HOTELS,MOTELS,RESORTS-NOT CLASSIFIED",2023-24Q1_PC0718
Sandwell Metropolitan Borough Council,https://www.sandwell.gov.uk/performance-spending/government-procurement-cards,08-May-23,Housing & Assets Total,WWW.VICARAGELODGE.COM,Corporate Management,200,"LODGING-HOTELS,MOTELS,RESORTS-NOT CLASSIFIED",2023-24Q1_PC0719
Sandwell Metropolitan Borough Council,https://www.sandwell.gov.uk/performance-spending/government-procurement-cards,08-May-23,Housing & Assets Total,WWW.VICARAGELODGE.COM,Corporate Management,640,"LODGING-HOTELS,MOTELS,RESORTS-NOT CLASSIFIED",2023-24Q1_PC0720
Sandwell Metropolitan Borough Council,https://www.sandwell.gov.uk/performance-spending/government-procurement-cards,08-May-23,Housing & Assets Total,WWW.VICARAGELODGE.COM,Corporate Management,496,"LODGING-HOTELS,MOTELS,RESORTS-NOT CLASSIFIED",2023-24Q1_PC0721
Sandwell Metropolitan Borough Council,https://www.sandwell.gov.uk/performance-spending/government-procurement-cards,08-May-23,Housing & Assets Total,WWW.VICARAGELODGE.COM,Corporate Management,700,"LODGING-HOTELS,MOTELS,RESORTS-NOT CLASSIFIED",2023-24Q1_PC0722
Sandwell Metropolitan Borough Council,https://www.sandwell.gov.uk/performance-spending/government-procurement-cards,08-May-23,Housing & Assets Total,WWW.VICARAGELODGE.COM,Corporate Management,368,"LODGING-HOTELS,MOTELS,RESORTS-NOT CLASSIFIED",2023-24Q1_PC0723
Sandwell Metropolitan Borough Council,https://www.sandwell.gov.uk/performance-spending/government-procurement-cards,08-May-23,Individual School Budgets With Inclusion,Amazon.co.uk PU1W21KA5,Individual School Budgets With Inclusion,33.83,DIRECT MARKETING-OTHER DIRECT MARKETERS/NOT ELSEW.,2023-24Q1_PC0724
Sandwell Metropolitan Borough Council,https://www.sandwell.gov.uk/performance-spending/government-procurement-cards,08-May-23,Individual School Budgets With Inclusion,CURRYS ONLINE,Individual School Budgets With Inclusion,179,ELECTRONIC SALES,2023-24Q1_PC0725
Sandwell Metropolitan Borough Council,https://www.sandwell.gov.uk/performance-spending/government-procurement-cards,08-May-23,Individual School Budgets With Inclusion,MCDONALDS,Individual School Budgets With Inclusion,43.02,FAST FOOD RESTAURANTS,2023-24Q1_PC0726
Sandwell Metropolitan Borough Council,https://www.sandwell.gov.uk/performance-spending/government-procurement-cards,08-May-23,Individual School Budgets With Inclusion,UBER  EATS,Individual School Budgets With Inclusion,53.08,"EATING PLACES, RESTAURANTS",2023-24Q1_PC0727
Sandwell Metropolitan Borough Council,https://www.sandwell.gov.uk/performance-spending/government-procurement-cards,08-May-23,Total Public Health,CabCard Services UK,Public Health,228,LIMOUSINES AND TAXICABS,2023-24Q1_PC0728
Sandwell Metropolitan Borough Council,https://www.sandwell.gov.uk/performance-spending/government-procurement-cards,08-May-23,Total Public Health,CabCard Services UK,Public Health,56,LIMOUSINES AND TAXICABS,2023-24Q1_PC0729
Sandwell Metropolitan Borough Council,https://www.sandwell.gov.uk/performance-spending/government-procurement-cards,08-May-23,Regeneration & Growth,AMZNMktplace,Regeneration And The Economy,11.02,MISCELLANEOUS AND SPECIALTY RETAIL STORES,2023-24Q1_PC0730
Sandwell Metropolitan Borough Council,https://www.sandwell.gov.uk/performance-spending/government-procurement-cards,08-May-23,Regeneration & Growth,AMZNMktplace,Regeneration And The Economy,11.98,MISCELLANEOUS AND SPECIALTY RETAIL STORES,2023-24Q1_PC0731
Sandwell Metropolitan Borough Council,https://www.sandwell.gov.uk/performance-spending/government-procurement-cards,08-May-23,Regeneration & Growth,FLINT BISHOP LLP,Regeneration And The Economy,250,"ATTORNEYS, LEGAL SERVICES",2023-24Q1_PC0732
Sandwell Metropolitan Borough Council,https://www.sandwell.gov.uk/performance-spending/government-procurement-cards,08-May-23,Regeneration & Growth,FLINT BISHOP LLP,Regeneration And The Economy,212.37,"ATTORNEYS, LEGAL SERVICES",2023-24Q1_PC0733
Sandwell Metropolitan Borough Council,https://www.sandwell.gov.uk/performance-spending/government-procurement-cards,08-May-23,Total ASCHWB,AMZNMKTPLACE AMAZON.CO,Total Adult Social Care,24.98,MISCELLANEOUS AND SPECIALTY RETAIL STORES,2023-24Q1_PC0734
Sandwell Metropolitan Borough Council,https://www.sandwell.gov.uk/performance-spending/government-procurement-cards,08-May-23,Total ASCHWB,B&M RETAIL LTD,Total Adult Social Care,15.85,MISCELLANEOUS GENERAL MERCHANDISE,2023-24Q1_PC0735
Sandwell Metropolitan Borough Council,https://www.sandwell.gov.uk/performance-spending/government-procurement-cards,08-May-23,Total ASCHWB,NHS SUPPLYCHAIN PORTAL,Total Adult Social Care,218.4,"HEALTH PRACTITIONERS, MEDICAL SRVCS-NOT ELSEWHERE",2023-24Q1_PC0736
Sandwell Metropolitan Borough Council,https://www.sandwell.gov.uk/performance-spending/government-procurement-cards,08-May-23,Total ASCHWB,WICKES REDDITCH,Total Adult Social Care,19.2,HOME SUPPLY WAREHOUSE STORES,2023-24Q1_PC0737
Sandwell Metropolitan Borough Council,https://www.sandwell.gov.uk/performance-spending/government-procurement-cards,08-May-23,Total Borough Economy,ALDI 109 772,Total Adult Social Care,13.47,"GROCERY STORES, SUPERMARKETS",2023-24Q1_PC0738
Sandwell Metropolitan Borough Council,https://www.sandwell.gov.uk/performance-spending/government-procurement-cards,08-May-23,Total Borough Economy,AMZ Amazon.co.uk,Total Adult Social Care,-39.04,DIRECT MARKETING-OTHER DIRECT MARKETERS/NOT ELSEW.,2023-24Q1_PC0739
Sandwell Metropolitan Borough Council,https://www.sandwell.gov.uk/performance-spending/government-procurement-cards,08-May-23,Total Borough Economy,AMZNMktplace,Total Adult Social Care,7.39,MISCELLANEOUS AND SPECIALTY RETAIL STORES,2023-24Q1_PC0740
Sandwell Metropolitan Borough Council,https://www.sandwell.gov.uk/performance-spending/government-procurement-cards,08-May-23,Total Borough Economy,AMZNMKTPLACE AMAZON.CO,Total Adult Social Care,23.57,MISCELLANEOUS AND SPECIALTY RETAIL STORES,2023-24Q1_PC0741
Sandwell Metropolitan Borough Council,https://www.sandwell.gov.uk/performance-spending/government-procurement-cards,08-May-23,Total Borough Economy,AMZNMKTPLACE AMAZON.CO,Total Adult Social Care,80.7,MISCELLANEOUS AND SPECIALTY RETAIL STORES,2023-24Q1_PC0742
Sandwell Metropolitan Borough Council,https://www.sandwell.gov.uk/performance-spending/government-procurement-cards,08-May-23,Total Borough Economy,ASDA GROCERIES ONLINE,Total Adult Social Care,99.83,"GROCERY STORES, SUPERMARKETS",2023-24Q1_PC0743
Sandwell Metropolitan Borough Council,https://www.sandwell.gov.uk/performance-spending/government-procurement-cards,08-May-23,Total Borough Economy,BOOKER LTD - 38593354,Total Adult Social Care,476.22,"GROCERY STORES, SUPERMARKETS",2023-24Q1_PC0744
Sandwell Metropolitan Borough Council,https://www.sandwell.gov.uk/performance-spending/government-procurement-cards,08-May-23,Total Borough Economy,GLOBAL WINES (BHAM) LT,Total Adult Social Care,62.66,"PACKAGE STORES, BEER, WINE, LIQUOR",2023-24Q1_PC0745
Sandwell Metropolitan Borough Council,https://www.sandwell.gov.uk/performance-spending/government-procurement-cards,08-May-23,Total Borough Economy,POST OFFICE COUNTER,Total Adult Social Care,75,POSTAL SERVICES-GOVERNMENT ONLY,2023-24Q1_PC0746
Sandwell Metropolitan Borough Council,https://www.sandwell.gov.uk/performance-spending/government-procurement-cards,08-May-23,Total Borough Economy,VIKING OFFICE UK LIMIT,Total Adult Social Care,127,STATIONERY/OFFICE SUPPLIES/PRINTING & WRITING PAP.,2023-24Q1_PC0747
Sandwell Metropolitan Borough Council,https://www.sandwell.gov.uk/performance-spending/government-procurement-cards,09-May-23,FINANCE (Inc SIU),Amazon Prime OV8IU8VR5,Assistant Chief Executive (Excl SIU),8.99,DIRECT MARKETING-CONTINUITY/SUBSCRIPTION MERCHANTS,2023-24Q1_PC0748
Sandwell Metropolitan Borough Council,https://www.sandwell.gov.uk/performance-spending/government-procurement-cards,09-May-23,Law & Governance,CO-OPERATIVE FOOD,Assistant Chief Executive (Excl SIU),5.69,"GROCERY STORES, SUPERMARKETS",2023-24Q1_PC0749
Sandwell Metropolitan Borough Council,https://www.sandwell.gov.uk/performance-spending/government-procurement-cards,09-May-23,Childrens Services,TESCO STORES 2770,Childrens Services,132.25,"GROCERY STORES, SUPERMARKETS",2023-24Q1_PC0750
Sandwell Metropolitan Borough Council,https://www.sandwell.gov.uk/performance-spending/government-procurement-cards,09-May-23,Housing & Assets Total,AMZNMktplace,Corporate Management,13.99,MISCELLANEOUS AND SPECIALTY RETAIL STORES,2023-24Q1_PC0751
Sandwell Metropolitan Borough Council,https://www.sandwell.gov.uk/performance-spending/government-procurement-cards,09-May-23,Total Public Health,CabCard Services UK,Public Health,12,LIMOUSINES AND TAXICABS,2023-24Q1_PC0752
Sandwell Metropolitan Borough Council,https://www.sandwell.gov.uk/performance-spending/government-procurement-cards,09-May-23,Total Public Health,CabCard Services UK,Public Health,24,LIMOUSINES AND TAXICABS,2023-24Q1_PC0753
Sandwell Metropolitan Borough Council,https://www.sandwell.gov.uk/performance-spending/government-procurement-cards,10-May-23,FINANCE (Inc SIU),AMZNMktplace,Assistant Chief Executive (Excl SIU),43.14,MISCELLANEOUS AND SPECIALTY RETAIL STORES,2023-24Q1_PC0754
Sandwell Metropolitan Borough Council,https://www.sandwell.gov.uk/performance-spending/government-procurement-cards,10-May-23,FINANCE (Inc SIU),SAVACENTRE FREETH STR,Assistant Chief Executive (Excl SIU),60,CUSTOMER FINANCIAL INSTIT-AUTOMATED CASH DISBURSEM,2023-24Q1_PC0755
Sandwell Metropolitan Borough Council,https://www.sandwell.gov.uk/performance-spending/government-procurement-cards,10-May-23,FINANCE (Inc SIU),NATWEST,Assistant Chief Executive (Excl SIU),2.95,CASH ADVANCE FEE,2023-24Q1_PC0756
Sandwell Metropolitan Borough Council,https://www.sandwell.gov.uk/performance-spending/government-procurement-cards,10-May-23,Childrens Services,AMZNMktplace,Childrens Services,19.58,MISCELLANEOUS AND SPECIALTY RETAIL STORES,2023-24Q1_PC0757
Sandwell Metropolitan Borough Council,https://www.sandwell.gov.uk/performance-spending/government-procurement-cards,10-May-23,Childrens Services,AMZNMKTPLACE AMAZON.CO,Childrens Services,45.86,MISCELLANEOUS AND SPECIALTY RETAIL STORES,2023-24Q1_PC0758
Sandwell Metropolitan Borough Council,https://www.sandwell.gov.uk/performance-spending/government-procurement-cards,10-May-23,Childrens Services,AMZNMKTPLACE AMAZON.CO,Childrens Services,10.78,MISCELLANEOUS AND SPECIALTY RETAIL STORES,2023-24Q1_PC0759
Sandwell Metropolitan Borough Council,https://www.sandwell.gov.uk/performance-spending/government-procurement-cards,10-May-23,Childrens Services,ASDA GROCERIES ONLINE,Childrens Services,-0.6,"GROCERY STORES, SUPERMARKETS",2023-24Q1_PC0760
Sandwell Metropolitan Borough Council,https://www.sandwell.gov.uk/performance-spending/government-procurement-cards,10-May-23,Childrens Services,ASDA GROCERIES ONLINE,Childrens Services,59.56,"GROCERY STORES, SUPERMARKETS",2023-24Q1_PC0761
Sandwell Metropolitan Borough Council,https://www.sandwell.gov.uk/performance-spending/government-procurement-cards,10-May-23,Childrens Services,BEEBYS BUBBLES,Childrens Services,135,"CLEANING, GARMENT, AND LAUNDRY SERVICES",2023-24Q1_PC0762
Sandwell Metropolitan Borough Council,https://www.sandwell.gov.uk/performance-spending/government-procurement-cards,10-May-23,Childrens Services,BEEBYS BUBBLES,Childrens Services,120,"CLEANING, GARMENT, AND LAUNDRY SERVICES",2023-24Q1_PC0763
Sandwell Metropolitan Borough Council,https://www.sandwell.gov.uk/performance-spending/government-procurement-cards,10-May-23,Childrens Services,COTSWOLD OUTDOOR,Childrens Services,-27.99,FAMILY CLOTHING STORES,2023-24Q1_PC0764
Sandwell Metropolitan Borough Council,https://www.sandwell.gov.uk/performance-spending/government-procurement-cards,10-May-23,Childrens Services,LIDL GB PORTHMADOG,Childrens Services,0.84,"GROCERY STORES, SUPERMARKETS",2023-24Q1_PC0765
Sandwell Metropolitan Borough Council,https://www.sandwell.gov.uk/performance-spending/government-procurement-cards,10-May-23,Childrens Services,LYCO GROUP LTD,Childrens Services,34.37,ELECTRICAL PARTS AND EQUIPMENT,2023-24Q1_PC0766
Sandwell Metropolitan Borough Council,https://www.sandwell.gov.uk/performance-spending/government-procurement-cards,10-May-23,Childrens Services,SAFE.CO.UK,Childrens Services,76.18,"OFFICE, SCHOOL SUPPLY, AND STATIONERY STORES",2023-24Q1_PC0767
Sandwell Metropolitan Borough Council,https://www.sandwell.gov.uk/performance-spending/government-procurement-cards,10-May-23,Childrens Services,WWW.QUALSAFE.COM,Childrens Services,416.77,SCHOOLS & EDUCATIONAL SVC-NOT ELSEWHERE CLASSIFIED,2023-24Q1_PC0768
Sandwell Metropolitan Borough Council,https://www.sandwell.gov.uk/performance-spending/government-procurement-cards,10-May-23,Childrens Services,WWW.SCREWFIX.COM,Childrens Services,5.99,"BUILDING MATERIALS, LUMBER STORES",2023-24Q1_PC0769
Sandwell Metropolitan Borough Council,https://www.sandwell.gov.uk/performance-spending/government-procurement-cards,10-May-23,Housing & Assets Total,THE APOLLO HOTEL,Corporate Management,1050,"LODGING-HOTELS,MOTELS,RESORTS-NOT CLASSIFIED",2023-24Q1_PC0770
Sandwell Metropolitan Borough Council,https://www.sandwell.gov.uk/performance-spending/government-procurement-cards,10-May-23,Housing & Assets Total,THE APOLLO HOTEL,Corporate Management,1050,"LODGING-HOTELS,MOTELS,RESORTS-NOT CLASSIFIED",2023-24Q1_PC0771
Sandwell Metropolitan Borough Council,https://www.sandwell.gov.uk/performance-spending/government-procurement-cards,10-May-23,Housing & Assets Total,THE APOLLO HOTEL,Corporate Management,1050,"LODGING-HOTELS,MOTELS,RESORTS-NOT CLASSIFIED",2023-24Q1_PC0772
Sandwell Metropolitan Borough Council,https://www.sandwell.gov.uk/performance-spending/government-procurement-cards,10-May-23,Individual School Budgets With Inclusion,ASDA GROCERIES ONLINE,Individual School Budgets With Inclusion,-5.1,"GROCERY STORES, SUPERMARKETS",2023-24Q1_PC0773
Sandwell Metropolitan Borough Council,https://www.sandwell.gov.uk/performance-spending/government-procurement-cards,10-May-23,Individual School Budgets With Inclusion,ASDA GROCERIES ONLINE,Individual School Budgets With Inclusion,33.95,"GROCERY STORES, SUPERMARKETS",2023-24Q1_PC0774
Sandwell Metropolitan Borough Council,https://www.sandwell.gov.uk/performance-spending/government-procurement-cards,10-May-23,Individual School Budgets With Inclusion,ASDA GROCERIES ONLINE,Individual School Budgets With Inclusion,23.82,"GROCERY STORES, SUPERMARKETS",2023-24Q1_PC0775
Sandwell Metropolitan Borough Council,https://www.sandwell.gov.uk/performance-spending/government-procurement-cards,10-May-23,Individual School Budgets With Inclusion,UBER    EATS,Individual School Budgets With Inclusion,53.08,"EATING PLACES, RESTAURANTS",2023-24Q1_PC0776
Sandwell Metropolitan Borough Council,https://www.sandwell.gov.uk/performance-spending/government-procurement-cards,10-May-23,Total Public Health,SAINSBURYS S/MKTS,Public Health,11.3,"GROCERY STORES, SUPERMARKETS",2023-24Q1_PC0777
Sandwell Metropolitan Borough Council,https://www.sandwell.gov.uk/performance-spending/government-procurement-cards,10-May-23,Regeneration & Growth,AMZNMktplace,Regeneration And The Economy,70.65,MISCELLANEOUS AND SPECIALTY RETAIL STORES,2023-24Q1_PC0778
Sandwell Metropolitan Borough Council,https://www.sandwell.gov.uk/performance-spending/government-procurement-cards,10-May-23,Regeneration & Growth,AMZNMKTPLACE AMAZON.CO,Regeneration And The Economy,18.99,MISCELLANEOUS AND SPECIALTY RETAIL STORES,2023-24Q1_PC0779
Sandwell Metropolitan Borough Council,https://www.sandwell.gov.uk/performance-spending/government-procurement-cards,10-May-23,Regeneration & Growth,WATER PLUS LTD,Regeneration And The Economy,1486.25,"UTLTS-ELCTRC, GAS, HEATING OIL, SANITARY, WATER",2023-24Q1_PC0780
Sandwell Metropolitan Borough Council,https://www.sandwell.gov.uk/performance-spending/government-procurement-cards,10-May-23,FINANCE (Inc SIU),Trainline.COM,Total Adult Social Care,11.81,PASSENGER RAILWAYS,2023-24Q1_PC0781
Sandwell Metropolitan Borough Council,https://www.sandwell.gov.uk/performance-spending/government-procurement-cards,10-May-23,Regeneration & Growth,Cross Country Trains,Total Adult Social Care,23.2,PASSENGER RAILWAYS,2023-24Q1_PC0782
Sandwell Metropolitan Borough Council,https://www.sandwell.gov.uk/performance-spending/government-procurement-cards,10-May-23,Total ASCHWB,AMZNMktplace,Total Adult Social Care,107.85,MISCELLANEOUS AND SPECIALTY RETAIL STORES,2023-24Q1_PC0783
Sandwell Metropolitan Borough Council,https://www.sandwell.gov.uk/performance-spending/government-procurement-cards,10-May-23,Total ASCHWB,AMZNMktplace,Total Adult Social Care,66.69,MISCELLANEOUS AND SPECIALTY RETAIL STORES,2023-24Q1_PC0784
Sandwell Metropolitan Borough Council,https://www.sandwell.gov.uk/performance-spending/government-procurement-cards,10-May-23,Total ASCHWB,AMZNMktplace,Total Adult Social Care,3.99,MISCELLANEOUS AND SPECIALTY RETAIL STORES,2023-24Q1_PC0785
Sandwell Metropolitan Borough Council,https://www.sandwell.gov.uk/performance-spending/government-procurement-cards,10-May-23,Total ASCHWB,AMZNMktplace,Total Adult Social Care,11.45,MISCELLANEOUS AND SPECIALTY RETAIL STORES,2023-24Q1_PC0786
Sandwell Metropolitan Borough Council,https://www.sandwell.gov.uk/performance-spending/government-procurement-cards,10-May-23,Total ASCHWB,AMZNMktplace,Total Adult Social Care,122.13,MISCELLANEOUS AND SPECIALTY RETAIL STORES,2023-24Q1_PC0787
Sandwell Metropolitan Borough Council,https://www.sandwell.gov.uk/performance-spending/government-procurement-cards,10-May-23,Total ASCHWB,AMZNMktplace,Total Adult Social Care,21.59,MISCELLANEOUS AND SPECIALTY RETAIL STORES,2023-24Q1_PC0788
Sandwell Metropolitan Borough Council,https://www.sandwell.gov.uk/performance-spending/government-procurement-cards,10-May-23,Total ASCHWB,AMZNMktplace,Total Adult Social Care,26.96,MISCELLANEOUS AND SPECIALTY RETAIL STORES,2023-24Q1_PC0789
Sandwell Metropolitan Borough Council,https://www.sandwell.gov.uk/performance-spending/government-procurement-cards,10-May-23,Total ASCHWB,AMZNMKTPLACE AMAZON.CO,Total Adult Social Care,10.99,MISCELLANEOUS AND SPECIALTY RETAIL STORES,2023-24Q1_PC0790
Sandwell Metropolitan Borough Council,https://www.sandwell.gov.uk/performance-spending/government-procurement-cards,10-May-23,Total ASCHWB,WWW.TTS-GROUPS.CO.UK,Total Adult Social Care,52.73,"OFFICE, SCHOOL SUPPLY, AND STATIONERY STORES",2023-24Q1_PC0791
Sandwell Metropolitan Borough Council,https://www.sandwell.gov.uk/performance-spending/government-procurement-cards,10-May-23,Total Borough Economy,Amazon.co.uk 8W47J5G25,Total Adult Social Care,31.68,DIRECT MARKETING-OTHER DIRECT MARKETERS/NOT ELSEW.,2023-24Q1_PC0792
Sandwell Metropolitan Borough Council,https://www.sandwell.gov.uk/performance-spending/government-procurement-cards,10-May-23,Total Borough Economy,AMZNMktplace,Total Adult Social Care,125.14,MISCELLANEOUS AND SPECIALTY RETAIL STORES,2023-24Q1_PC0793
